Workbook

Sheet B (hidden)
A1: =UPPER(VG!A7) -> ERDEM BAYAZIT İMAM HATİP ORTAOKULU MÜDÜRLÜĞÜ | C1: NE | D1: -903.07.01/ | F1: =MAX(VG!A35:A134) -> 3 | H1: Kalem
A2: =UPPER(VG!G7) -> OSMANİYE | D2: -934.01/
A3: ihtiyaç duyulan aşağıda adı, özellikleri ve miktarı yazılı Malın / malzemenin temin edilmesi hususunda; Gereğini arz ederim. | C3: /
A4: Yukarıda Adı, Özellikleri ve miktarı belirtilen
A5: ihtiyaç duyulan malın / malzemenin satın alınması uygundur. Gereğini rica ederim.
A7: Okulumuza | B7: =TEXT(VG!D24,"yyyy") -> 2021 | C7: mali yılı ödeneğinde yer alan miktar doğrultusunda oluşturulacak komisyon marifetiyle 4734 sayılı Kamu İhale Kanununun 22/d maddesine göre doğrudan temin yöntemi ile
A8: satın alınacaktır. Söz konusu malzeme alımı için piyasa araştırması yapılması, teklif mektuplarının dağıtılması, değerlendirilmesi ve alınan malın / malzemenin muayene ve kabulünü yapmak üzere aşağıda adı soyadı ile unvanları yazılı personellerin görevlendirilmesini Olurlarınıza arz ederim.
A9: MUAYENE KABUL TUTANAĞI
A10: Yukarıda Adı ve miktarları yazılı
A11: Malın / Malzemenin ihale evraklarında yazılı nitelikleri muayene edilmiş olup komisyonumuzca tespit edilen niteliklere uygundur.
A15: =CONCATENATE(A25,A24) -> Erdem Bayazıt İmam Hatip Ortaokulu Müdürlüğünün isteği doğrultusunda temin edilecek malzemelerin 1. sınıf kalitede olmasına özen gösterilecektir. Malzemeler muayene ve teslim alma komisyonunca muayene edildikten sonra teslim alınacaktır. Malzemeler sağlam olarak teslim alındıktan sonara fatura kesilecek ve ödeme yapılacaktır. Verilen teklifler KDV hariç birim fiyatı üzerinden rakam ve yazı ile yazılacaktır. Teklif mektupları kapalı zarf içerisinde
A17: tarihinde saat
A18: ’e kadar satın alma komisyon başkanına teslim edilecektir.e kadar satın alma komisyon başkanına teslim edilecektir.
A19: =VG!D28 -> 44462
A20: =VG!H28 -> 10:00
A24: Müdürlüğünün isteği doğrultusunda temin edilecek malzemelerin 1. sınıf kalitede olmasına özen gösterilecektir. Malzemeler muayene ve teslim alma komisyonunca muayene edildikten sonra teslim alınacaktır. Malzemeler sağlam olarak teslim alındıktan sonara fatura kesilecek ve ödeme yapılacaktır. Verilen teklifler KDV hariç birim fiyatı üzerinden rakam ve yazı ile yazılacaktır. Teklif mektupları kapalı zarf içerisinde
A25: =VG!D9 -> Erdem Bayazıt İmam Hatip Ortaokulu
A26: Müdürlüğünün
A28: ihtiyacı olan aşağıda adı, özelliği ve miktarı yazılı malzeme doğrudan temin yoluyla satın alınacaktır.

Sheet VG
A1: DOĞRUDAN TEMİN PROĞRAMI
A3: BAŞLIK | J3: KOMİSYONLAR | R3: ÜNVANLAR | U3: BİRİMLER | W3: ONAYLAR | Y3: KDV
J4: SATIN ALMA KOMİSYONU | R4: Okul Müdürü | U4: Adet | W4: Evet | Y4: 8
A5: T.C. | J5: ADI SOYADI | M5: ÜNVANI | O5: KOMİSYON GÖREVİ | R5: Müdür Yardımcsısı | U5: Koli | W5: Hayır | Y5: 18
A6: OSMANİYE VALİLİĞİ | M6: Öğretmen | O6: Komisyon Üyesi | R6: Öğretmen | U6: Kg
A7: Erdem Bayazıt İmam Hatip Ortaokulu Müdürlüğü | G7: OSMANİYE | M7: Öğretmen | O7: Komisyon Üyesi | R7: Komisyon Başkanı | U7: Litre
A8: KURUM BİLGİLERİ | M8: Müdür Yardımcsısı | O8: Komisyon Başkanı | R8: Komisyon Üyesi | U8: Top
A9: Kurum Adı | D9: Erdem Bayazıt İmam Hatip Ortaokulu | J9: MUAYENE VE KABUL KOMİSYONU | U9: Metrekare
A10: Kurum DTV (Yazışma) Kodu | J10: ADI SOYADI | M10: ÜNVANI | O10: KOMİSYON GÖREVİ
A11: Kurum Yetkilisi Adı Soyadı | M11: Öğretmen | O11: Komisyon Üyesi | R11: 1. AŞAMA EVRAKLAR : İHTİYAÇ LİSTESİ, KOMİSYON GÖREVLENDİRME, RAYİÇ, TEKLİF MEKTUBU
A12: Kurum Yetkilisi Ünvanı | D12: Okul Müdürü | M12: Öğretmen | O12: Komisyon Üyesi
A13: İhale Sorumlusu Adı Soyadı | R13: 2. AŞAMA EVRAKLAR: YAKLAŞIK MALİYET CETVELİ, PİYASA ARAŞTIRMA TUTANAĞI, İHALE ONAY BELGESİ, MUAYENE VE KABUL TUTANAĞI
A14: İhale Sorumlusu Ünvanı | D14: Müdür Yardımcsısı | J14: UYGUN GÖRÜLEN FİRMA / KİŞİ
A15: İHALE BİLGİLERİ | J15: ADI | R15: Satın Alınacak Malzeme Bilgilerini girdikten sonra 1 AŞAMA EVRAKLARI hazırlayıp yazdırın RAYİÇ ve TEKLİF MEKTUPLARI nı aldıktan sonra teklifleri aşağıdaki listeye giriniz ve değerlendirme sonucunda mal alımının uygun görüldüğü firma bilgilerini girip 2 AŞAMA EVRAKLARI hazırlayıp yazdırın
A16: İşin Adı | D16: Büro Mefruşat Alımları | H16: Alımı | J16: VERGİ NUMARASI
A17: İşin Niteliği (neden alınıyor ?) | D17: Okul İhtiyacı | H17: için | J17: ADRESİ
A18: Bütçe Tertibi (hangi bütçeden ?) | D18: Okul Bütçesinden | J18: İLİ/İLÇESİ
A19: Şartname Düzenlenecek Mi ? | D19: Hayır | J19: İHALE DÖKÜMANLARI | R19: İstenmesi Halinde Satın Alınacak Malzemenin bilgileri girildikten sonra
A20: Sözleşme Düzenlenecek Mil ? | D20: Hayır | J20: 1. AŞAMA EVRAKLAR | N20: 2. AŞAMA EVRAKLAR
A21: BELGE TARİH VE SAYILARI | V21: Hazırlayabilirsiniz
A22: BELGE ADI | D22: TARİHİ | F22: SAYISI | H22: SAATİ | M22: 1 ADET
A23: İhitiyaç Listesi | D23: 2021-09-21
A24: Komisyon Görevlendirme | D24: 2021-09-21 | F24: 2021-1 | M24: 1 ADET
A25: Rayiç (Piyasa Tespiti) | D25: 2021-09-21 | F25: 2021-1
A26: İhale Onay Belgesi | D26: 2021-09-21 | F26: 2021-1 | M26: EN AZ 3
A27: Teklif Mektubu | D27: 2021-09-21 | F27: 2021-1
A28: Teklif Mektubu Son Teslim | D28: 2021-09-23 | H28: 10:00 | M28: EN AZ 3
A29: Yaklaşık Maliyet | D29: 2021-09-25
A30: Muayene ve Kabul Belgesi | D30: 2021-09-25
A32: SATIN ALINACAK MALIN / MALZEMENİN | I32: KDV ORANI % | J32: PİYASA FİYATI (RAYİÇ) ALINAN FİRMALAR /KİŞİLER / KURUMLAR | R32: TEKLİF ALINAN FİRMALAR / KİŞİLER
J33: GÖKTÜRK MEFRUŞAT | L33: YILDIZLAR MANİFATURA | N33: DENGE TEKSTİL | R33: GÖKTÜRK MEFRUŞAT | T33: YILDIZLAR MANİFATURA | V33: DENGE TEKSTİL
A34: SIRA | B34: ALINACAK MALIN ADI | E34: ÖZELLİĞİ | G34: MİKTARI | H34: BİRİMİ | J34: BİRİM FİYATI | K34: TOPLAM FİYAT | L34: BİRİM FİYATI | M34: TOPLAM FİYAT | N34: BİRİM FİYATI | O34: TOPLAM FİYAT | P34: BİRİM FİYATI | Q34: TOPLAM FİYAT | R34: BİRİM FİYATI | S34: TOPLAM FİYAT | T34: BİRİM FİYATI | U34: TOPLAM FİYAT | V34: BİRİM FİYATI | W34: TOPLAM FİYAT | X34: BİRİM FİYATI | Y34: TOPLAM FİYAT
A35: =IF(ISBLANK(B35),"",1) -> 1 | B35: Perde | E35: Fon | G35: 120 | H35: Metrekare | I35: 8 | J35: 70 | K35: =G35*J35 -> 8400 | L35: 70 | M35: =G35*L35 -> 8400 | N35: 70 | O35: =G35*N35 -> 8400 | Q35: =IF(ISBLANK(P35),"",G35*P35) ->  | R35: 70 | S35: =G35*R35 -> 8400 | T35: 70 | U35: =G35*T35 -> 8400 | V35: 70 | W35: =G35*V35 -> 8400 | Y35: =IF(ISBLANK(X35),"",G35*X35) -> 
A36: =IF(ISBLANK(B36),"",2) -> 2 | B36: Perde | E36: Zebra | G36: 30 | H36: Metrekare | I36: =I35 -> 8 | J36: 50 | K36: =G36*J36 -> 1500 | L36: 80 | M36: =G36*L36 -> 2400 | N36: 80 | O36: =G36*N36 -> 2400 | Q36: =IF(ISBLANK(P36),"",G36*P36) ->  | R36: 50 | S36: =G36*R36 -> 1500 | T36: 80 | U36: =G36*T36 -> 2400 | V36: 80 | W36: =G36*V36 -> 2400 | Y36: =IF(ISBLANK(X36),"",G36*X36) -> 
A37: =IF(ISBLANK(B37),"",3) -> 3 | B37: Perde | E37: Karartma | G37: 34 | H37: Metrekare | I37: =I36 -> 8 | J37: 45 | K37: 1530 | L37: 65 | M37: 2210 | N37: 60 | O37: 2040 | R37: 45 | S37: 1530 | T37: 65 | U37: 2210 | V37: 60 | W37: 2040
A38: =IF(ISBLANK(B38),"",4) ->  | I38: 8 | K38: 0 | M38: 0 | O38: 0 | S38: 0 | U38: 0 | W38: 0
A39: =IF(ISBLANK(B39),"",5) ->  | I39: 8 | K39: 0 | M39: 0 | O39: 0 | S39: 0 | U39: 0 | W39: 0
A40: =IF(ISBLANK(B40),"",6) ->  | I40: 8 | K40: 0 | M40: 0 | O40: 0 | S40: 0 | U40: 0 | W40: 0
A41: =IF(ISBLANK(B41),"",7) ->  | I41: 8 | K41: 0 | M41: 0 | O41: 0 | S41: 0 | U41: 0 | W41: 0
A42: =IF(ISBLANK(B42),"",8) ->  | I42: 8 | K42: 0 | M42: 0 | O42: 0 | S42: 0 | U42: 0 | W42: 0
A43: =IF(ISBLANK(B43),"",9) ->  | I43: 8 | K43: 0 | M43: 0 | O43: 0 | S43: 0 | U43: 0 | W43: 0
A44: =IF(ISBLANK(B44),"",10) ->  | I44: 8 | K44: 0 | M44: 0 | O44: 0 | S44: 0 | U44: 0 | W44: 0
A45: =IF(ISBLANK(B45),"",11) ->  | I45: 8 | K45: 0 | M45: 0 | O45: 0 | S45: 0 | U45: 0 | W45: 0
A46: =IF(ISBLANK(B46),"",12) ->  | I46: 8 | K46: 0 | M46: 0 | O46: 0 | S46: 0 | U46: 0 | W46: 0
A47: =IF(ISBLANK(B47),"",13) ->  | I47: 8 | K47: 0 | M47: 0 | O47: 0 | S47: 0 | U47: 0 | W47: 0
A48: =IF(ISBLANK(B48),"",14) ->  | I48: 8 | K48: 0 | M48: 0 | O48: 0 | S48: 0 | U48: 0 | W48: 0
A49: =IF(ISBLANK(B49),"",15) ->  | I49: 8 | K49: 0 | M49: 0 | O49: 0 | S49: 0 | U49: 0 | W49: 0
A50: =IF(ISBLANK(B50),"",16) ->  | I50: 8 | K50: 0 | M50: 0 | O50: 0 | S50: 0 | U50: 0 | W50: 0
A51: =IF(ISBLANK(B51),"",17) ->  | I51: 8 | K51: 0 | M51: 0 | O51: 0 | S51: 0 | U51: 0 | W51: 0
A52: =IF(ISBLANK(B52),"",18) ->  | I52: 8 | K52: 0 | M52: 0 | O52: 0 | S52: 0 | U52: 0 | W52: 0
A53: =IF(ISBLANK(B53),"",19) ->  | I53: 8 | K53: 0 | M53: 0 | O53: 0 | S53: 0 | U53: 0 | W53: 0
A54: =IF(ISBLANK(B54),"",20) ->  | I54: 8 | K54: 0 | M54: 0 | O54: 0 | S54: 0 | U54: 0 | W54: 0
A55: =IF(ISBLANK(B55),"",21) ->  | I55: 8 | K55: 0 | M55: 0 | O55: 0 | S55: 0 | U55: 0 | W55: 0
A56: =IF(ISBLANK(B56),"",22) ->  | I56: 8 | K56: 0 | M56: 0 | O56: 0 | S56: 0 | U56: 0 | W56: 0
A57: =IF(ISBLANK(B57),"",23) ->  | I57: 8 | K57: 0 | M57: 0 | O57: 0 | S57: 0 | U57: 0 | W57: 0
A58: =IF(ISBLANK(B58),"",24) ->  | I58: 8 | K58: 0 | M58: 0 | O58: 0 | S58: 0 | U58: 0 | W58: 0
A59: =IF(ISBLANK(B59),"",25) ->  | I59: 8 | K59: 0 | M59: 0 | O59: 0 | S59: 0 | U59: 0 | W59: 0
A60: =IF(ISBLANK(B60),"",26) ->  | I60: 8 | K60: 0 | M60: 0 | O60: 0 | S60: 0 | U60: 0 | W60: 0
A61: =IF(ISBLANK(B61),"",27) ->  | I61: 8 | K61: 0 | M61: 0 | O61: 0 | S61: 0 | U61: 0 | W61: 0
A62: =IF(ISBLANK(B62),"",28) ->  | I62: 8 | K62: 0 | M62: 0 | O62: 0 | S62: 0 | U62: 0 | W62: 0
A63: =IF(ISBLANK(B63),"",29) ->  | I63: 8 | K63: 0 | M63: 0 | O63: 0 | S63: 0 | U63: 0 | W63: 0
A64: =IF(ISBLANK(B64),"",30) ->  | I64: 8 | K64: 0 | M64: 0 | O64: 0 | S64: 0 | U64: 0 | W64: 0
A65: =IF(ISBLANK(B65),"",31) ->  | I65: 8 | K65: 0 | M65: 0 | O65: 0 | S65: 0 | U65: 0 | W65: 0
A66: =IF(ISBLANK(B66),"",32) ->  | I66: 8 | K66: 0 | M66: 0 | O66: 0 | S66: 0 | U66: 0 | W66: 0
A67: =IF(ISBLANK(B67),"",33) ->  | I67: 8 | K67: 0 | M67: 0 | O67: 0 | S67: 0 | U67: 0 | W67: 0
A68: =IF(ISBLANK(B68),"",34) ->  | I68: 8 | K68: 0 | M68: 0 | O68: 0 | S68: 0 | U68: 0 | W68: 0
A69: =IF(ISBLANK(B69),"",26) ->  | I69: 8 | K69: 0 | M69: 0 | O69: 0 | S69: 0 | U69: 0 | W69: 0
A70: =IF(ISBLANK(B70),"",36) ->  | I70: 8 | K70: 0 | M70: 0 | O70: 0 | S70: 0 | U70: 0 | W70: 0
A71: =IF(ISBLANK(B71),"",37) ->  | I71: 8 | K71: 0 | M71: 0 | O71: 0 | S71: 0 | U71: 0 | W71: 0
A72: =IF(ISBLANK(B72),"",38) ->  | I72: 8 | K72: 0 | M72: 0 | O72: 0 | S72: 0 | U72: 0 | W72: 0
A73: =IF(ISBLANK(B73),"",39) ->  | I73: 8 | K73: 0 | M73: 0 | O73: 0 | S73: 0 | U73: 0 | W73: 0
A74: =IF(ISBLANK(B74),"",40) ->  | I74: 8 | K74: 0 | M74: 0 | O74: 0 | S74: 0 | U74: 0 | W74: 0
A75: =IF(ISBLANK(B75),"",41) ->  | I75: 8 | K75: 0 | M75: 0 | O75: 0 | S75: 0 | U75: 0 | W75: 0
A76: =IF(ISBLANK(B76),"",42) ->  | I76: 8 | K76: 0 | M76: 0 | O76: 0 | S76: 0 | U76: 0 | W76: 0
A77: =IF(ISBLANK(B77),"",43) ->  | I77: 8 | K77: 0 | M77: 0 | O77: 0 | S77: 0 | U77: 0 | W77: 0
A78: =IF(ISBLANK(B78),"",44) ->  | I78: 8 | K78: 0 | M78: 0 | O78: 0 | S78: 0 | U78: 0 | W78: 0
A79: =IF(ISBLANK(B79),"",45) ->  | I79: 8 | K79: 0 | M79: 0 | O79: 0 | S79: 0 | U79: 0 | W79: 0
A80: =IF(ISBLANK(B80),"",46) ->  | I80: 8 | K80: 0 | M80: 0 | O80: 0 | S80: 0 | U80: 0 | W80: 0
A81: =IF(ISBLANK(B81),"",47) ->  | I81: 8 | K81: 0 | M81: 0 | O81: 0 | S81: 0 | U81: 0 | W81: 0
A82: =IF(ISBLANK(B82),"",48) ->  | I82: 8 | K82: 0 | M82: 0 | O82: 0 | S82: 0 | U82: 0 | W82: 0
A83: =IF(ISBLANK(B83),"",49) ->  | I83: 8 | K83: 0 | M83: 0 | O83: 0 | S83: 0 | U83: 0 | W83: 0
A84: =IF(ISBLANK(B84),"",50) ->  | I84: 8 | K84: 0 | M84: 0 | O84: 0 | S84: 0 | U84: 0 | W84: 0
A85: =IF(ISBLANK(B85),"",51) ->  | I85: 8 | K85: 0 | M85: 0 | O85: 0 | S85: 0 | U85: 0 | W85: 0
A86: =IF(ISBLANK(B86),"",52) ->  | I86: 8 | K86: 0 | M86: 0 | O86: 0 | S86: 0 | U86: 0 | W86: 0
A87: =IF(ISBLANK(B87),"",53) ->  | I87: 8 | K87: 0 | M87: 0 | O87: 0 | S87: 0 | U87: 0 | W87: 0
A88: =IF(ISBLANK(B88),"",54) ->  | I88: 8 | K88: 0 | M88: 0 | O88: 0 | S88: 0 | U88: 0 | W88: 0
A89: =IF(ISBLANK(B89),"",55) ->  | I89: 8 | K89: 0 | M89: 0 | O89: 0 | S89: 0 | U89: 0 | W89: 0
A90: =IF(ISBLANK(B90),"",56) ->  | I90: 8 | K90: 0 | M90: 0 | O90: 0 | S90: 0 | U90: 0 | W90: 0
A91: =IF(ISBLANK(B91),"",57) ->  | I91: 8 | K91: 0 | M91: 0 | O91: 0 | S91: 0 | U91: 0 | W91: 0
A92: =IF(ISBLANK(B92),"",58) ->  | I92: 8 | K92: 0 | M92: 0 | O92: 0 | S92: 0 | U92: 0 | W92: 0
A93: =IF(ISBLANK(B93),"",59) ->  | I93: 8 | K93: 0 | M93: 0 | O93: 0 | S93: 0 | U93: 0 | W93: 0
A94: =IF(ISBLANK(B94),"",60) ->  | I94: 8 | K94: 0 | M94: 0 | O94: 0 | S94: 0 | U94: 0 | W94: 0
A95: =IF(ISBLANK(B95),"",61) ->  | I95: 8 | K95: 0 | M95: 0 | O95: 0 | S95: 0 | U95: 0 | W95: 0
A96: =IF(ISBLANK(B96),"",62) ->  | I96: 8 | K96: 0 | M96: 0 | O96: 0 | S96: 0 | U96: 0 | W96: 0
A97: =IF(ISBLANK(B97),"",63) ->  | I97: 8 | K97: 0 | M97: 0 | O97: 0 | S97: 0 | U97: 0 | W97: 0
A98: =IF(ISBLANK(B98),"",64) ->  | I98: 8 | K98: 0 | M98: 0 | O98: 0 | S98: 0 | U98: 0 | W98: 0
A99: =IF(ISBLANK(B99),"",65) ->  | I99: 8 | K99: 0 | M99: 0 | O99: 0 | S99: 0 | U99: 0 | W99: 0
A100: =IF(ISBLANK(B100),"",66) ->  | I100: 8 | K100: =G100*J100 -> 0 | M100: =G100*L100 -> 0 | O100: =G100*N100 -> 0 | Q100: =IF(ISBLANK(P100),"",G100*P100) ->  | S100: =G100*R100 -> 0 | U100: =G100*T100 -> 0 | W100: =G100*V100 -> 0 | Y100: =IF(ISBLANK(X100),"",G100*X100) -> 
A101: =IF(ISBLANK(B101),"",67) ->  | I101: =I100 -> 8 | K101: 0 | M101: 0 | O101: 0 | S101: 0 | U101: 0 | W101: 0
A102: =IF(ISBLANK(B102),"",68) ->  | I102: 8 | K102: 0 | M102: 0 | O102: 0 | S102: 0 | U102: 0 | W102: 0
A103: =IF(ISBLANK(B103),"",69) ->  | I103: 8 | K103: 0 | M103: 0 | O103: 0 | S103: 0 | U103: 0 | W103: 0
A104: =IF(ISBLANK(B104),"",70) ->  | I104: 8 | K104: 0 | M104: 0 | O104: 0 | S104: 0 | U104: 0 | W104: 0
A105: =IF(ISBLANK(B105),"",71) ->  | I105: 8 | K105: 0 | M105: 0 | O105: 0 | S105: 0 | U105: 0 | W105: 0
A106: =IF(ISBLANK(B106),"",72) ->  | I106: 8 | K106: 0 | M106: 0 | O106: 0 | S106: 0 | U106: 0 | W106: 0
A107: =IF(ISBLANK(B107),"",73) ->  | I107: 8 | K107: 0 | M107: 0 | O107: 0 | S107: 0 | U107: 0 | W107: 0
A108: =IF(ISBLANK(B108),"",74) ->  | I108: 8 | K108: 0 | M108: 0 | O108: 0 | S108: 0 | U108: 0 | W108: 0
A109: =IF(ISBLANK(B109),"",75) ->  | I109: 8 | K109: 0 | M109: 0 | O109: 0 | S109: 0 | U109: 0 | W109: 0
A110: =IF(ISBLANK(B110),"",76) ->  | I110: 8 | K110: 0 | M110: 0 | O110: 0 | S110: 0 | U110: 0 | W110: 0
A111: =IF(ISBLANK(B111),"",77) ->  | I111: 8 | K111: 0 | M111: 0 | O111: 0 | S111: 0 | U111: 0 | W111: 0
A112: =IF(ISBLANK(B112),"",78) ->  | I112: 8 | K112: 0 | M112: 0 | O112: 0 | S112: 0 | U112: 0 | W112: 0
A113: =IF(ISBLANK(B113),"",79) ->  | I113: 8 | K113: 0 | M113: 0 | O113: 0 | S113: 0 | U113: 0 | W113: 0
A114: =IF(ISBLANK(B114),"",80) ->  | I114: 8 | K114: 0 | M114: 0 | O114: 0 | S114: 0 | U114: 0 | W114: 0
A115: =IF(ISBLANK(B115),"",81) ->  | I115: 8 | K115: 0 | M115: 0 | O115: 0 | S115: 0 | U115: 0 | W115: 0
A116: =IF(ISBLANK(B116),"",82) ->  | I116: 8 | K116: 0 | M116: 0 | O116: 0 | S116: 0 | U116: 0 | W116: 0
A117: =IF(ISBLANK(B117),"",83) ->  | I117: 8 | K117: 0 | M117: 0 | O117: 0 | S117: 0 | U117: 0 | W117: 0
A118: =IF(ISBLANK(B118),"",84) ->  | I118: 8 | K118: 0 | M118: 0 | O118: 0 | S118: 0 | U118: 0 | W118: 0
A119: =IF(ISBLANK(B119),"",85) ->  | I119: 8 | K119: 0 | M119: 0 | O119: 0 | S119: 0 | U119: 0 | W119: 0
A120: =IF(ISBLANK(B120),"",86) ->  | I120: 8 | K120: 0 | M120: 0 | O120: 0 | S120: 0 | U120: 0 | W120: 0
A121: =IF(ISBLANK(B121),"",87) ->  | I121: 8 | K121: 0 | M121: 0 | O121: 0 | S121: 0 | U121: 0 | W121: 0
A122: =IF(ISBLANK(B122),"",88) ->  | I122: 8 | K122: 0 | M122: 0 | O122: 0 | S122: 0 | U122: 0 | W122: 0
A123: =IF(ISBLANK(B123),"",89) ->  | I123: 8 | K123: 0 | M123: 0 | O123: 0 | S123: 0 | U123: 0 | W123: 0
A124: =IF(ISBLANK(B124),"",90) ->  | I124: 8 | K124: 0 | M124: 0 | O124: 0 | S124: 0 | U124: 0 | W124: 0
A125: =IF(ISBLANK(B125),"",91) ->  | I125: 8 | K125: 0 | M125: 0 | O125: 0 | S125: 0 | U125: 0 | W125: 0
A126: =IF(ISBLANK(B126),"",92) ->  | I126: 8 | K126: 0 | M126: 0 | O126: 0 | S126: 0 | U126: 0 | W126: 0
A127: =IF(ISBLANK(B127),"",93) ->  | I127: 8 | K127: 0 | M127: 0 | O127: 0 | S127: 0 | U127: 0 | W127: 0
A128: =IF(ISBLANK(B128),"",94) ->  | I128: 8 | K128: 0 | M128: 0 | O128: 0 | S128: 0 | U128: 0 | W128: 0
A129: =IF(ISBLANK(B129),"",95) ->  | I129: 8 | K129: 0 | M129: 0 | O129: 0 | S129: 0 | U129: 0 | W129: 0
A130: =IF(ISBLANK(B130),"",96) ->  | I130: 8 | K130: 0 | M130: 0 | O130: 0 | S130: 0 | U130: 0 | W130: 0
A131: =IF(ISBLANK(B131),"",97) ->  | I131: 8 | K131: 0 | M131: 0 | O131: 0 | S131: 0 | U131: 0 | W131: 0
A132: =IF(ISBLANK(B132),"",98) ->  | I132: 8 | K132: 0 | M132: 0 | O132: 0 | S132: 0 | U132: 0 | W132: 0
A133: =IF(ISBLANK(B133),"",99) ->  | I133: 8 | K133: 0 | M133: 0 | O133: 0 | S133: 0 | U133: 0 | W133: 0
A134: =IF(ISBLANK(B134),"",100) ->  | I134: 8 | K134: 0 | M134: 0 | O134: 0 | S134: 0 | U134: 0 | W134: 0

Sheet İL
A1: =CONCATENATE(B!A2,B!B1,B!A1,B!C1) -> OSMANİYE ERDEM BAYAZIT İMAM HATİP ORTAOKULU MÜDÜRLÜĞÜNE
A4: =CONCATENATE(B!B3,VG!D9,B!B1,VG!D17,VG!H17,B!A3) -> Erdem Bayazıt İmam Hatip Ortaokulu Okul İhtiyacı için ihtiyaç duyulan aşağıda adı, özellikleri ve miktarı yazılı Malın / malzemenin temin edilmesi hususunda; Gereğini arz ederim.
D6: =VG!D23 -> 2021-09-21
D7: =VG!D13 -> 0
D8: =VG!D14 -> Müdür Yardımcsısı
A10: SIRA | B10: ADI | C10: ÖZELLİĞİ | D10: MİKTARI | E10: BİRİMİ
A11: =VG!A35 -> 1 | B11: =VG!B35 -> Perde | C11: =VG!E35 -> Fon | D11: =VG!G35 -> 120 | E11: =VG!H35 -> Metrekare
A12: =VG!A36 -> 2 | B12: =VG!B36 -> Perde | C12: =VG!E36 -> Zebra | D12: =VG!G36 -> 30 | E12: =VG!H36 -> Metrekare
A13: =VG!A37 -> 3 | B13: =VG!B37 -> Perde | C13: =VG!E37 -> Karartma | D13: =VG!G37 -> 34 | E13: =VG!H37 -> Metrekare
A14: =VG!A38 ->  | B14: =VG!B38 -> 0 | C14: =VG!E38 -> 0 | D14: =VG!G38 -> 0 | E14: =VG!H38 -> 0
A15: =VG!A39 ->  | B15: =VG!B39 -> 0 | C15: =VG!E39 -> 0 | D15: =VG!G39 -> 0 | E15: =VG!H39 -> 0
A16: =VG!A40 ->  | B16: =VG!B40 -> 0 | C16: =VG!E40 -> 0 | D16: =VG!G40 -> 0 | E16: =VG!H40 -> 0
A17: =VG!A41 ->  | B17: =VG!B41 -> 0 | C17: =VG!E41 -> 0 | D17: =VG!G41 -> 0 | E17: =VG!H41 -> 0
A18: =VG!A42 ->  | B18: =VG!B42 -> 0 | C18: =VG!E42 -> 0 | D18: =VG!G42 -> 0 | E18: =VG!H42 -> 0
A19: =VG!A43 ->  | B19: =VG!B43 -> 0 | C19: =VG!E43 -> 0 | D19: =VG!G43 -> 0 | E19: =VG!H43 -> 0
A20: =VG!A44 ->  | B20: =VG!B44 -> 0 | C20: =VG!E44 -> 0 | D20: =VG!G44 -> 0 | E20: =VG!H44 -> 0
A21: =VG!A45 ->  | B21: =VG!B45 -> 0 | C21: =VG!E45 -> 0 | D21: =VG!G45 -> 0 | E21: =VG!H45 -> 0
A22: =VG!A46 ->  | B22: =VG!B46 -> 0 | C22: =VG!E46 -> 0 | D22: =VG!G46 -> 0 | E22: =VG!H46 -> 0
A23: =VG!A47 ->  | B23: =VG!B47 -> 0 | C23: =VG!E47 -> 0 | D23: =VG!G47 -> 0 | E23: =VG!H47 -> 0
A24: =VG!A48 ->  | B24: =VG!B48 -> 0 | C24: =VG!E48 -> 0 | D24: =VG!G48 -> 0 | E24: =VG!H48 -> 0
A25: =VG!A49 ->  | B25: =VG!B49 -> 0 | C25: =VG!E49 -> 0 | D25: =VG!G49 -> 0 | E25: =VG!H49 -> 0
A26: =VG!A50 ->  | B26: =VG!B50 -> 0 | C26: =VG!E50 -> 0 | D26: =VG!G50 -> 0 | E26: =VG!H50 -> 0
A27: =VG!A51 ->  | B27: =VG!B51 -> 0 | C27: =VG!E51 -> 0 | D27: =VG!G51 -> 0 | E27: =VG!H51 -> 0
A28: =VG!A52 ->  | B28: =VG!B52 -> 0 | C28: =VG!E52 -> 0 | D28: =VG!G52 -> 0 | E28: =VG!H52 -> 0
A29: =VG!A53 ->  | B29: =VG!B53 -> 0 | C29: =VG!E53 -> 0 | D29: =VG!G53 -> 0 | E29: =VG!H53 -> 0
A30: =VG!A54 ->  | B30: =VG!B54 -> 0 | C30: =VG!E54 -> 0 | D30: =VG!G54 -> 0 | E30: =VG!H54 -> 0
A31: =VG!A55 ->  | B31: =VG!B55 -> 0 | C31: =VG!E55 -> 0 | D31: =VG!G55 -> 0 | E31: =VG!H55 -> 0
A32: =VG!A56 ->  | B32: =VG!B56 -> 0 | C32: =VG!E56 -> 0 | D32: =VG!G56 -> 0 | E32: =VG!H56 -> 0
A33: =VG!A57 ->  | B33: =VG!B57 -> 0 | C33: =VG!E57 -> 0 | D33: =VG!G57 -> 0 | E33: =VG!H57 -> 0
A34: =VG!A58 ->  | B34: =VG!B58 -> 0 | C34: =VG!E58 -> 0 | D34: =VG!G58 -> 0 | E34: =VG!H58 -> 0
A35: =VG!A59 ->  | B35: =VG!B59 -> 0 | C35: =VG!E59 -> 0 | D35: =VG!G59 -> 0 | E35: =VG!H59 -> 0
A36: =VG!A60 ->  | B36: =VG!B60 -> 0 | C36: =VG!E60 -> 0 | D36: =VG!G60 -> 0 | E36: =VG!H60 -> 0
A37: =VG!A61 ->  | B37: =VG!B61 -> 0 | C37: =VG!E61 -> 0 | D37: =VG!G61 -> 0 | E37: =VG!H61 -> 0
A38: =VG!A62 ->  | B38: =VG!B62 -> 0 | C38: =VG!E62 -> 0 | D38: =VG!G62 -> 0 | E38: =VG!H62 -> 0
A39: =VG!A63 ->  | B39: =VG!B63 -> 0 | C39: =VG!E63 -> 0 | D39: =VG!G63 -> 0 | E39: =VG!H63 -> 0
A40: =VG!A64 ->  | B40: =VG!B64 -> 0 | C40: =VG!E64 -> 0 | D40: =VG!G64 -> 0 | E40: =VG!H64 -> 0
A41: =VG!A65 ->  | B41: =VG!B65 -> 0 | C41: =VG!E65 -> 0 | D41: =VG!G65 -> 0 | E41: =VG!H65 -> 0
A42: =VG!A66 ->  | B42: =VG!B66 -> 0 | C42: =VG!E66 -> 0 | D42: =VG!G66 -> 0 | E42: =VG!H66 -> 0
A43: =VG!A67 ->  | B43: =VG!B67 -> 0 | C43: =VG!E67 -> 0 | D43: =VG!G67 -> 0 | E43: =VG!H67 -> 0
A44: =VG!A68 ->  | B44: =VG!B68 -> 0 | C44: =VG!E68 -> 0 | D44: =VG!G68 -> 0 | E44: =VG!H68 -> 0
A45: =VG!A69 ->  | B45: =VG!B69 -> 0 | C45: =VG!E69 -> 0 | D45: =VG!G69 -> 0 | E45: =VG!H69 -> 0
A46: =VG!A70 ->  | B46: =VG!B70 -> 0 | C46: =VG!E70 -> 0 | D46: =VG!G70 -> 0 | E46: =VG!H70 -> 0
A47: =VG!A71 ->  | B47: =VG!B71 -> 0 | C47: =VG!E71 -> 0 | D47: =VG!G71 -> 0 | E47: =VG!H71 -> 0
A48: =VG!A72 ->  | B48: =VG!B72 -> 0 | C48: =VG!E72 -> 0 | D48: =VG!G72 -> 0 | E48: =VG!H72 -> 0
A49: =VG!A73 ->  | B49: =VG!B73 -> 0 | C49: =VG!E73 -> 0 | D49: =VG!G73 -> 0 | E49: =VG!H73 -> 0
A50: =VG!A74 ->  | B50: =VG!B74 -> 0 | C50: =VG!E74 -> 0 | D50: =VG!G74 -> 0 | E50: =VG!H74 -> 0
A51: =VG!A75 ->  | B51: =VG!B75 -> 0 | C51: =VG!E75 -> 0 | D51: =VG!G75 -> 0 | E51: =VG!H75 -> 0
A52: =VG!A76 ->  | B52: =VG!B76 -> 0 | C52: =VG!E76 -> 0 | D52: =VG!G76 -> 0 | E52: =VG!H76 -> 0
A53: =VG!A77 ->  | B53: =VG!B77 -> 0 | C53: =VG!E77 -> 0 | D53: =VG!G77 -> 0 | E53: =VG!H77 -> 0
A54: =VG!A78 ->  | B54: =VG!B78 -> 0 | C54: =VG!E78 -> 0 | D54: =VG!G78 -> 0 | E54: =VG!H78 -> 0
A55: =VG!A79 ->  | B55: =VG!B79 -> 0 | C55: =VG!E79 -> 0 | D55: =VG!G79 -> 0 | E55: =VG!H79 -> 0
A56: =VG!A80 ->  | B56: =VG!B80 -> 0 | C56: =VG!E80 -> 0 | D56: =VG!G80 -> 0 | E56: =VG!H80 -> 0
A57: =VG!A81 ->  | B57: =VG!B81 -> 0 | C57: =VG!E81 -> 0 | D57: =VG!G81 -> 0 | E57: =VG!H81 -> 0
A58: =VG!A82 ->  | B58: =VG!B82 -> 0 | C58: =VG!E82 -> 0 | D58: =VG!G82 -> 0 | E58: =VG!H82 -> 0
A59: =VG!A83 ->  | B59: =VG!B83 -> 0 | C59: =VG!E83 -> 0 | D59: =VG!G83 -> 0 | E59: =VG!H83 -> 0
A60: =VG!A84 ->  | B60: =VG!B84 -> 0 | C60: =VG!E84 -> 0 | D60: =VG!G84 -> 0 | E60: =VG!H84 -> 0
A61: =VG!A85 ->  | B61: =VG!B85 -> 0 | C61: =VG!E85 -> 0 | D61: =VG!G85 -> 0 | E61: =VG!H85 -> 0
A62: =VG!A86 ->  | B62: =VG!B86 -> 0 | C62: =VG!E86 -> 0 | D62: =VG!G86 -> 0 | E62: =VG!H86 -> 0
A63: =VG!A87 ->  | B63: =VG!B87 -> 0 | C63: =VG!E87 -> 0 | D63: =VG!G87 -> 0 | E63: =VG!H87 -> 0
A64: =VG!A88 ->  | B64: =VG!B88 -> 0 | C64: =VG!E88 -> 0 | D64: =VG!G88 -> 0 | E64: =VG!H88 -> 0
A65: =VG!A89 ->  | B65: =VG!B89 -> 0 | C65: =VG!E89 -> 0 | D65: =VG!G89 -> 0 | E65: =VG!H89 -> 0
A66: =VG!A90 ->  | B66: =VG!B90 -> 0 | C66: =VG!E90 -> 0 | D66: =VG!G90 -> 0 | E66: =VG!H90 -> 0
A67: =VG!A91 ->  | B67: =VG!B91 -> 0 | C67: =VG!E91 -> 0 | D67: =VG!G91 -> 0 | E67: =VG!H91 -> 0
A68: =VG!A92 ->  | B68: =VG!B92 -> 0 | C68: =VG!E92 -> 0 | D68: =VG!G92 -> 0 | E68: =VG!H92 -> 0
A69: =VG!A93 ->  | B69: =VG!B93 -> 0 | C69: =VG!E93 -> 0 | D69: =VG!G93 -> 0 | E69: =VG!H93 -> 0
A70: =VG!A94 ->  | B70: =VG!B94 -> 0 | C70: =VG!E94 -> 0 | D70: =VG!G94 -> 0 | E70: =VG!H94 -> 0
A71: =VG!A95 ->  | B71: =VG!B95 -> 0 | C71: =VG!E95 -> 0 | D71: =VG!G95 -> 0 | E71: =VG!H95 -> 0
A72: =VG!A96 ->  | B72: =VG!B96 -> 0 | C72: =VG!E96 -> 0 | D72: =VG!G96 -> 0 | E72: =VG!H96 -> 0
A73: =VG!A97 ->  | B73: =VG!B97 -> 0 | C73: =VG!E97 -> 0 | D73: =VG!G97 -> 0 | E73: =VG!H97 -> 0
A74: =VG!A98 ->  | B74: =VG!B98 -> 0 | C74: =VG!E98 -> 0 | D74: =VG!G98 -> 0 | E74: =VG!H98 -> 0
A75: =VG!A99 ->  | B75: =VG!B99 -> 0 | C75: =VG!E99 -> 0 | D75: =VG!G99 -> 0 | E75: =VG!H99 -> 0
A76: =VG!A100 ->  | B76: =VG!B100 -> 0 | C76: =VG!E100 -> 0 | D76: =VG!G100 -> 0 | E76: =VG!H100 -> 0
A77: =VG!A101 ->  | B77: =VG!B101 -> 0 | C77: =VG!E101 -> 0 | D77: =VG!G101 -> 0 | E77: =VG!H101 -> 0
A78: =VG!A102 ->  | B78: =VG!B102 -> 0 | C78: =VG!E102 -> 0 | D78: =VG!G102 -> 0 | E78: =VG!H102 -> 0
A79: =VG!A103 ->  | B79: =VG!B103 -> 0 | C79: =VG!E103 -> 0 | D79: =VG!G103 -> 0 | E79: =VG!H103 -> 0
A80: =VG!A104 ->  | B80: =VG!B104 -> 0 | C80: =VG!E104 -> 0 | D80: =VG!G104 -> 0 | E80: =VG!H104 -> 0
A81: =VG!A105 ->  | B81: =VG!B105 -> 0 | C81: =VG!E105 -> 0 | D81: =VG!G105 -> 0 | E81: =VG!H105 -> 0
A82: =VG!A106 ->  | B82: =VG!B106 -> 0 | C82: =VG!E106 -> 0 | D82: =VG!G106 -> 0 | E82: =VG!H106 -> 0
A83: =VG!A107 ->  | B83: =VG!B107 -> 0 | C83: =VG!E107 -> 0 | D83: =VG!G107 -> 0 | E83: =VG!H107 -> 0
A84: =VG!A108 ->  | B84: =VG!B108 -> 0 | C84: =VG!E108 -> 0 | D84: =VG!G108 -> 0 | E84: =VG!H108 -> 0
A85: =VG!A109 ->  | B85: =VG!B109 -> 0 | C85: =VG!E109 -> 0 | D85: =VG!G109 -> 0 | E85: =VG!H109 -> 0
A86: =VG!A110 ->  | B86: =VG!B110 -> 0 | C86: =VG!E110 -> 0 | D86: =VG!G110 -> 0 | E86: =VG!H110 -> 0
A87: =VG!A111 ->  | B87: =VG!B111 -> 0 | C87: =VG!E111 -> 0 | D87: =VG!G111 -> 0 | E87: =VG!H111 -> 0
A88: =VG!A112 ->  | B88: =VG!B112 -> 0 | C88: =VG!E112 -> 0 | D88: =VG!G112 -> 0 | E88: =VG!H112 -> 0
A89: =VG!A113 ->  | B89: =VG!B113 -> 0 | C89: =VG!E113 -> 0 | D89: =VG!G113 -> 0 | E89: =VG!H113 -> 0
A90: =VG!A114 ->  | B90: =VG!B114 -> 0 | C90: =VG!E114 -> 0 | D90: =VG!G114 -> 0 | E90: =VG!H114 -> 0
A91: =VG!A115 ->  | B91: =VG!B115 -> 0 | C91: =VG!E115 -> 0 | D91: =VG!G115 -> 0 | E91: =VG!H115 -> 0
A92: =VG!A116 ->  | B92: =VG!B116 -> 0 | C92: =VG!E116 -> 0 | D92: =VG!G116 -> 0 | E92: =VG!H116 -> 0
A93: =VG!A117 ->  | B93: =VG!B117 -> 0 | C93: =VG!E117 -> 0 | D93: =VG!G117 -> 0 | E93: =VG!H117 -> 0
A94: =VG!A118 ->  | B94: =VG!B118 -> 0 | C94: =VG!E118 -> 0 | D94: =VG!G118 -> 0 | E94: =VG!H118 -> 0
A95: =VG!A119 ->  | B95: =VG!B119 -> 0 | C95: =VG!E119 -> 0 | D95: =VG!G119 -> 0 | E95: =VG!H119 -> 0
A96: =VG!A120 ->  | B96: =VG!B120 -> 0 | C96: =VG!E120 -> 0 | D96: =VG!G120 -> 0 | E96: =VG!H120 -> 0
A97: =VG!A121 ->  | B97: =VG!B121 -> 0 | C97: =VG!E121 -> 0 | D97: =VG!G121 -> 0 | E97: =VG!H121 -> 0
A98: =VG!A122 ->  | B98: =VG!B122 -> 0 | C98: =VG!E122 -> 0 | D98: =VG!G122 -> 0 | E98: =VG!H122 -> 0
A99: =VG!A123 ->  | B99: =VG!B123 -> 0 | C99: =VG!E123 -> 0 | D99: =VG!G123 -> 0 | E99: =VG!H123 -> 0
A100: =VG!A124 ->  | B100: =VG!B124 -> 0 | C100: =VG!E124 -> 0 | D100: =VG!G124 -> 0 | E100: =VG!H124 -> 0
A101: =VG!A125 ->  | B101: =VG!B125 -> 0 | C101: =VG!E125 -> 0 | D101: =VG!G125 -> 0 | E101: =VG!H125 -> 0
A102: =VG!A126 ->  | B102: =VG!B126 -> 0 | C102: =VG!E126 -> 0 | D102: =VG!G126 -> 0 | E102: =VG!H126 -> 0
A103: =VG!A127 ->  | B103: =VG!B127 -> 0 | C103: =VG!E127 -> 0 | D103: =VG!G127 -> 0 | E103: =VG!H127 -> 0
A104: =VG!A128 ->  | B104: =VG!B128 -> 0 | C104: =VG!E128 -> 0 | D104: =VG!G128 -> 0 | E104: =VG!H128 -> 0
A105: =VG!A129 ->  | B105: =VG!B129 -> 0 | C105: =VG!E129 -> 0 | D105: =VG!G129 -> 0 | E105: =VG!H129 -> 0
A106: =VG!A130 ->  | B106: =VG!B130 -> 0 | C106: =VG!E130 -> 0 | D106: =VG!G130 -> 0 | E106: =VG!H130 -> 0
A107: =VG!A131 ->  | B107: =VG!B131 -> 0 | C107: =VG!E131 -> 0 | D107: =VG!G131 -> 0 | E107: =VG!H131 -> 0
A108: =VG!A132 ->  | B108: =VG!B132 -> 0 | C108: =VG!E132 -> 0 | D108: =VG!G132 -> 0 | E108: =VG!H132 -> 0
A109: =VG!A133 ->  | B109: =VG!B133 -> 0 | C109: =VG!E133 -> 0 | D109: =VG!G133 -> 0 | E109: =VG!H133 -> 0
A110: =VG!A134 ->  | B110: =VG!B134 -> 0 | C110: =VG!E134 -> 0 | D110: =VG!G134 -> 0 | E110: =VG!H134 -> 0
A112: =CONCATENATE(B!A4,B!B1,VG!D17,VG!H17,B!A5) -> Yukarıda Adı, Özellikleri ve miktarı belirtilen Okul İhtiyacı için ihtiyaç duyulan malın / malzemenin satın alınması uygundur. Gereğini rica ederim.
D115: =VG!D11 -> 0
D116: =VG!D12 -> Okul Müdürü

Sheet KMSYN
A1: =VG!A5 -> T.C.
A2: =VG!A6 -> OSMANİYE VALİLİĞİ
A3: =VG!A7 -> Erdem Bayazıt İmam Hatip Ortaokulu Müdürlüğü
A6: Sayı : | B6: =CONCATENATE(VG!D10,B!D1,VG!F24) -> -903.07.01/2021-1 | F6: =VG!D24 -> 2021-09-21
A7: Konu: | B7: Komisyon Görevlendirme
A10: MÜDÜRLÜK MAKAMINA
A13: =CONCATENATE(B!A7,VG!D17,VG!H17,B!B7,B!C7,B!A8) -> Okulumuza Okul İhtiyacı için 2021 mali yılı ödeneğinde yer alan miktar doğrultusunda oluşturulacak komisyon marifetiyle 4734 sayılı Kamu İhale Kanununun 22/d maddesine göre doğrudan temin yöntemi ile satın alınacaktır. Söz konusu malzeme alımı için piyasa araştırması yapılması, teklif mektuplarının dağıtılması, değerlendirilmesi ve alınan malın / malzemenin muayene ve kabulünü yapmak üzere aşağıda adı soyadı ile unvanları yazılı personellerin görevlendirilmesini Olurlarınıza arz ederim.
E22: =VG!D13 -> 0
E23: Müdür Yardımcısı
A28: OLUR
A30: =VG!D24 -> 2021-09-21
A31: =VG!D11 -> 0
A32: =VG!D12 -> Okul Müdürü
B38: SATIN ALMA KOMİSYONU
B39: =VG!J6 -> 0 | D39: =VG!M6 -> Öğretmen
B40: =VG!J7 -> 0 | D40: =VG!M7 -> Öğretmen
B41: =VG!J8 -> 0 | D41: =VG!M8 -> Müdür Yardımcsısı
B42: MUAYENE VE KABUL KOMİSYONU
B43: =VG!J11 -> 0 | D43: =VG!M11 -> Öğretmen
B44: =VG!J12 -> 0 | D44: =VG!M12 -> Öğretmen
B45: =VG!J13 -> 0 | D45: =VG!M13 -> 0

Sheet RAYİÇ
A1: =VG!A5 -> T.C.
A2: =VG!A6 -> OSMANİYE VALİLİĞİ
A3: =VG!A7 -> Erdem Bayazıt İmam Hatip Ortaokulu Müdürlüğü
B6: Piyasa Fiyatının Ait Olduğu Tarih : | C6: =VG!D25 -> 2021-09-21
B7: Fiyat Tespitinin Yapıldığı Tarih : | C7: =VG!D25 -> 2021-09-21
B8: Evrak Numarası : | C8: =CONCATENATE(VG!D10,B!D2,VG!F25) -> -934.01/2021-1
A12: PİYASA ARAŞTIRMASI (RAYİÇ FİYAT TESPİTİ)
A13: SIRA | B13: ADI | D13: ÖZELLİĞİ | E13: MİKTARI | F13: BİRİMİ | G13: BİRİM FİYATI | H13: TOPLAM TUTAR
A14: =VG!A35 -> 1 | B14: =VG!B35 -> Perde | D14: =VG!E35 -> Fon | E14: =VG!G35 -> 120 | F14: =VG!H35 -> Metrekare
A15: =VG!A36 -> 2 | B15: =VG!B36 -> Perde | D15: =VG!E36 -> Zebra | E15: =VG!G36 -> 30 | F15: =VG!H36 -> Metrekare
A16: =VG!A37 -> 3 | B16: =VG!B37 -> Perde | D16: =VG!E37 -> Karartma | E16: =VG!G37 -> 34 | F16: =VG!H37 -> Metrekare
A17: =VG!A38 ->  | B17: =VG!B38 -> 0 | D17: =VG!E38 -> 0 | E17: =VG!G38 -> 0 | F17: =VG!H38 -> 0
A18: =VG!A39 ->  | B18: =VG!B39 -> 0 | D18: =VG!E39 -> 0 | E18: =VG!G39 -> 0 | F18: =VG!H39 -> 0
A19: =VG!A40 ->  | B19: =VG!B40 -> 0 | D19: =VG!E40 -> 0 | E19: =VG!G40 -> 0 | F19: =VG!H40 -> 0
A20: =VG!A41 ->  | B20: =VG!B41 -> 0 | D20: =VG!E41 -> 0 | E20: =VG!G41 -> 0 | F20: =VG!H41 -> 0
A21: =VG!A42 ->  | B21: =VG!B42 -> 0 | D21: =VG!E42 -> 0 | E21: =VG!G42 -> 0 | F21: =VG!H42 -> 0
A22: =VG!A43 ->  | B22: =VG!B43 -> 0 | D22: =VG!E43 -> 0 | E22: =VG!G43 -> 0 | F22: =VG!H43 -> 0
A23: =VG!A44 ->  | B23: =VG!B44 -> 0 | D23: =VG!E44 -> 0 | E23: =VG!G44 -> 0 | F23: =VG!H44 -> 0
A24: =VG!A45 ->  | B24: =VG!B45 -> 0 | D24: =VG!E45 -> 0 | E24: =VG!G45 -> 0 | F24: =VG!H45 -> 0
A25: =VG!A46 ->  | B25: =VG!B46 -> 0 | D25: =VG!E46 -> 0 | E25: =VG!G46 -> 0 | F25: =VG!H46 -> 0
A26: =VG!A47 ->  | B26: =VG!B47 -> 0 | D26: =VG!E47 -> 0 | E26: =VG!G47 -> 0 | F26: =VG!H47 -> 0
A27: =VG!A48 ->  | B27: =VG!B48 -> 0 | D27: =VG!E48 -> 0 | E27: =VG!G48 -> 0 | F27: =VG!H48 -> 0
A28: =VG!A49 ->  | B28: =VG!B49 -> 0 | D28: =VG!E49 -> 0 | E28: =VG!G49 -> 0 | F28: =VG!H49 -> 0
A29: =VG!A50 ->  | B29: =VG!B50 -> 0 | D29: =VG!E50 -> 0 | E29: =VG!G50 -> 0 | F29: =VG!H50 -> 0
A30: =VG!A51 ->  | B30: =VG!B51 -> 0 | D30: =VG!E51 -> 0 | E30: =VG!G51 -> 0 | F30: =VG!H51 -> 0
A31: =VG!A52 ->  | B31: =VG!B52 -> 0 | D31: =VG!E52 -> 0 | E31: =VG!G52 -> 0 | F31: =VG!H52 -> 0
A32: =VG!A53 ->  | B32: =VG!B53 -> 0 | D32: =VG!E53 -> 0 | E32: =VG!G53 -> 0 | F32: =VG!H53 -> 0
A33: =VG!A54 ->  | B33: =VG!B54 -> 0 | D33: =VG!E54 -> 0 | E33: =VG!G54 -> 0 | F33: =VG!H54 -> 0
A34: =VG!A55 ->  | B34: =VG!B55 -> 0 | D34: =VG!E55 -> 0 | E34: =VG!G55 -> 0 | F34: =VG!H55 -> 0
A35: =VG!A56 ->  | B35: =VG!B56 -> 0 | D35: =VG!E56 -> 0 | E35: =VG!G56 -> 0 | F35: =VG!H56 -> 0
A36: =VG!A57 ->  | B36: =VG!B57 -> 0 | D36: =VG!E57 -> 0 | E36: =VG!G57 -> 0 | F36: =VG!H57 -> 0
A37: =VG!A58 ->  | B37: =VG!B58 -> 0 | D37: =VG!E58 -> 0 | E37: =VG!G58 -> 0 | F37: =VG!H58 -> 0
A38: =VG!A59 ->  | B38: =VG!B59 -> 0 | D38: =VG!E59 -> 0 | E38: =VG!G59 -> 0 | F38: =VG!H59 -> 0
A39: =VG!A60 ->  | B39: =VG!B60 -> 0 | D39: =VG!E60 -> 0 | E39: =VG!G60 -> 0 | F39: =VG!H60 -> 0
A40: =VG!A61 ->  | B40: =VG!B61 -> 0 | D40: =VG!E61 -> 0 | E40: =VG!G61 -> 0 | F40: =VG!H61 -> 0
A41: =VG!A62 ->  | B41: =VG!B62 -> 0 | D41: =VG!E62 -> 0 | E41: =VG!G62 -> 0 | F41: =VG!H62 -> 0
A42: =VG!A63 ->  | B42: =VG!B63 -> 0 | D42: =VG!E63 -> 0 | E42: =VG!G63 -> 0 | F42: =VG!H63 -> 0
A43: =VG!A64 ->  | B43: =VG!B64 -> 0 | D43: =VG!E64 -> 0 | E43: =VG!G64 -> 0 | F43: =VG!H64 -> 0
A44: =VG!A65 ->  | B44: =VG!B65 -> 0 | D44: =VG!E65 -> 0 | E44: =VG!G65 -> 0 | F44: =VG!H65 -> 0
A45: =VG!A66 ->  | B45: =VG!B66 -> 0 | D45: =VG!E66 -> 0 | E45: =VG!G66 -> 0 | F45: =VG!H66 -> 0
A46: =VG!A67 ->  | B46: =VG!B67 -> 0 | D46: =VG!E67 -> 0 | E46: =VG!G67 -> 0 | F46: =VG!H67 -> 0
A47: =VG!A68 ->  | B47: =VG!B68 -> 0 | D47: =VG!E68 -> 0 | E47: =VG!G68 -> 0 | F47: =VG!H68 -> 0
A48: =VG!A69 ->  | B48: =VG!B69 -> 0 | D48: =VG!E69 -> 0 | E48: =VG!G69 -> 0 | F48: =VG!H69 -> 0
A49: =VG!A70 ->  | B49: =VG!B70 -> 0 | D49: =VG!E70 -> 0 | E49: =VG!G70 -> 0 | F49: =VG!H70 -> 0
A50: =VG!A71 ->  | B50: =VG!B71 -> 0 | D50: =VG!E71 -> 0 | E50: =VG!G71 -> 0 | F50: =VG!H71 -> 0
A51: =VG!A72 ->  | B51: =VG!B72 -> 0 | D51: =VG!E72 -> 0 | E51: =VG!G72 -> 0 | F51: =VG!H72 -> 0
A52: =VG!A73 ->  | B52: =VG!B73 -> 0 | D52: =VG!E73 -> 0 | E52: =VG!G73 -> 0 | F52: =VG!H73 -> 0
A53: =VG!A74 ->  | B53: =VG!B74 -> 0 | D53: =VG!E74 -> 0 | E53: =VG!G74 -> 0 | F53: =VG!H74 -> 0
A54: =VG!A75 ->  | B54: =VG!B75 -> 0 | D54: =VG!E75 -> 0 | E54: =VG!G75 -> 0 | F54: =VG!H75 -> 0
A55: =VG!A76 ->  | B55: =VG!B76 -> 0 | D55: =VG!E76 -> 0 | E55: =VG!G76 -> 0 | F55: =VG!H76 -> 0
A56: =VG!A77 ->  | B56: =VG!B77 -> 0 | D56: =VG!E77 -> 0 | E56: =VG!G77 -> 0 | F56: =VG!H77 -> 0
A57: =VG!A78 ->  | B57: =VG!B78 -> 0 | D57: =VG!E78 -> 0 | E57: =VG!G78 -> 0 | F57: =VG!H78 -> 0
A58: =VG!A79 ->  | B58: =VG!B79 -> 0 | D58: =VG!E79 -> 0 | E58: =VG!G79 -> 0 | F58: =VG!H79 -> 0
A59: =VG!A80 ->  | B59: =VG!B80 -> 0 | D59: =VG!E80 -> 0 | E59: =VG!G80 -> 0 | F59: =VG!H80 -> 0
A60: =VG!A81 ->  | B60: =VG!B81 -> 0 | D60: =VG!E81 -> 0 | E60: =VG!G81 -> 0 | F60: =VG!H81 -> 0
A61: =VG!A82 ->  | B61: =VG!B82 -> 0 | D61: =VG!E82 -> 0 | E61: =VG!G82 -> 0 | F61: =VG!H82 -> 0
A62: =VG!A83 ->  | B62: =VG!B83 -> 0 | D62: =VG!E83 -> 0 | E62: =VG!G83 -> 0 | F62: =VG!H83 -> 0
A63: =VG!A84 ->  | B63: =VG!B84 -> 0 | D63: =VG!E84 -> 0 | E63: =VG!G84 -> 0 | F63: =VG!H84 -> 0
A64: =VG!A85 ->  | B64: =VG!B85 -> 0 | D64: =VG!E85 -> 0 | E64: =VG!G85 -> 0 | F64: =VG!H85 -> 0
A65: =VG!A86 ->  | B65: =VG!B86 -> 0 | D65: =VG!E86 -> 0 | E65: =VG!G86 -> 0 | F65: =VG!H86 -> 0
A66: =VG!A87 ->  | B66: =VG!B87 -> 0 | D66: =VG!E87 -> 0 | E66: =VG!G87 -> 0 | F66: =VG!H87 -> 0
A67: =VG!A88 ->  | B67: =VG!B88 -> 0 | D67: =VG!E88 -> 0 | E67: =VG!G88 -> 0 | F67: =VG!H88 -> 0
A68: =VG!A89 ->  | B68: =VG!B89 -> 0 | D68: =VG!E89 -> 0 | E68: =VG!G89 -> 0 | F68: =VG!H89 -> 0
A69: =VG!A90 ->  | B69: =VG!B90 -> 0 | D69: =VG!E90 -> 0 | E69: =VG!G90 -> 0 | F69: =VG!H90 -> 0
A70: =VG!A91 ->  | B70: =VG!B91 -> 0 | D70: =VG!E91 -> 0 | E70: =VG!G91 -> 0 | F70: =VG!H91 -> 0
A71: =VG!A92 ->  | B71: =VG!B92 -> 0 | D71: =VG!E92 -> 0 | E71: =VG!G92 -> 0 | F71: =VG!H92 -> 0
A72: =VG!A93 ->  | B72: =VG!B93 -> 0 | D72: =VG!E93 -> 0 | E72: =VG!G93 -> 0 | F72: =VG!H93 -> 0
A73: =VG!A94 ->  | B73: =VG!B94 -> 0 | D73: =VG!E94 -> 0 | E73: =VG!G94 -> 0 | F73: =VG!H94 -> 0
A74: =VG!A95 ->  | B74: =VG!B95 -> 0 | D74: =VG!E95 -> 0 | E74: =VG!G95 -> 0 | F74: =VG!H95 -> 0
A75: =VG!A96 ->  | B75: =VG!B96 -> 0 | D75: =VG!E96 -> 0 | E75: =VG!G96 -> 0 | F75: =VG!H96 -> 0
A76: =VG!A97 ->  | B76: =VG!B97 -> 0 | D76: =VG!E97 -> 0 | E76: =VG!G97 -> 0 | F76: =VG!H97 -> 0
A77: =VG!A98 ->  | B77: =VG!B98 -> 0 | D77: =VG!E98 -> 0 | E77: =VG!G98 -> 0 | F77: =VG!H98 -> 0
A78: =VG!A99 ->  | B78: =VG!B99 -> 0 | D78: =VG!E99 -> 0 | E78: =VG!G99 -> 0 | F78: =VG!H99 -> 0
A79: =VG!A100 ->  | B79: =VG!B100 -> 0 | D79: =VG!E100 -> 0 | E79: =VG!G100 -> 0 | F79: =VG!H100 -> 0
A80: =VG!A101 ->  | B80: =VG!B101 -> 0 | D80: =VG!E101 -> 0 | E80: =VG!G101 -> 0 | F80: =VG!H101 -> 0
A81: =VG!A102 ->  | B81: =VG!B102 -> 0 | D81: =VG!E102 -> 0 | E81: =VG!G102 -> 0 | F81: =VG!H102 -> 0
A82: =VG!A103 ->  | B82: =VG!B103 -> 0 | D82: =VG!E103 -> 0 | E82: =VG!G103 -> 0 | F82: =VG!H103 -> 0
A83: =VG!A104 ->  | B83: =VG!B104 -> 0 | D83: =VG!E104 -> 0 | E83: =VG!G104 -> 0 | F83: =VG!H104 -> 0
A84: =VG!A105 ->  | B84: =VG!B105 -> 0 | D84: =VG!E105 -> 0 | E84: =VG!G105 -> 0 | F84: =VG!H105 -> 0
A85: =VG!A106 ->  | B85: =VG!B106 -> 0 | D85: =VG!E106 -> 0 | E85: =VG!G106 -> 0 | F85: =VG!H106 -> 0
A86: =VG!A107 ->  | B86: =VG!B107 -> 0 | D86: =VG!E107 -> 0 | E86: =VG!G107 -> 0 | F86: =VG!H107 -> 0
A87: =VG!A108 ->  | B87: =VG!B108 -> 0 | D87: =VG!E108 -> 0 | E87: =VG!G108 -> 0 | F87: =VG!H108 -> 0
A88: =VG!A109 ->  | B88: =VG!B109 -> 0 | D88: =VG!E109 -> 0 | E88: =VG!G109 -> 0 | F88: =VG!H109 -> 0
A89: =VG!A110 ->  | B89: =VG!B110 -> 0 | D89: =VG!E110 -> 0 | E89: =VG!G110 -> 0 | F89: =VG!H110 -> 0
A90: =VG!A111 ->  | B90: =VG!B111 -> 0 | D90: =VG!E111 -> 0 | E90: =VG!G111 -> 0 | F90: =VG!H111 -> 0
A91: =VG!A112 ->  | B91: =VG!B112 -> 0 | D91: =VG!E112 -> 0 | E91: =VG!G112 -> 0 | F91: =VG!H112 -> 0
A92: =VG!A113 ->  | B92: =VG!B113 -> 0 | D92: =VG!E113 -> 0 | E92: =VG!G113 -> 0 | F92: =VG!H113 -> 0
A93: =VG!A114 ->  | B93: =VG!B114 -> 0 | D93: =VG!E114 -> 0 | E93: =VG!G114 -> 0 | F93: =VG!H114 -> 0
A94: =VG!A115 ->  | B94: =VG!B115 -> 0 | D94: =VG!E115 -> 0 | E94: =VG!G115 -> 0 | F94: =VG!H115 -> 0
A95: =VG!A116 ->  | B95: =VG!B116 -> 0 | D95: =VG!E116 -> 0 | E95: =VG!G116 -> 0 | F95: =VG!H116 -> 0
A96: =VG!A117 ->  | B96: =VG!B117 -> 0 | D96: =VG!E117 -> 0 | E96: =VG!G117 -> 0 | F96: =VG!H117 -> 0
A97: =VG!A118 ->  | B97: =VG!B118 -> 0 | D97: =VG!E118 -> 0 | E97: =VG!G118 -> 0 | F97: =VG!H118 -> 0
A98: =VG!A119 ->  | B98: =VG!B119 -> 0 | D98: =VG!E119 -> 0 | E98: =VG!G119 -> 0 | F98: =VG!H119 -> 0
A99: =VG!A120 ->  | B99: =VG!B120 -> 0 | D99: =VG!E120 -> 0 | E99: =VG!G120 -> 0 | F99: =VG!H120 -> 0
A100: =VG!A121 ->  | B100: =VG!B121 -> 0 | D100: =VG!E121 -> 0 | E100: =VG!G121 -> 0 | F100: =VG!H121 -> 0
A101: =VG!A122 ->  | B101: =VG!B122 -> 0 | D101: =VG!E122 -> 0 | E101: =VG!G122 -> 0 | F101: =VG!H122 -> 0
A102: =VG!A123 ->  | B102: =VG!B123 -> 0 | D102: =VG!E123 -> 0 | E102: =VG!G123 -> 0 | F102: =VG!H123 -> 0
A103: =VG!A124 ->  | B103: =VG!B124 -> 0 | D103: =VG!E124 -> 0 | E103: =VG!G124 -> 0 | F103: =VG!H124 -> 0
A104: =VG!A125 ->  | B104: =VG!B125 -> 0 | D104: =VG!E125 -> 0 | E104: =VG!G125 -> 0 | F104: =VG!H125 -> 0
A105: =VG!A126 ->  | B105: =VG!B126 -> 0 | D105: =VG!E126 -> 0 | E105: =VG!G126 -> 0 | F105: =VG!H126 -> 0
A106: =VG!A127 ->  | B106: =VG!B127 -> 0 | D106: =VG!E127 -> 0 | E106: =VG!G127 -> 0 | F106: =VG!H127 -> 0
A107: =VG!A128 ->  | B107: =VG!B128 -> 0 | D107: =VG!E128 -> 0 | E107: =VG!G128 -> 0 | F107: =VG!H128 -> 0
A108: =VG!A129 ->  | B108: =VG!B129 -> 0 | D108: =VG!E129 -> 0 | E108: =VG!G129 -> 0 | F108: =VG!H129 -> 0
A109: =VG!A130 ->  | B109: =VG!B130 -> 0 | D109: =VG!E130 -> 0 | E109: =VG!G130 -> 0 | F109: =VG!H130 -> 0
A110: =VG!A131 ->  | B110: =VG!B131 -> 0 | D110: =VG!E131 -> 0 | E110: =VG!G131 -> 0 | F110: =VG!H131 -> 0
A111: =VG!A132 ->  | B111: =VG!B132 -> 0 | D111: =VG!E132 -> 0 | E111: =VG!G132 -> 0 | F111: =VG!H132 -> 0
A112: =VG!A133 ->  | B112: =VG!B133 -> 0 | D112: =VG!E133 -> 0 | E112: =VG!G133 -> 0 | F112: =VG!H133 -> 0
A113: =VG!A134 ->  | B113: =VG!B134 -> 0 | D113: =VG!E134 -> 0 | E113: =VG!G134 -> 0 | F113: =VG!H134 -> 0
A114: TOPLAM(KDV HARİÇ)
A116: Rayiç Fiyatın Alındığı Firma /Kişi /İşletme | C116: Tespiti Yapan Görevliler
A117: İmza / Kaşe | E117: =VG!D25 -> 2021-09-21
C119: =VG!J8 -> 0 | E119: =VG!J7 -> 0 | G119: =VG!J6 -> 0
C120: =VG!M8 -> Müdür Yardımcsısı | E120: =VG!M7 -> Öğretmen | G120: =VG!M6 -> Öğretmen
A124: Fiyat Tespitinde Aranacak Şartlar 1- Fiyatlar KDV hariç olacaktır. 2- Teklif edilecek malın tamamı teslim edilecektir.(Hizmet Alımı Hariç) 3- İstenen özelliklere hayiz olmayan malzemeler iade edilecektir. 4- Nakliye ücreti firmaya ait olup mal okula teslim edilecektir.
A125: NOT : - Bu form 2 nüsha tanzim edilecektir. 1. Nüsha fiyat alınan firmaya 2. Nüsha okula aittir. - İmza ve kaşeyi vermeyi kabul eden işletmeden alınacak aksi halde alınmayacaktır

Sheet TM
A1: =VG!A5 -> T.C.
A2: =VG!A6 -> OSMANİYE VALİLİĞİ
A3: =VG!A7 -> Erdem Bayazıt İmam Hatip Ortaokulu Müdürlüğü
A6: Sayı | B6: =CONCATENATE(VG!D10,B!D2,VG!F27) -> -934.01/2021-1 | G6: =VG!D27 -> 2021-09-21
A7: Konu | B7: Teklif Mektubu
A10: SAYIN FİRMA YETKİLİSİ
A13: =CONCATENATE(B!A27,B!A25,B!A26,B!A28) -> Erdem Bayazıt İmam Hatip Ortaokulu Müdürlüğünün ihtiyacı olan aşağıda adı, özelliği ve miktarı yazılı malzeme doğrudan temin yoluyla satın alınacaktır.
A14: =CONCATENATE(B!A15,B!A19,B!A17,B!A20,B!A18) -> Erdem Bayazıt İmam Hatip Ortaokulu Müdürlüğünün isteği doğrultusunda temin edilecek malzemelerin 1. sınıf kalitede olmasına özen gösterilecektir. Malzemeler muayene ve teslim alma komisyonunca muayene edildikten sonra teslim alınacaktır. Malzemeler sağlam olarak teslim alındıktan sonara fatura kesilecek ve ödeme yapılacaktır. Verilen teklifler KDV hariç birim fiyatı üzerinden rakam ve yazı ile yazılacaktır. Teklif mektupları kapalı zarf içerisinde 44462 tarihinde saat 10:00’e kadar satın alma komisyon başkanına teslim edilecektir.e kadar satın alma komisyon başkanına teslim edilecektir.
A15: Fiyat teklifinde bulunmanız rica olunur.
A18: =VG!J8 -> 0 | C18: =VG!J7 -> 0 | F18: =VG!J6 -> 0
A19: =VG!M8 -> Müdür Yardımcsısı | C19: =VG!M7 -> Öğretmen | F19: =VG!M6 -> Öğretmen
A24: SIRA | B24: ADI | C24: ÖZELLİĞİ | D24: MİKTARI | E24: BİRİMİ | F24: BİRİM FİYATI | G24: TOPLAM TUTAR
A25: =VG!A35 -> 1 | B25: =VG!B35 -> Perde | C25: =VG!E35 -> Fon | D25: =VG!G35 -> 120 | E25: =VG!H35 -> Metrekare
A26: =VG!A36 -> 2 | B26: =VG!B36 -> Perde | C26: =VG!E36 -> Zebra | D26: =VG!G36 -> 30 | E26: =VG!H36 -> Metrekare
A27: =VG!A37 -> 3 | B27: =VG!B37 -> Perde | C27: =VG!E37 -> Karartma | D27: =VG!G37 -> 34 | E27: =VG!H37 -> Metrekare
A28: =VG!A38 ->  | B28: =VG!B38 -> 0 | C28: =VG!E38 -> 0 | D28: =VG!G38 -> 0 | E28: =VG!H38 -> 0
A29: =VG!A39 ->  | B29: =VG!B39 -> 0 | C29: =VG!E39 -> 0 | D29: =VG!G39 -> 0 | E29: =VG!H39 -> 0
A30: =VG!A40 ->  | B30: =VG!B40 -> 0 | C30: =VG!E40 -> 0 | D30: =VG!G40 -> 0 | E30: =VG!H40 -> 0
A31: =VG!A41 ->  | B31: =VG!B41 -> 0 | C31: =VG!E41 -> 0 | D31: =VG!G41 -> 0 | E31: =VG!H41 -> 0
A32: =VG!A42 ->  | B32: =VG!B42 -> 0 | C32: =VG!E42 -> 0 | D32: =VG!G42 -> 0 | E32: =VG!H42 -> 0
A33: =VG!A43 ->  | B33: =VG!B43 -> 0 | C33: =VG!E43 -> 0 | D33: =VG!G43 -> 0 | E33: =VG!H43 -> 0
A34: =VG!A44 ->  | B34: =VG!B44 -> 0 | C34: =VG!E44 -> 0 | D34: =VG!G44 -> 0 | E34: =VG!H44 -> 0
A35: =VG!A45 ->  | B35: =VG!B45 -> 0 | C35: =VG!E45 -> 0 | D35: =VG!G45 -> 0 | E35: =VG!H45 -> 0
A36: =VG!A46 ->  | B36: =VG!B46 -> 0 | C36: =VG!E46 -> 0 | D36: =VG!G46 -> 0 | E36: =VG!H46 -> 0
A37: =VG!A47 ->  | B37: =VG!B47 -> 0 | C37: =VG!E47 -> 0 | D37: =VG!G47 -> 0 | E37: =VG!H47 -> 0
A38: =VG!A48 ->  | B38: =VG!B48 -> 0 | C38: =VG!E48 -> 0 | D38: =VG!G48 -> 0 | E38: =VG!H48 -> 0
A39: =VG!A49 ->  | B39: =VG!B49 -> 0 | C39: =VG!E49 -> 0 | D39: =VG!G49 -> 0 | E39: =VG!H49 -> 0
A40: =VG!A50 ->  | B40: =VG!B50 -> 0 | C40: =VG!E50 -> 0 | D40: =VG!G50 -> 0 | E40: =VG!H50 -> 0
A41: =VG!A51 ->  | B41: =VG!B51 -> 0 | C41: =VG!E51 -> 0 | D41: =VG!G51 -> 0 | E41: =VG!H51 -> 0
A42: =VG!A52 ->  | B42: =VG!B52 -> 0 | C42: =VG!E52 -> 0 | D42: =VG!G52 -> 0 | E42: =VG!H52 -> 0
A43: =VG!A53 ->  | B43: =VG!B53 -> 0 | C43: =VG!E53 -> 0 | D43: =VG!G53 -> 0 | E43: =VG!H53 -> 0
A44: =VG!A54 ->  | B44: =VG!B54 -> 0 | C44: =VG!E54 -> 0 | D44: =VG!G54 -> 0 | E44: =VG!H54 -> 0
A45: =VG!A55 ->  | B45: =VG!B55 -> 0 | C45: =VG!E55 -> 0 | D45: =VG!G55 -> 0 | E45: =VG!H55 -> 0
A46: =VG!A56 ->  | B46: =VG!B56 -> 0 | C46: =VG!E56 -> 0 | D46: =VG!G56 -> 0 | E46: =VG!H56 -> 0
A47: =VG!A57 ->  | B47: =VG!B57 -> 0 | C47: =VG!E57 -> 0 | D47: =VG!G57 -> 0 | E47: =VG!H57 -> 0
A48: =VG!A58 ->  | B48: =VG!B58 -> 0 | C48: =VG!E58 -> 0 | D48: =VG!G58 -> 0 | E48: =VG!H58 -> 0
A49: =VG!A59 ->  | B49: =VG!B59 -> 0 | C49: =VG!E59 -> 0 | D49: =VG!G59 -> 0 | E49: =VG!H59 -> 0
A50: =VG!A60 ->  | B50: =VG!B60 -> 0 | C50: =VG!E60 -> 0 | D50: =VG!G60 -> 0 | E50: =VG!H60 -> 0
A51: =VG!A61 ->  | B51: =VG!B61 -> 0 | C51: =VG!E61 -> 0 | D51: =VG!G61 -> 0 | E51: =VG!H61 -> 0
A52: =VG!A62 ->  | B52: =VG!B62 -> 0 | C52: =VG!E62 -> 0 | D52: =VG!G62 -> 0 | E52: =VG!H62 -> 0
A53: =VG!A63 ->  | B53: =VG!B63 -> 0 | C53: =VG!E63 -> 0 | D53: =VG!G63 -> 0 | E53: =VG!H63 -> 0
A54: =VG!A64 ->  | B54: =VG!B64 -> 0 | C54: =VG!E64 -> 0 | D54: =VG!G64 -> 0 | E54: =VG!H64 -> 0
A55: =VG!A65 ->  | B55: =VG!B65 -> 0 | C55: =VG!E65 -> 0 | D55: =VG!G65 -> 0 | E55: =VG!H65 -> 0
A56: =VG!A66 ->  | B56: =VG!B66 -> 0 | C56: =VG!E66 -> 0 | D56: =VG!G66 -> 0 | E56: =VG!H66 -> 0
A57: =VG!A67 ->  | B57: =VG!B67 -> 0 | C57: =VG!E67 -> 0 | D57: =VG!G67 -> 0 | E57: =VG!H67 -> 0
A58: =VG!A68 ->  | B58: =VG!B68 -> 0 | C58: =VG!E68 -> 0 | D58: =VG!G68 -> 0 | E58: =VG!H68 -> 0
A59: =VG!A69 ->  | B59: =VG!B69 -> 0 | C59: =VG!E69 -> 0 | D59: =VG!G69 -> 0 | E59: =VG!H69 -> 0
A60: =VG!A70 ->  | B60: =VG!B70 -> 0 | C60: =VG!E70 -> 0 | D60: =VG!G70 -> 0 | E60: =VG!H70 -> 0
A61: =VG!A71 ->  | B61: =VG!B71 -> 0 | C61: =VG!E71 -> 0 | D61: =VG!G71 -> 0 | E61: =VG!H71 -> 0
A62: =VG!A72 ->  | B62: =VG!B72 -> 0 | C62: =VG!E72 -> 0 | D62: =VG!G72 -> 0 | E62: =VG!H72 -> 0
A63: =VG!A73 ->  | B63: =VG!B73 -> 0 | C63: =VG!E73 -> 0 | D63: =VG!G73 -> 0 | E63: =VG!H73 -> 0
A64: =VG!A74 ->  | B64: =VG!B74 -> 0 | C64: =VG!E74 -> 0 | D64: =VG!G74 -> 0 | E64: =VG!H74 -> 0
A65: =VG!A75 ->  | B65: =VG!B75 -> 0 | C65: =VG!E75 -> 0 | D65: =VG!G75 -> 0 | E65: =VG!H75 -> 0
A66: =VG!A76 ->  | B66: =VG!B76 -> 0 | C66: =VG!E76 -> 0 | D66: =VG!G76 -> 0 | E66: =VG!H76 -> 0
A67: =VG!A77 ->  | B67: =VG!B77 -> 0 | C67: =VG!E77 -> 0 | D67: =VG!G77 -> 0 | E67: =VG!H77 -> 0
A68: =VG!A78 ->  | B68: =VG!B78 -> 0 | C68: =VG!E78 -> 0 | D68: =VG!G78 -> 0 | E68: =VG!H78 -> 0
A69: =VG!A79 ->  | B69: =VG!B79 -> 0 | C69: =VG!E79 -> 0 | D69: =VG!G79 -> 0 | E69: =VG!H79 -> 0
A70: =VG!A80 ->  | B70: =VG!B80 -> 0 | C70: =VG!E80 -> 0 | D70: =VG!G80 -> 0 | E70: =VG!H80 -> 0
A71: =VG!A81 ->  | B71: =VG!B81 -> 0 | C71: =VG!E81 -> 0 | D71: =VG!G81 -> 0 | E71: =VG!H81 -> 0
A72: =VG!A82 ->  | B72: =VG!B82 -> 0 | C72: =VG!E82 -> 0 | D72: =VG!G82 -> 0 | E72: =VG!H82 -> 0
A73: =VG!A83 ->  | B73: =VG!B83 -> 0 | C73: =VG!E83 -> 0 | D73: =VG!G83 -> 0 | E73: =VG!H83 -> 0
A74: =VG!A84 ->  | B74: =VG!B84 -> 0 | C74: =VG!E84 -> 0 | D74: =VG!G84 -> 0 | E74: =VG!H84 -> 0
A75: =VG!A85 ->  | B75: =VG!B85 -> 0 | C75: =VG!E85 -> 0 | D75: =VG!G85 -> 0 | E75: =VG!H85 -> 0
A76: =VG!A86 ->  | B76: =VG!B86 -> 0 | C76: =VG!E86 -> 0 | D76: =VG!G86 -> 0 | E76: =VG!H86 -> 0
A77: =VG!A87 ->  | B77: =VG!B87 -> 0 | C77: =VG!E87 -> 0 | D77: =VG!G87 -> 0 | E77: =VG!H87 -> 0
A78: =VG!A88 ->  | B78: =VG!B88 -> 0 | C78: =VG!E88 -> 0 | D78: =VG!G88 -> 0 | E78: =VG!H88 -> 0
A79: =VG!A89 ->  | B79: =VG!B89 -> 0 | C79: =VG!E89 -> 0 | D79: =VG!G89 -> 0 | E79: =VG!H89 -> 0
A80: =VG!A90 ->  | B80: =VG!B90 -> 0 | C80: =VG!E90 -> 0 | D80: =VG!G90 -> 0 | E80: =VG!H90 -> 0
A81: =VG!A91 ->  | B81: =VG!B91 -> 0 | C81: =VG!E91 -> 0 | D81: =VG!G91 -> 0 | E81: =VG!H91 -> 0
A82: =VG!A92 ->  | B82: =VG!B92 -> 0 | C82: =VG!E92 -> 0 | D82: =VG!G92 -> 0 | E82: =VG!H92 -> 0
A83: =VG!A93 ->  | B83: =VG!B93 -> 0 | C83: =VG!E93 -> 0 | D83: =VG!G93 -> 0 | E83: =VG!H93 -> 0
A84: =VG!A94 ->  | B84: =VG!B94 -> 0 | C84: =VG!E94 -> 0 | D84: =VG!G94 -> 0 | E84: =VG!H94 -> 0
A85: =VG!A95 ->  | B85: =VG!B95 -> 0 | C85: =VG!E95 -> 0 | D85: =VG!G95 -> 0 | E85: =VG!H95 -> 0
A86: =VG!A96 ->  | B86: =VG!B96 -> 0 | C86: =VG!E96 -> 0 | D86: =VG!G96 -> 0 | E86: =VG!H96 -> 0
A87: =VG!A97 ->  | B87: =VG!B97 -> 0 | C87: =VG!E97 -> 0 | D87: =VG!G97 -> 0 | E87: =VG!H97 -> 0
A88: =VG!A98 ->  | B88: =VG!B98 -> 0 | C88: =VG!E98 -> 0 | D88: =VG!G98 -> 0 | E88: =VG!H98 -> 0
A89: =VG!A99 ->  | B89: =VG!B99 -> 0 | C89: =VG!E99 -> 0 | D89: =VG!G99 -> 0 | E89: =VG!H99 -> 0
A90: =VG!A100 ->  | B90: =VG!B100 -> 0 | C90: =VG!E100 -> 0 | D90: =VG!G100 -> 0 | E90: =VG!H100 -> 0
A91: =VG!A101 ->  | B91: =VG!B101 -> 0 | C91: =VG!E101 -> 0 | D91: =VG!G101 -> 0 | E91: =VG!H101 -> 0
A92: =VG!A102 ->  | B92: =VG!B102 -> 0 | C92: =VG!E102 -> 0 | D92: =VG!G102 -> 0 | E92: =VG!H102 -> 0
A93: =VG!A103 ->  | B93: =VG!B103 -> 0 | C93: =VG!E103 -> 0 | D93: =VG!G103 -> 0 | E93: =VG!H103 -> 0
A94: =VG!A104 ->  | B94: =VG!B104 -> 0 | C94: =VG!E104 -> 0 | D94: =VG!G104 -> 0 | E94: =VG!H104 -> 0
A95: =VG!A105 ->  | B95: =VG!B105 -> 0 | C95: =VG!E105 -> 0 | D95: =VG!G105 -> 0 | E95: =VG!H105 -> 0
A96: =VG!A106 ->  | B96: =VG!B106 -> 0 | C96: =VG!E106 -> 0 | D96: =VG!G106 -> 0 | E96: =VG!H106 -> 0
A97: =VG!A107 ->  | B97: =VG!B107 -> 0 | C97: =VG!E107 -> 0 | D97: =VG!G107 -> 0 | E97: =VG!H107 -> 0
A98: =VG!A108 ->  | B98: =VG!B108 -> 0 | C98: =VG!E108 -> 0 | D98: =VG!G108 -> 0 | E98: =VG!H108 -> 0
A99: =VG!A109 ->  | B99: =VG!B109 -> 0 | C99: =VG!E109 -> 0 | D99: =VG!G109 -> 0 | E99: =VG!H109 -> 0
A100: =VG!A110 ->  | B100: =VG!B110 -> 0 | C100: =VG!E110 -> 0 | D100: =VG!G110 -> 0 | E100: =VG!H110 -> 0
A101: =VG!A111 ->  | B101: =VG!B111 -> 0 | C101: =VG!E111 -> 0 | D101: =VG!G111 -> 0 | E101: =VG!H111 -> 0
A102: =VG!A112 ->  | B102: =VG!B112 -> 0 | C102: =VG!E112 -> 0 | D102: =VG!G112 -> 0 | E102: =VG!H112 -> 0
A103: =VG!A113 ->  | B103: =VG!B113 -> 0 | C103: =VG!E113 -> 0 | D103: =VG!G113 -> 0 | E103: =VG!H113 -> 0
A104: =VG!A114 ->  | B104: =VG!B114 -> 0 | C104: =VG!E114 -> 0 | D104: =VG!G114 -> 0 | E104: =VG!H114 -> 0
A105: =VG!A115 ->  | B105: =VG!B115 -> 0 | C105: =VG!E115 -> 0 | D105: =VG!G115 -> 0 | E105: =VG!H115 -> 0
A106: =VG!A116 ->  | B106: =VG!B116 -> 0 | C106: =VG!E116 -> 0 | D106: =VG!G116 -> 0 | E106: =VG!H116 -> 0
A107: =VG!A117 ->  | B107: =VG!B117 -> 0 | C107: =VG!E117 -> 0 | D107: =VG!G117 -> 0 | E107: =VG!H117 -> 0
A108: =VG!A118 ->  | B108: =VG!B118 -> 0 | C108: =VG!E118 -> 0 | D108: =VG!G118 -> 0 | E108: =VG!H118 -> 0
A109: =VG!A119 ->  | B109: =VG!B119 -> 0 | C109: =VG!E119 -> 0 | D109: =VG!G119 -> 0 | E109: =VG!H119 -> 0
A110: =VG!A120 ->  | B110: =VG!B120 -> 0 | C110: =VG!E120 -> 0 | D110: =VG!G120 -> 0 | E110: =VG!H120 -> 0
A111: =VG!A121 ->  | B111: =VG!B121 -> 0 | C111: =VG!E121 -> 0 | D111: =VG!G121 -> 0 | E111: =VG!H121 -> 0
A112: =VG!A122 ->  | B112: =VG!B122 -> 0 | C112: =VG!E122 -> 0 | D112: =VG!G122 -> 0 | E112: =VG!H122 -> 0
A113: =VG!A123 ->  | B113: =VG!B123 -> 0 | C113: =VG!E123 -> 0 | D113: =VG!G123 -> 0 | E113: =VG!H123 -> 0
A114: =VG!A124 ->  | B114: =VG!B124 -> 0 | C114: =VG!E124 -> 0 | D114: =VG!G124 -> 0 | E114: =VG!H124 -> 0
A115: =VG!A125 ->  | B115: =VG!B125 -> 0 | C115: =VG!E125 -> 0 | D115: =VG!G125 -> 0 | E115: =VG!H125 -> 0
A116: =VG!A126 ->  | B116: =VG!B126 -> 0 | C116: =VG!E126 -> 0 | D116: =VG!G126 -> 0 | E116: =VG!H126 -> 0
A117: =VG!A127 ->  | B117: =VG!B127 -> 0 | C117: =VG!E127 -> 0 | D117: =VG!G127 -> 0 | E117: =VG!H127 -> 0
A118: =VG!A128 ->  | B118: =VG!B128 -> 0 | C118: =VG!E128 -> 0 | D118: =VG!G128 -> 0 | E118: =VG!H128 -> 0
A119: =VG!A129 ->  | B119: =VG!B129 -> 0 | C119: =VG!E129 -> 0 | D119: =VG!G129 -> 0 | E119: =VG!H129 -> 0
A120: =VG!A130 ->  | B120: =VG!B130 -> 0 | C120: =VG!E130 -> 0 | D120: =VG!G130 -> 0 | E120: =VG!H130 -> 0
A121: =VG!A131 ->  | B121: =VG!B131 -> 0 | C121: =VG!E131 -> 0 | D121: =VG!G131 -> 0 | E121: =VG!H131 -> 0
A122: =VG!A132 ->  | B122: =VG!B132 -> 0 | C122: =VG!E132 -> 0 | D122: =VG!G132 -> 0 | E122: =VG!H132 -> 0
A123: =VG!A133 ->  | B123: =VG!B133 -> 0 | C123: =VG!E133 -> 0 | D123: =VG!G133 -> 0 | E123: =VG!H133 -> 0
A124: =VG!A134 ->  | B124: =VG!B134 -> 0 | C124: =VG!E134 -> 0 | D124: =VG!G134 -> 0 | E124: =VG!H134 -> 0
E125: TOPLAM(KDV HARİÇ)
A126: TEKLİF TOPLAMI YAZIYLA
A128: Yukarda Adı, özelliği ve miktarı yazılı malzemeleri belirtmiş olduğum fiyattan ve istenilen şartlar doğrultusunda vermeyi taahhüt ediyorum.
D130: TEKLİF YAPAN FİRMA/KİŞİ
D131: İmza / Kaşe/Adres

Sheet YM
A1: YAKLAŞIK MALİYET HESAP CETVELİ | P1: İdarece Tespit ve Takdir Edilen Yaklaşık Maliyet (KDV HARİÇ)
A2: İdarenin Adı | F2: =PAT!F2 -> Erdem Bayazıt İmam Hatip Ortaokulu
A3: Yapılan Alımın Adı, Niteliği | F3: =PAT!F3 -> Okul İhtiyacı için Büro Mefruşat Alımları Alımı
A4: Düzenleme Tarihi | F4: =VG!D29 -> 2021-09-25
A5: Yaklaşık Maliyeti Hesaplanacak Malın / Hizmetin | H5: Kişiler / Kurumlar / Firmalar ve Yaklaşık Maliyet için Bildirilen Fiyatlar (KDV HARİÇ)
H6: =VG!J33 -> GÖKTÜRK MEFRUŞAT | J6: =VG!L33 -> YILDIZLAR MANİFATURA | L6: =VG!N33 -> DENGE TEKSTİL | N6: =IF(ISBLANK(VG!P33),"",VG!P33) ->  | P6: Birim Yaklaşık Maliyet Fiyatı | Q6: Toplam Yaklaşık Maliyet Fiyatı
A7: SIRA | B7: Cinsi | D7: Özelliği | F7: Miktarı | G7: Ölçüsü | H7: Birim Fiyat | I7: Toplam Fiyat | J7: Birim Fiyat | K7: Toplam Fiyat | L7: Birim Fiyat | M7: Toplam Fiyat | N7: Birim Fiyat | O7: Toplam Fiyat
A8: =VG!A35 -> 1 | B8: =VG!B35 -> Perde | D8: =VG!E35 -> Fon | F8: =VG!G35 -> 120 | G8: =VG!H35 -> Metrekare | H8: =VG!J35 -> 70 | I8: =VG!K35 -> 8400 | J8: =VG!L35 -> 70 | K8: =VG!M35 -> 8400 | L8: =VG!N35 -> 70 | M8: =VG!O35 -> 8400 | N8: =IF(ISBLANK(VG!P35),"",VG!P35) ->  | O8: =IF(ISBLANK(VG!Q35),"",VG!Q35) ->  | P8: =IF(ISBLANK(VG!P33),(YM!H8+YM!J8+YM!L8)/3,(YM!H8+YM!J8+YM!L8+YM!N8)/4) -> 70 | Q8: =IF(ISBLANK(VG!P33),(YM!I8+YM!K8+YM!M8)/3,(YM!I8+YM!K8+YM!M8+YM!O8)/4) -> 8400 | R8: =H8+J8+L8 -> 210 | S8: =SUM(H8,J8,L8,N8) -> 210 | T8: =SUM(I8,K8,M8) -> 25200 | U8: =SUM(I8,K8,M8,O8) -> 25200
A9: =VG!A36 -> 2 | B9: =VG!B36 -> Perde | D9: =VG!E36 -> Zebra | F9: =VG!G36 -> 30 | G9: =VG!H36 -> Metrekare | H9: =VG!J36 -> 50 | I9: =VG!K36 -> 1500 | J9: =VG!L36 -> 80 | K9: =VG!M36 -> 2400 | L9: =VG!N36 -> 80 | M9: =VG!O36 -> 2400 | N9: =IF(ISBLANK(VG!P36),"",VG!P36) ->  | O9: =VG!Q36 ->  | P9: =IF(ISBLANK(VG!P33),(YM!H9+YM!J9+YM!L9)/3,(YM!H9+YM!J9+YM!L9+YM!N9)/4) -> 70 | Q9: =IF(ISBLANK(VG!P33),(YM!I9+YM!K9+YM!M9)/3,(YM!I9+YM!K9+YM!M9+YM!O9)/4) -> 2100 | R9: =H9+J9+L9 -> 210 | S9: =SUM(H9,J9,L9,N9) -> 210 | T9: =SUM(I9,K9,M9) -> 6300 | U9: =SUM(I9,K9,M9,O9) -> 6300
A10: =VG!A37 -> 3 | B10: =VG!B37 -> Perde | D10: =VG!E37 -> Karartma | F10: =VG!G37 -> 34 | G10: =VG!H37 -> Metrekare | H10: =VG!J37 -> 45 | I10: =VG!K37 -> 1530 | J10: =VG!L37 -> 65 | K10: =VG!M37 -> 2210 | L10: =VG!N37 -> 60 | M10: =VG!O37 -> 2040 | N10: =IF(ISBLANK(VG!P37),"",VG!P37) ->  | O10: =VG!Q37 ->  | P10: =IF(ISBLANK(VG!P33),(YM!H10+YM!J10+YM!L10)/3,(YM!H10+YM!J10+YM!L10+YM!N10)/4) -> 56.66666667 | Q10: =IF(ISBLANK(VG!P33),(YM!I10+YM!K10+YM!M10)/3,(YM!I10+YM!K10+YM!M10+YM!O10)/4) -> 1926.666667 | R10: 170 | S10: 170 | T10: 5780 | U10: 5780
A11: =VG!A38 ->  | B11: =VG!B38 -> 0 | D11: =VG!E38 -> 0 | F11: =VG!G38 -> 0 | G11: =VG!H38 -> 0 | H11: =VG!J38 -> 0 | I11: =VG!K38 -> 0 | J11: =VG!L38 -> 0 | K11: =VG!M38 -> 0 | L11: =VG!N38 -> 0 | M11: =VG!O38 -> 0 | N11: =IF(ISBLANK(VG!P38),"",VG!P38) ->  | O11: =VG!Q38 ->  | P11: =IF(ISBLANK(VG!P33),(YM!H11+YM!J11+YM!L11)/3,(YM!H11+YM!J11+YM!L11+YM!N11)/4) -> 0 | Q11: =IF(ISBLANK(VG!P33),(YM!I11+YM!K11+YM!M11)/3,(YM!I11+YM!K11+YM!M11+YM!O11)/4) -> 0 | R11: 0 | S11: 0 | T11: 0 | U11: 0
A12: =VG!A39 ->  | B12: =VG!B39 -> 0 | D12: =VG!E39 -> 0 | F12: =VG!G39 -> 0 | G12: =VG!H39 -> 0 | H12: =VG!J39 -> 0 | I12: =VG!K39 -> 0 | J12: =VG!L39 -> 0 | K12: =VG!M39 -> 0 | L12: =VG!N39 -> 0 | M12: =VG!O39 -> 0 | N12: =IF(ISBLANK(VG!P39),"",VG!P39) ->  | O12: =VG!Q39 ->  | P12: =IF(ISBLANK(VG!P33),(YM!H12+YM!J12+YM!L12)/3,(YM!H12+YM!J12+YM!L12+YM!N12)/4) -> 0 | Q12: =IF(ISBLANK(VG!P33),(YM!I12+YM!K12+YM!M12)/3,(YM!I12+YM!K12+YM!M12+YM!O12)/4) -> 0 | R12: 0 | S12: 0 | T12: 0 | U12: 0
A13: =VG!A40 ->  | B13: =VG!B40 -> 0 | D13: =VG!E40 -> 0 | F13: =VG!G40 -> 0 | G13: =VG!H40 -> 0 | H13: =VG!J40 -> 0 | I13: =VG!K40 -> 0 | J13: =VG!L40 -> 0 | K13: =VG!M40 -> 0 | L13: =VG!N40 -> 0 | M13: =VG!O40 -> 0 | N13: =IF(ISBLANK(VG!P40),"",VG!P40) ->  | O13: =VG!Q40 ->  | P13: =IF(ISBLANK(VG!P33),(YM!H13+YM!J13+YM!L13)/3,(YM!H13+YM!J13+YM!L13+YM!N13)/4) -> 0 | Q13: =IF(ISBLANK(VG!P33),(YM!I13+YM!K13+YM!M13)/3,(YM!I13+YM!K13+YM!M13+YM!O13)/4) -> 0 | R13: 0 | S13: 0 | T13: 0 | U13: 0
A14: =VG!A41 ->  | B14: =VG!B41 -> 0 | D14: =VG!E41 -> 0 | F14: =VG!G41 -> 0 | G14: =VG!H41 -> 0 | H14: =VG!J41 -> 0 | I14: =VG!K41 -> 0 | J14: =VG!L41 -> 0 | K14: =VG!M41 -> 0 | L14: =VG!N41 -> 0 | M14: =VG!O41 -> 0 | N14: =IF(ISBLANK(VG!P41),"",VG!P41) ->  | O14: =VG!Q41 ->  | P14: =IF(ISBLANK(VG!P33),(YM!H14+YM!J14+YM!L14)/3,(YM!H14+YM!J14+YM!L14+YM!N14)/4) -> 0 | Q14: =IF(ISBLANK(VG!P33),(YM!I14+YM!K14+YM!M14)/3,(YM!I14+YM!K14+YM!M14+YM!O14)/4) -> 0 | R14: 0 | S14: 0 | T14: 0 | U14: 0
A15: =VG!A42 ->  | B15: =VG!B42 -> 0 | D15: =VG!E42 -> 0 | F15: =VG!G42 -> 0 | G15: =VG!H42 -> 0 | H15: =VG!J42 -> 0 | I15: =VG!K42 -> 0 | J15: =VG!L42 -> 0 | K15: =VG!M42 -> 0 | L15: =VG!N42 -> 0 | M15: =VG!O42 -> 0 | N15: =IF(ISBLANK(VG!P42),"",VG!P42) ->  | O15: =VG!Q42 ->  | P15: =IF(ISBLANK(VG!P33),(YM!H15+YM!J15+YM!L15)/3,(YM!H15+YM!J15+YM!L15+YM!N15)/4) -> 0 | Q15: =IF(ISBLANK(VG!P33),(YM!I15+YM!K15+YM!M15)/3,(YM!I15+YM!K15+YM!M15+YM!O15)/4) -> 0 | R15: 0 | S15: 0 | T15: 0 | U15: 0
A16: =VG!A43 ->  | B16: =VG!B43 -> 0 | D16: =VG!E43 -> 0 | F16: =VG!G43 -> 0 | G16: =VG!H43 -> 0 | H16: =VG!J43 -> 0 | I16: =VG!K43 -> 0 | J16: =VG!L43 -> 0 | K16: =VG!M43 -> 0 | L16: =VG!N43 -> 0 | M16: =VG!O43 -> 0 | N16: =IF(ISBLANK(VG!P43),"",VG!P43) ->  | O16: =VG!Q43 ->  | P16: =IF(ISBLANK(VG!P33),(YM!H16+YM!J16+YM!L16)/3,(YM!H16+YM!J16+YM!L16+YM!N16)/4) -> 0 | Q16: =IF(ISBLANK(VG!P33),(YM!I16+YM!K16+YM!M16)/3,(YM!I16+YM!K16+YM!M16+YM!O16)/4) -> 0 | R16: 0 | S16: 0 | T16: 0 | U16: 0
A17: =VG!A44 ->  | B17: =VG!B44 -> 0 | D17: =VG!E44 -> 0 | F17: =VG!G44 -> 0 | G17: =VG!H44 -> 0 | H17: =VG!J44 -> 0 | I17: =VG!K44 -> 0 | J17: =VG!L44 -> 0 | K17: =VG!M44 -> 0 | L17: =VG!N44 -> 0 | M17: =VG!O44 -> 0 | N17: =IF(ISBLANK(VG!P44),"",VG!P44) ->  | O17: =VG!Q44 ->  | P17: =IF(ISBLANK(VG!P33),(YM!H17+YM!J17+YM!L17)/3,(YM!H17+YM!J17+YM!L17+YM!N17)/4) -> 0 | Q17: =IF(ISBLANK(VG!P33),(YM!I17+YM!K17+YM!M17)/3,(YM!I17+YM!K17+YM!M17+YM!O17)/4) -> 0 | R17: 0 | S17: 0 | T17: 0 | U17: 0
A18: =VG!A45 ->  | B18: =VG!B45 -> 0 | D18: =VG!E45 -> 0 | F18: =VG!G45 -> 0 | G18: =VG!H45 -> 0 | H18: =VG!J45 -> 0 | I18: =VG!K45 -> 0 | J18: =VG!L45 -> 0 | K18: =VG!M45 -> 0 | L18: =VG!N45 -> 0 | M18: =VG!O45 -> 0 | N18: =IF(ISBLANK(VG!P45),"",VG!P45) ->  | O18: =VG!Q45 ->  | P18: =IF(ISBLANK(VG!P33),(YM!H18+YM!J18+YM!L18)/3,(YM!H18+YM!J18+YM!L18+YM!N18)/4) -> 0 | Q18: =IF(ISBLANK(VG!P33),(YM!I18+YM!K18+YM!M18)/3,(YM!I18+YM!K18+YM!M18+YM!O18)/4) -> 0 | R18: 0 | S18: 0 | T18: 0 | U18: 0
A19: =VG!A46 ->  | B19: =VG!B46 -> 0 | D19: =VG!E46 -> 0 | F19: =VG!G46 -> 0 | G19: =VG!H46 -> 0 | H19: =VG!J46 -> 0 | I19: =VG!K46 -> 0 | J19: =VG!L46 -> 0 | K19: =VG!M46 -> 0 | L19: =VG!N46 -> 0 | M19: =VG!O46 -> 0 | N19: =IF(ISBLANK(VG!P46),"",VG!P46) ->  | O19: =VG!Q46 ->  | P19: =IF(ISBLANK(VG!P4433),(YM!H19+YM!J19+YM!L19)/3,(YM!H19+YM!J19+YM!L19+YM!N19)/4) -> 0 | Q19: =IF(ISBLANK(VG!P33),(YM!I19+YM!K19+YM!M19)/3,(YM!I19+YM!K19+YM!M19+YM!O19)/4) -> 0 | R19: 0 | S19: 0 | T19: 0 | U19: 0
A20: =VG!A47 ->  | B20: =VG!B47 -> 0 | D20: =VG!E47 -> 0 | F20: =VG!G47 -> 0 | G20: =VG!H47 -> 0 | H20: =VG!J47 -> 0 | I20: =VG!K47 -> 0 | J20: =VG!L47 -> 0 | K20: =VG!M47 -> 0 | L20: =VG!N47 -> 0 | M20: =VG!O47 -> 0 | N20: =IF(ISBLANK(VG!P47),"",VG!P47) ->  | O20: =VG!Q47 ->  | P20: =IF(ISBLANK(VG!P45),(YM!H20+YM!J20+YM!L20)/3,(YM!H20+YM!J20+YM!L20+YM!N20)/4) -> 0 | Q20: =IF(ISBLANK(VG!P33),(YM!I20+YM!K20+YM!M20)/3,(YM!I20+YM!K20+YM!M20+YM!O20)/4) -> 0 | R20: 0 | S20: 0 | T20: 0 | U20: 0
A21: =VG!A48 ->  | B21: =VG!B48 -> 0 | D21: =VG!E48 -> 0 | F21: =VG!G48 -> 0 | G21: =VG!H48 -> 0 | H21: =VG!J48 -> 0 | I21: =VG!K48 -> 0 | J21: =VG!L48 -> 0 | K21: =VG!M48 -> 0 | L21: =VG!N48 -> 0 | M21: =VG!O48 -> 0 | N21: =IF(ISBLANK(VG!P48),"",VG!P48) ->  | O21: =VG!Q48 ->  | P21: =IF(ISBLANK(VG!P33),(YM!H21+YM!J21+YM!L21)/3,(YM!H21+YM!J21+YM!L21+YM!N21)/4) -> 0 | Q21: =IF(ISBLANK(VG!P33),(YM!I21+YM!K21+YM!M21)/3,(YM!I21+YM!K21+YM!M21+YM!O21)/4) -> 0 | R21: 0 | S21: 0 | T21: 0 | U21: 0
A22: =VG!A49 ->  | B22: =VG!B49 -> 0 | D22: =VG!E49 -> 0 | F22: =VG!G49 -> 0 | G22: =VG!H49 -> 0 | H22: =VG!J49 -> 0 | I22: =VG!K49 -> 0 | J22: =VG!L49 -> 0 | K22: =VG!M49 -> 0 | L22: =VG!N49 -> 0 | M22: =VG!O49 -> 0 | N22: =IF(ISBLANK(VG!P49),"",VG!P49) ->  | O22: =VG!Q49 ->  | P22: =IF(ISBLANK(VG!P33),(YM!H22+YM!J22+YM!L22)/3,(YM!H22+YM!J22+YM!L22+YM!N22)/4) -> 0 | Q22: =IF(ISBLANK(VG!P33),(YM!I22+YM!K22+YM!M22)/3,(YM!I22+YM!K22+YM!M22+YM!O22)/4) -> 0 | R22: 0 | S22: 0 | T22: 0 | U22: 0
A23: =VG!A50 ->  | B23: =VG!B50 -> 0 | D23: =VG!E50 -> 0 | F23: =VG!G50 -> 0 | G23: =VG!H50 -> 0 | H23: =VG!J50 -> 0 | I23: =VG!K50 -> 0 | J23: =VG!L50 -> 0 | K23: =VG!M50 -> 0 | L23: =VG!N50 -> 0 | M23: =VG!O50 -> 0 | N23: =IF(ISBLANK(VG!P50),"",VG!P50) ->  | O23: =VG!Q50 ->  | P23: =IF(ISBLANK(VG!P33),(YM!H23+YM!J23+YM!L23)/3,(YM!H23+YM!J23+YM!L23+YM!N23)/4) -> 0 | Q23: =IF(ISBLANK(VG!P33),(YM!I23+YM!K23+YM!M23)/3,(YM!I23+YM!K23+YM!M23+YM!O23)/4) -> 0 | R23: 0 | S23: 0 | T23: 0 | U23: 0
A24: =VG!A51 ->  | B24: =VG!B51 -> 0 | D24: =VG!E51 -> 0 | F24: =VG!G51 -> 0 | G24: =VG!H51 -> 0 | H24: =VG!J51 -> 0 | I24: =VG!K51 -> 0 | J24: =VG!L51 -> 0 | K24: =VG!M51 -> 0 | L24: =VG!N51 -> 0 | M24: =VG!O51 -> 0 | N24: =IF(ISBLANK(VG!P51),"",VG!P51) ->  | O24: =VG!Q51 ->  | P24: =IF(ISBLANK(VG!P33),(YM!H24+YM!J24+YM!L24)/3,(YM!H24+YM!J24+YM!L24+YM!N24)/4) -> 0 | Q24: =IF(ISBLANK(VG!P33),(YM!I24+YM!K24+YM!M24)/3,(YM!I24+YM!K24+YM!M24+YM!O24)/4) -> 0 | R24: 0 | S24: 0 | T24: 0 | U24: 0
A25: =VG!A52 ->  | B25: =VG!B52 -> 0 | D25: =VG!E52 -> 0 | F25: =VG!G52 -> 0 | G25: =VG!H52 -> 0 | H25: =VG!J52 -> 0 | I25: =VG!K52 -> 0 | J25: =VG!L52 -> 0 | K25: =VG!M52 -> 0 | L25: =VG!N52 -> 0 | M25: =VG!O52 -> 0 | N25: =IF(ISBLANK(VG!P52),"",VG!P52) ->  | O25: =VG!Q52 ->  | P25: =IF(ISBLANK(VG!P33),(YM!H25+YM!J25+YM!L25)/3,(YM!H25+YM!J25+YM!L25+YM!N25)/4) -> 0 | Q25: =IF(ISBLANK(VG!P33),(YM!I25+YM!K25+YM!M25)/3,(YM!I25+YM!K25+YM!M25+YM!O25)/4) -> 0 | R25: 0 | S25: 0 | T25: 0 | U25: 0
A26: =VG!A53 ->  | B26: =VG!B53 -> 0 | D26: =VG!E53 -> 0 | F26: =VG!G53 -> 0 | G26: =VG!H53 -> 0 | H26: =VG!J53 -> 0 | I26: =VG!K53 -> 0 | J26: =VG!L53 -> 0 | K26: =VG!M53 -> 0 | L26: =VG!N53 -> 0 | M26: =VG!O53 -> 0 | N26: =IF(ISBLANK(VG!P53),"",VG!P53) ->  | O26: =VG!Q53 ->  | P26: =IF(ISBLANK(VG!P33),(YM!H26+YM!J26+YM!L26)/3,(YM!H26+YM!J26+YM!L26+YM!N26)/4) -> 0 | Q26: =IF(ISBLANK(VG!P33),(YM!I26+YM!K26+YM!M26)/3,(YM!I26+YM!K26+YM!M26+YM!O26)/4) -> 0 | R26: 0 | S26: 0 | T26: 0 | U26: 0
A27: =VG!A54 ->  | B27: =VG!B54 -> 0 | D27: =VG!E54 -> 0 | F27: =VG!G54 -> 0 | G27: =VG!H54 -> 0 | H27: =VG!J54 -> 0 | I27: =VG!K54 -> 0 | J27: =VG!L54 -> 0 | K27: =VG!M54 -> 0 | L27: =VG!N54 -> 0 | M27: =VG!O54 -> 0 | N27: =IF(ISBLANK(VG!P54),"",VG!P54) ->  | O27: =VG!Q54 ->  | P27: =IF(ISBLANK(VG!P33),(YM!H27+YM!J27+YM!L27)/3,(YM!H27+YM!J27+YM!L27+YM!N27)/4) -> 0 | Q27: =IF(ISBLANK(VG!P33),(YM!I27+YM!K27+YM!M27)/3,(YM!I27+YM!K27+YM!M27+YM!O27)/4) -> 0 | R27: 0 | S27: 0 | T27: 0 | U27: 0
A28: =VG!A55 ->  | B28: =VG!B55 -> 0 | D28: =VG!E55 -> 0 | F28: =VG!G55 -> 0 | G28: =VG!H55 -> 0 | H28: =VG!J55 -> 0 | I28: =VG!K55 -> 0 | J28: =VG!L55 -> 0 | K28: =VG!M55 -> 0 | L28: =VG!N55 -> 0 | M28: =VG!O55 -> 0 | N28: =IF(ISBLANK(VG!P55),"",VG!P55) ->  | O28: =VG!Q55 ->  | P28: =IF(ISBLANK(VG!P33),(YM!H28+YM!J28+YM!L28)/3,(YM!H28+YM!J28+YM!L28+YM!N28)/4) -> 0 | Q28: =IF(ISBLANK(VG!P33),(YM!I28+YM!K28+YM!M28)/3,(YM!I28+YM!K28+YM!M28+YM!O28)/4) -> 0 | R28: 0 | S28: 0 | T28: 0 | U28: 0
A29: =VG!A56 ->  | B29: =VG!B56 -> 0 | D29: =VG!E56 -> 0 | F29: =VG!G56 -> 0 | G29: =VG!H56 -> 0 | H29: =VG!J56 -> 0 | I29: =VG!K56 -> 0 | J29: =VG!L56 -> 0 | K29: =VG!M56 -> 0 | L29: =VG!N56 -> 0 | M29: =VG!O56 -> 0 | N29: =IF(ISBLANK(VG!P56),"",VG!P56) ->  | O29: =VG!Q56 ->  | P29: =IF(ISBLANK(VG!P33),(YM!H29+YM!J29+YM!L29)/3,(YM!H29+YM!J29+YM!L29+YM!N29)/4) -> 0 | Q29: =IF(ISBLANK(VG!P33),(YM!I29+YM!K29+YM!M29)/3,(YM!I29+YM!K29+YM!M29+YM!O29)/4) -> 0 | R29: 0 | S29: 0 | T29: 0 | U29: 0
A30: =VG!A57 ->  | B30: =VG!B57 -> 0 | D30: =VG!E57 -> 0 | F30: =VG!G57 -> 0 | G30: =VG!H57 -> 0 | H30: =VG!J57 -> 0 | I30: =VG!K57 -> 0 | J30: =VG!L57 -> 0 | K30: =VG!M57 -> 0 | L30: =VG!N57 -> 0 | M30: =VG!O57 -> 0 | N30: =IF(ISBLANK(VG!P57),"",VG!P57) ->  | O30: =VG!Q57 ->  | P30: =IF(ISBLANK(VG!P33),(YM!H30+YM!J30+YM!L30)/3,(YM!H30+YM!J30+YM!L30+YM!N30)/4) -> 0 | Q30: =IF(ISBLANK(VG!P33),(YM!I30+YM!K30+YM!M30)/3,(YM!I30+YM!K30+YM!M30+YM!O30)/4) -> 0 | R30: 0 | S30: 0 | T30: 0 | U30: 0
A31: =VG!A58 ->  | B31: =VG!B58 -> 0 | D31: =VG!E58 -> 0 | F31: =VG!G58 -> 0 | G31: =VG!H58 -> 0 | H31: =VG!J58 -> 0 | I31: =VG!K58 -> 0 | J31: =VG!L58 -> 0 | K31: =VG!M58 -> 0 | L31: =VG!N58 -> 0 | M31: =VG!O58 -> 0 | N31: =IF(ISBLANK(VG!P58),"",VG!P58) ->  | O31: =VG!Q58 ->  | P31: =IF(ISBLANK(VG!P33),(YM!H31+YM!J31+YM!L31)/3,(YM!H31+YM!J31+YM!L31+YM!N31)/4) -> 0 | Q31: =IF(ISBLANK(VG!P33),(YM!I31+YM!K31+YM!M31)/3,(YM!I31+YM!K31+YM!M31+YM!O31)/4) -> 0 | R31: 0 | S31: 0 | T31: 0 | U31: 0
A32: =VG!A59 ->  | B32: =VG!B59 -> 0 | D32: =VG!E59 -> 0 | F32: =VG!G59 -> 0 | G32: =VG!H59 -> 0 | H32: =VG!J59 -> 0 | I32: =VG!K59 -> 0 | J32: =VG!L59 -> 0 | K32: =VG!M59 -> 0 | L32: =VG!N59 -> 0 | M32: =VG!O59 -> 0 | N32: =IF(ISBLANK(VG!P59),"",VG!P59) ->  | O32: =VG!Q59 ->  | P32: =IF(ISBLANK(VG!P33),(YM!H32+YM!J32+YM!L32)/3,(YM!H32+YM!J32+YM!L32+YM!N32)/4) -> 0 | Q32: =IF(ISBLANK(VG!P33),(YM!I32+YM!K32+YM!M32)/3,(YM!I32+YM!K32+YM!M32+YM!O32)/4) -> 0 | R32: 0 | S32: 0 | T32: 0 | U32: 0
A33: =VG!A60 ->  | B33: =VG!B60 -> 0 | D33: =VG!E60 -> 0 | F33: =VG!G60 -> 0 | G33: =VG!H60 -> 0 | H33: =VG!J60 -> 0 | I33: =VG!K60 -> 0 | J33: =VG!L60 -> 0 | K33: =VG!M60 -> 0 | L33: =VG!N60 -> 0 | M33: =VG!O60 -> 0 | N33: =IF(ISBLANK(VG!P60),"",VG!P60) ->  | O33: =VG!Q60 ->  | P33: =IF(ISBLANK(VG!P33),(YM!H33+YM!J33+YM!L33)/3,(YM!H33+YM!J33+YM!L33+YM!N33)/4) -> 0 | Q33: =IF(ISBLANK(VG!P33),(YM!I33+YM!K33+YM!M33)/3,(YM!I33+YM!K33+YM!M33+YM!O33)/4) -> 0 | R33: 0 | S33: 0 | T33: 0 | U33: 0
A34: =VG!A61 ->  | B34: =VG!B61 -> 0 | D34: =VG!E61 -> 0 | F34: =VG!G61 -> 0 | G34: =VG!H61 -> 0 | H34: =VG!J61 -> 0 | I34: =VG!K61 -> 0 | J34: =VG!L61 -> 0 | K34: =VG!M61 -> 0 | L34: =VG!N61 -> 0 | M34: =VG!O61 -> 0 | N34: =IF(ISBLANK(VG!P61),"",VG!P61) ->  | O34: =VG!Q61 ->  | P34: =IF(ISBLANK(VG!P33),(YM!H34+YM!J34+YM!L34)/3,(YM!H34+YM!J34+YM!L34+YM!N34)/4) -> 0 | Q34: =IF(ISBLANK(VG!P33),(YM!I34+YM!K34+YM!M34)/3,(YM!I34+YM!K34+YM!M34+YM!O34)/4) -> 0 | R34: 0 | S34: 0 | T34: 0 | U34: 0
A35: =VG!A62 ->  | B35: =VG!B62 -> 0 | D35: =VG!E62 -> 0 | F35: =VG!G62 -> 0 | G35: =VG!H62 -> 0 | H35: =VG!J62 -> 0 | I35: =VG!K62 -> 0 | J35: =VG!L62 -> 0 | K35: =VG!M62 -> 0 | L35: =VG!N62 -> 0 | M35: =VG!O62 -> 0 | N35: =IF(ISBLANK(VG!P62),"",VG!P62) ->  | O35: =VG!Q62 ->  | P35: =IF(ISBLANK(VG!P33),(YM!H35+YM!J35+YM!L35)/3,(YM!H35+YM!J35+YM!L35+YM!N35)/4) -> 0 | Q35: =IF(ISBLANK(VG!P33),(YM!I35+YM!K35+YM!M35)/3,(YM!I35+YM!K35+YM!M35+YM!O35)/4) -> 0 | R35: 0 | S35: 0 | T35: 0 | U35: 0
A36: =VG!A63 ->  | B36: =VG!B63 -> 0 | D36: =VG!E63 -> 0 | F36: =VG!G63 -> 0 | G36: =VG!H63 -> 0 | H36: =VG!J63 -> 0 | I36: =VG!K63 -> 0 | J36: =VG!L63 -> 0 | K36: =VG!M63 -> 0 | L36: =VG!N63 -> 0 | M36: =VG!O63 -> 0 | N36: =IF(ISBLANK(VG!P63),"",VG!P63) ->  | O36: =VG!Q63 ->  | P36: =IF(ISBLANK(VG!P33),(YM!H36+YM!J36+YM!L36)/3,(YM!H36+YM!J36+YM!L36+YM!N36)/4) -> 0 | Q36: =IF(ISBLANK(VG!P33),(YM!I36+YM!K36+YM!M36)/3,(YM!I36+YM!K36+YM!M36+YM!O36)/4) -> 0 | R36: 0 | S36: 0 | T36: 0 | U36: 0
A37: =VG!A64 ->  | B37: =VG!B64 -> 0 | D37: =VG!E64 -> 0 | F37: =VG!G64 -> 0 | G37: =VG!H64 -> 0 | H37: =VG!J64 -> 0 | I37: =VG!K64 -> 0 | J37: =VG!L64 -> 0 | K37: =VG!M64 -> 0 | L37: =VG!N64 -> 0 | M37: =VG!O64 -> 0 | N37: =IF(ISBLANK(VG!P64),"",VG!P64) ->  | O37: =VG!Q64 ->  | P37: =IF(ISBLANK(VG!P33),(YM!H37+YM!J37+YM!L37)/3,(YM!H37+YM!J37+YM!L37+YM!N37)/4) -> 0 | Q37: =IF(ISBLANK(VG!P33),(YM!I37+YM!K37+YM!M37)/3,(YM!I37+YM!K37+YM!M37+YM!O37)/4) -> 0 | R37: 0 | S37: 0 | T37: 0 | U37: 0
A38: =VG!A65 ->  | B38: =VG!B65 -> 0 | D38: =VG!E65 -> 0 | F38: =VG!G65 -> 0 | G38: =VG!H65 -> 0 | H38: =VG!J65 -> 0 | I38: =VG!K65 -> 0 | J38: =VG!L65 -> 0 | K38: =VG!M65 -> 0 | L38: =VG!N65 -> 0 | M38: =VG!O65 -> 0 | N38: =IF(ISBLANK(VG!P65),"",VG!P65) ->  | O38: =VG!Q65 ->  | P38: =IF(ISBLANK(VG!P33),(YM!H38+YM!J38+YM!L38)/3,(YM!H38+YM!J38+YM!L38+YM!N38)/4) -> 0 | Q38: =IF(ISBLANK(VG!P33),(YM!I38+YM!K38+YM!M38)/3,(YM!I38+YM!K38+YM!M38+YM!O38)/4) -> 0 | R38: 0 | S38: 0 | T38: 0 | U38: 0
A39: =VG!A66 ->  | B39: =VG!B66 -> 0 | D39: =VG!E66 -> 0 | F39: =VG!G66 -> 0 | G39: =VG!H66 -> 0 | H39: =VG!J66 -> 0 | I39: =VG!K66 -> 0 | J39: =VG!L66 -> 0 | K39: =VG!M66 -> 0 | L39: =VG!N66 -> 0 | M39: =VG!O66 -> 0 | N39: =IF(ISBLANK(VG!P66),"",VG!P66) ->  | O39: =VG!Q66 ->  | P39: =IF(ISBLANK(VG!P33),(YM!H39+YM!J39+YM!L39)/3,(YM!H39+YM!J39+YM!L39+YM!N39)/4) -> 0 | Q39: =IF(ISBLANK(VG!P33),(YM!I39+YM!K39+YM!M39)/3,(YM!I39+YM!K39+YM!M39+YM!O39)/4) -> 0 | R39: 0 | S39: 0 | T39: 0 | U39: 0
A40: =VG!A67 ->  | B40: =VG!B67 -> 0 | D40: =VG!E67 -> 0 | F40: =VG!G67 -> 0 | G40: =VG!H67 -> 0 | H40: =VG!J67 -> 0 | I40: =VG!K67 -> 0 | J40: =VG!L67 -> 0 | K40: =VG!M67 -> 0 | L40: =VG!N67 -> 0 | M40: =VG!O67 -> 0 | N40: =IF(ISBLANK(VG!P67),"",VG!P67) ->  | O40: =VG!Q67 ->  | P40: =IF(ISBLANK(VG!P33),(YM!H40+YM!J40+YM!L40)/3,(YM!H40+YM!J40+YM!L40+YM!N40)/4) -> 0 | Q40: =IF(ISBLANK(VG!P33),(YM!I40+YM!K40+YM!M40)/3,(YM!I40+YM!K40+YM!M40+YM!O40)/4) -> 0 | R40: 0 | S40: 0 | T40: 0 | U40: 0
A41: =VG!A68 ->  | B41: =VG!B68 -> 0 | D41: =VG!E68 -> 0 | F41: =VG!G68 -> 0 | G41: =VG!H68 -> 0 | H41: =VG!J68 -> 0 | I41: =VG!K68 -> 0 | J41: =VG!L68 -> 0 | K41: =VG!M68 -> 0 | L41: =VG!N68 -> 0 | M41: =VG!O68 -> 0 | N41: =IF(ISBLANK(VG!P68),"",VG!P68) ->  | O41: =VG!Q68 ->  | P41: =IF(ISBLANK(VG!P33),(YM!H41+YM!J41+YM!L41)/3,(YM!H41+YM!J41+YM!L41+YM!N41)/4) -> 0 | Q41: =IF(ISBLANK(VG!P33),(YM!I41+YM!K41+YM!M41)/3,(YM!I41+YM!K41+YM!M41+YM!O41)/4) -> 0 | R41: 0 | S41: 0 | T41: 0 | U41: 0
A42: =VG!A69 ->  | B42: =VG!B69 -> 0 | D42: =VG!E69 -> 0 | F42: =VG!G69 -> 0 | G42: =VG!H69 -> 0 | H42: =VG!J69 -> 0 | I42: =VG!K69 -> 0 | J42: =VG!L69 -> 0 | K42: =VG!M69 -> 0 | L42: =VG!N69 -> 0 | M42: =VG!O69 -> 0 | N42: =IF(ISBLANK(VG!P69),"",VG!P69) ->  | O42: =VG!Q69 ->  | P42: =IF(ISBLANK(VG!P33),(YM!H42+YM!J42+YM!L42)/3,(YM!H42+YM!J42+YM!L42+YM!N42)/4) -> 0 | Q42: =IF(ISBLANK(VG!P33),(YM!I42+YM!K42+YM!M42)/3,(YM!I42+YM!K42+YM!M42+YM!O42)/4) -> 0 | R42: 0 | S42: 0 | T42: 0 | U42: 0
A43: =VG!A70 ->  | B43: =VG!B70 -> 0 | D43: =VG!E70 -> 0 | F43: =VG!G70 -> 0 | G43: =VG!H70 -> 0 | H43: =VG!J70 -> 0 | I43: =VG!K70 -> 0 | J43: =VG!L70 -> 0 | K43: =VG!M70 -> 0 | L43: =VG!N70 -> 0 | M43: =VG!O70 -> 0 | N43: =IF(ISBLANK(VG!P70),"",VG!P70) ->  | O43: =VG!Q70 ->  | P43: =IF(ISBLANK(VG!P33),(YM!H43+YM!J43+YM!L43)/3,(YM!H43+YM!J43+YM!L43+YM!N43)/4) -> 0 | Q43: =IF(ISBLANK(VG!P33),(YM!I43+YM!K43+YM!M43)/3,(YM!I43+YM!K43+YM!M43+YM!O43)/4) -> 0 | R43: 0 | S43: 0 | T43: 0 | U43: 0
A44: =VG!A71 ->  | B44: =VG!B71 -> 0 | D44: =VG!E71 -> 0 | F44: =VG!G71 -> 0 | G44: =VG!H71 -> 0 | H44: =VG!J71 -> 0 | I44: =VG!K71 -> 0 | J44: =VG!L71 -> 0 | K44: =VG!M71 -> 0 | L44: =VG!N71 -> 0 | M44: =VG!O71 -> 0 | N44: =IF(ISBLANK(VG!P71),"",VG!P71) ->  | O44: =VG!Q71 ->  | P44: =IF(ISBLANK(VG!P33),(YM!H44+YM!J44+YM!L44)/3,(YM!H44+YM!J44+YM!L44+YM!N44)/4) -> 0 | Q44: =IF(ISBLANK(VG!P33),(YM!I44+YM!K44+YM!M44)/3,(YM!I44+YM!K44+YM!M44+YM!O44)/4) -> 0 | R44: 0 | S44: 0 | T44: 0 | U44: 0
A45: =VG!A72 ->  | B45: =VG!B72 -> 0 | D45: =VG!E72 -> 0 | F45: =VG!G72 -> 0 | G45: =VG!H72 -> 0 | H45: =VG!J72 -> 0 | I45: =VG!K72 -> 0 | J45: =VG!L72 -> 0 | K45: =VG!M72 -> 0 | L45: =VG!N72 -> 0 | M45: =VG!O72 -> 0 | N45: =IF(ISBLANK(VG!P72),"",VG!P72) ->  | O45: =VG!Q72 ->  | P45: =IF(ISBLANK(VG!P33),(YM!H45+YM!J45+YM!L45)/3,(YM!H45+YM!J45+YM!L45+YM!N45)/4) -> 0 | Q45: =IF(ISBLANK(VG!P33),(YM!I45+YM!K45+YM!M45)/3,(YM!I45+YM!K45+YM!M45+YM!O45)/4) -> 0 | R45: 0 | S45: 0 | T45: 0 | U45: 0
A46: =VG!A73 ->  | B46: =VG!B73 -> 0 | D46: =VG!E73 -> 0 | F46: =VG!G73 -> 0 | G46: =VG!H73 -> 0 | H46: =VG!J73 -> 0 | I46: =VG!K73 -> 0 | J46: =VG!L73 -> 0 | K46: =VG!M73 -> 0 | L46: =VG!N73 -> 0 | M46: =VG!O73 -> 0 | N46: =IF(ISBLANK(VG!P73),"",VG!P73) ->  | O46: =VG!Q73 ->  | P46: =IF(ISBLANK(VG!P33),(YM!H46+YM!J46+YM!L46)/3,(YM!H46+YM!J46+YM!L46+YM!N46)/4) -> 0 | Q46: =IF(ISBLANK(VG!P33),(YM!I46+YM!K46+YM!M46)/3,(YM!I46+YM!K46+YM!M46+YM!O46)/4) -> 0 | R46: 0 | S46: 0 | T46: 0 | U46: 0
A47: =VG!A74 ->  | B47: =VG!B74 -> 0 | D47: =VG!E74 -> 0 | F47: =VG!G74 -> 0 | G47: =VG!H74 -> 0 | H47: =VG!J74 -> 0 | I47: =VG!K74 -> 0 | J47: =VG!L74 -> 0 | K47: =VG!M74 -> 0 | L47: =VG!N74 -> 0 | M47: =VG!O74 -> 0 | N47: =IF(ISBLANK(VG!P74),"",VG!P74) ->  | O47: =VG!Q74 ->  | P47: =IF(ISBLANK(VG!P33),(YM!H47+YM!J47+YM!L47)/3,(YM!H47+YM!J47+YM!L47+YM!N47)/4) -> 0 | Q47: =IF(ISBLANK(VG!P33),(YM!I47+YM!K47+YM!M47)/3,(YM!I47+YM!K47+YM!M47+YM!O47)/4) -> 0 | R47: 0 | S47: 0 | T47: 0 | U47: 0
A48: =VG!A75 ->  | B48: =VG!B75 -> 0 | D48: =VG!E75 -> 0 | F48: =VG!G75 -> 0 | G48: =VG!H75 -> 0 | H48: =VG!J75 -> 0 | I48: =VG!K75 -> 0 | J48: =VG!L75 -> 0 | K48: =VG!M75 -> 0 | L48: =VG!N75 -> 0 | M48: =VG!O75 -> 0 | N48: =IF(ISBLANK(VG!P75),"",VG!P75) ->  | O48: =VG!Q75 ->  | P48: =IF(ISBLANK(VG!P33),(YM!H48+YM!J48+YM!L48)/3,(YM!H48+YM!J48+YM!L48+YM!N48)/4) -> 0 | Q48: =IF(ISBLANK(VG!P33),(YM!I48+YM!K48+YM!M48)/3,(YM!I48+YM!K48+YM!M48+YM!O48)/4) -> 0 | R48: 0 | S48: 0 | T48: 0 | U48: 0
A49: =VG!A76 ->  | B49: =VG!B76 -> 0 | D49: =VG!E76 -> 0 | F49: =VG!G76 -> 0 | G49: =VG!H76 -> 0 | H49: =VG!J76 -> 0 | I49: =VG!K76 -> 0 | J49: =VG!L76 -> 0 | K49: =VG!M76 -> 0 | L49: =VG!N76 -> 0 | M49: =VG!O76 -> 0 | N49: =IF(ISBLANK(VG!P76),"",VG!P76) ->  | O49: =VG!Q76 ->  | P49: =IF(ISBLANK(VG!P33),(YM!H49+YM!J49+YM!L49)/3,(YM!H49+YM!J49+YM!L49+YM!N49)/4) -> 0 | Q49: =IF(ISBLANK(VG!P33),(YM!I49+YM!K49+YM!M49)/3,(YM!I49+YM!K49+YM!M49+YM!O49)/4) -> 0 | R49: 0 | S49: 0 | T49: 0 | U49: 0
A50: =VG!A77 ->  | B50: =VG!B77 -> 0 | D50: =VG!E77 -> 0 | F50: =VG!G77 -> 0 | G50: =VG!H77 -> 0 | H50: =VG!J77 -> 0 | I50: =VG!K77 -> 0 | J50: =VG!L77 -> 0 | K50: =VG!M77 -> 0 | L50: =VG!N77 -> 0 | M50: =VG!O77 -> 0 | N50: =IF(ISBLANK(VG!P77),"",VG!P77) ->  | O50: =VG!Q77 ->  | P50: =IF(ISBLANK(VG!P33),(YM!H50+YM!J50+YM!L50)/3,(YM!H50+YM!J50+YM!L50+YM!N50)/4) -> 0 | Q50: =IF(ISBLANK(VG!P33),(YM!I50+YM!K50+YM!M50)/3,(YM!I50+YM!K50+YM!M50+YM!O50)/4) -> 0 | R50: 0 | S50: 0 | T50: 0 | U50: 0
A51: =VG!A78 ->  | B51: =VG!B78 -> 0 | D51: =VG!E78 -> 0 | F51: =VG!G78 -> 0 | G51: =VG!H78 -> 0 | H51: =VG!J78 -> 0 | I51: =VG!K78 -> 0 | J51: =VG!L78 -> 0 | K51: =VG!M78 -> 0 | L51: =VG!N78 -> 0 | M51: =VG!O78 -> 0 | N51: =IF(ISBLANK(VG!P78),"",VG!P78) ->  | O51: =VG!Q78 ->  | P51: =IF(ISBLANK(VG!P33),(YM!H51+YM!J51+YM!L51)/3,(YM!H51+YM!J51+YM!L51+YM!N51)/4) -> 0 | Q51: =IF(ISBLANK(VG!P33),(YM!I51+YM!K51+YM!M51)/3,(YM!I51+YM!K51+YM!M51+YM!O51)/4) -> 0 | R51: 0 | S51: 0 | T51: 0 | U51: 0
A52: =VG!A79 ->  | B52: =VG!B79 -> 0 | D52: =VG!E79 -> 0 | F52: =VG!G79 -> 0 | G52: =VG!H79 -> 0 | H52: =VG!J79 -> 0 | I52: =VG!K79 -> 0 | J52: =VG!L79 -> 0 | K52: =VG!M79 -> 0 | L52: =VG!N79 -> 0 | M52: =VG!O79 -> 0 | N52: =IF(ISBLANK(VG!P79),"",VG!P79) ->  | O52: =VG!Q79 ->  | P52: =IF(ISBLANK(VG!P33),(YM!H52+YM!J52+YM!L52)/3,(YM!H52+YM!J52+YM!L52+YM!N52)/4) -> 0 | Q52: =IF(ISBLANK(VG!P33),(YM!I52+YM!K52+YM!M52)/3,(YM!I52+YM!K52+YM!M52+YM!O52)/4) -> 0 | R52: 0 | S52: 0 | T52: 0 | U52: 0
A53: =VG!A80 ->  | B53: =VG!B80 -> 0 | D53: =VG!E80 -> 0 | F53: =VG!G80 -> 0 | G53: =VG!H80 -> 0 | H53: =VG!J80 -> 0 | I53: =VG!K80 -> 0 | J53: =VG!L80 -> 0 | K53: =VG!M80 -> 0 | L53: =VG!N80 -> 0 | M53: =VG!O80 -> 0 | N53: =IF(ISBLANK(VG!P80),"",VG!P80) ->  | O53: =VG!Q80 ->  | P53: =IF(ISBLANK(VG!P33),(YM!H53+YM!J53+YM!L53)/3,(YM!H53+YM!J53+YM!L53+YM!N53)/4) -> 0 | Q53: =IF(ISBLANK(VG!P33),(YM!I53+YM!K53+YM!M53)/3,(YM!I53+YM!K53+YM!M53+YM!O53)/4) -> 0 | R53: 0 | S53: 0 | T53: 0 | U53: 0
A54: =VG!A81 ->  | B54: =VG!B81 -> 0 | D54: =VG!E81 -> 0 | F54: =VG!G81 -> 0 | G54: =VG!H81 -> 0 | H54: =VG!J81 -> 0 | I54: =VG!K81 -> 0 | J54: =VG!L81 -> 0 | K54: =VG!M81 -> 0 | L54: =VG!N81 -> 0 | M54: =VG!O81 -> 0 | N54: =IF(ISBLANK(VG!P81),"",VG!P81) ->  | O54: =VG!Q81 ->  | P54: =IF(ISBLANK(VG!P33),(YM!H54+YM!J54+YM!L54)/3,(YM!H54+YM!J54+YM!L54+YM!N54)/4) -> 0 | Q54: =IF(ISBLANK(VG!P33),(YM!I54+YM!K54+YM!M54)/3,(YM!I54+YM!K54+YM!M54+YM!O54)/4) -> 0 | R54: 0 | S54: 0 | T54: 0 | U54: 0
A55: =VG!A82 ->  | B55: =VG!B82 -> 0 | D55: =VG!E82 -> 0 | F55: =VG!G82 -> 0 | G55: =VG!H82 -> 0 | H55: =VG!J82 -> 0 | I55: =VG!K82 -> 0 | J55: =VG!L82 -> 0 | K55: =VG!M82 -> 0 | L55: =VG!N82 -> 0 | M55: =VG!O82 -> 0 | N55: =IF(ISBLANK(VG!P82),"",VG!P82) ->  | O55: =VG!Q82 ->  | P55: =IF(ISBLANK(VG!P33),(YM!H55+YM!J55+YM!L55)/3,(YM!H55+YM!J55+YM!L55+YM!N55)/4) -> 0 | Q55: =IF(ISBLANK(VG!P33),(YM!I55+YM!K55+YM!M55)/3,(YM!I55+YM!K55+YM!M55+YM!O55)/4) -> 0 | R55: 0 | S55: 0 | T55: 0 | U55: 0
A56: =VG!A83 ->  | B56: =VG!B83 -> 0 | D56: =VG!E83 -> 0 | F56: =VG!G83 -> 0 | G56: =VG!H83 -> 0 | H56: =VG!J83 -> 0 | I56: =VG!K83 -> 0 | J56: =VG!L83 -> 0 | K56: =VG!M83 -> 0 | L56: =VG!N83 -> 0 | M56: =VG!O83 -> 0 | N56: =IF(ISBLANK(VG!P83),"",VG!P83) ->  | O56: =VG!Q83 ->  | P56: =IF(ISBLANK(VG!P33),(YM!H56+YM!J56+YM!L56)/3,(YM!H56+YM!J56+YM!L56+YM!N56)/4) -> 0 | Q56: =IF(ISBLANK(VG!P33),(YM!I56+YM!K56+YM!M56)/3,(YM!I56+YM!K56+YM!M56+YM!O56)/4) -> 0 | R56: 0 | S56: 0 | T56: 0 | U56: 0
A57: =VG!A84 ->  | B57: =VG!B84 -> 0 | D57: =VG!E84 -> 0 | F57: =VG!G84 -> 0 | G57: =VG!H84 -> 0 | H57: =VG!J84 -> 0 | I57: =VG!K84 -> 0 | J57: =VG!L84 -> 0 | K57: =VG!M84 -> 0 | L57: =VG!N84 -> 0 | M57: =VG!O84 -> 0 | N57: =IF(ISBLANK(VG!P84),"",VG!P84) ->  | O57: =VG!Q84 ->  | P57: =IF(ISBLANK(VG!P33),(YM!H57+YM!J57+YM!L57)/3,(YM!H57+YM!J57+YM!L57+YM!N57)/4) -> 0 | Q57: =IF(ISBLANK(VG!P33),(YM!I57+YM!K57+YM!M57)/3,(YM!I57+YM!K57+YM!M57+YM!O57)/4) -> 0 | R57: 0 | S57: 0 | T57: 0 | U57: 0
A58: =VG!A85 ->  | B58: =VG!B85 -> 0 | D58: =VG!E85 -> 0 | F58: =VG!G85 -> 0 | G58: =VG!H85 -> 0 | H58: =VG!J85 -> 0 | I58: =VG!K85 -> 0 | J58: =VG!L85 -> 0 | K58: =VG!M85 -> 0 | L58: =VG!N85 -> 0 | M58: =VG!O85 -> 0 | N58: =IF(ISBLANK(VG!P85),"",VG!P85) ->  | O58: =VG!Q85 ->  | P58: =IF(ISBLANK(VG!P33),(YM!H58+YM!J58+YM!L58)/3,(YM!H58+YM!J58+YM!L58+YM!N58)/4) -> 0 | Q58: =IF(ISBLANK(VG!P33),(YM!I58+YM!K58+YM!M58)/3,(YM!I58+YM!K58+YM!M58+YM!O58)/4) -> 0 | R58: 0 | S58: 0 | T58: 0 | U58: 0
A59: =VG!A86 ->  | B59: =VG!B86 -> 0 | D59: =VG!E86 -> 0 | F59: =VG!G86 -> 0 | G59: =VG!H86 -> 0 | H59: =VG!J86 -> 0 | I59: =VG!K86 -> 0 | J59: =VG!L86 -> 0 | K59: =VG!M86 -> 0 | L59: =VG!N86 -> 0 | M59: =VG!O86 -> 0 | N59: =IF(ISBLANK(VG!P86),"",VG!P86) ->  | O59: =VG!Q86 ->  | P59: =IF(ISBLANK(VG!P33),(YM!H59+YM!J59+YM!L59)/3,(YM!H59+YM!J59+YM!L59+YM!N59)/4) -> 0 | Q59: =IF(ISBLANK(VG!P33),(YM!I59+YM!K59+YM!M59)/3,(YM!I59+YM!K59+YM!M59+YM!O59)/4) -> 0 | R59: 0 | S59: 0 | T59: 0 | U59: 0
A60: =VG!A87 ->  | B60: =VG!B87 -> 0 | D60: =VG!E87 -> 0 | F60: =VG!G87 -> 0 | G60: =VG!H87 -> 0 | H60: =VG!J87 -> 0 | I60: =VG!K87 -> 0 | J60: =VG!L87 -> 0 | K60: =VG!M87 -> 0 | L60: =VG!N87 -> 0 | M60: =VG!O87 -> 0 | N60: =IF(ISBLANK(VG!P87),"",VG!P87) ->  | O60: =VG!Q87 ->  | P60: =IF(ISBLANK(VG!P33),(YM!H60+YM!J60+YM!L60)/3,(YM!H60+YM!J60+YM!L60+YM!N60)/4) -> 0 | Q60: =IF(ISBLANK(VG!P33),(YM!I60+YM!K60+YM!M60)/3,(YM!I60+YM!K60+YM!M60+YM!O60)/4) -> 0 | R60: 0 | S60: 0 | T60: 0 | U60: 0
A61: =VG!A88 ->  | B61: =VG!B88 -> 0 | D61: =VG!E88 -> 0 | F61: =VG!G88 -> 0 | G61: =VG!H88 -> 0 | H61: =VG!J88 -> 0 | I61: =VG!K88 -> 0 | J61: =VG!L88 -> 0 | K61: =VG!M88 -> 0 | L61: =VG!N88 -> 0 | M61: =VG!O88 -> 0 | N61: =IF(ISBLANK(VG!P88),"",VG!P88) ->  | O61: =VG!Q88 ->  | P61: =IF(ISBLANK(VG!P33),(YM!H61+YM!J61+YM!L61)/3,(YM!H61+YM!J61+YM!L61+YM!N61)/4) -> 0 | Q61: =IF(ISBLANK(VG!P33),(YM!I61+YM!K61+YM!M61)/3,(YM!I61+YM!K61+YM!M61+YM!O61)/4) -> 0 | R61: 0 | S61: 0 | T61: 0 | U61: 0
A62: =VG!A89 ->  | B62: =VG!B89 -> 0 | D62: =VG!E89 -> 0 | F62: =VG!G89 -> 0 | G62: =VG!H89 -> 0 | H62: =VG!J89 -> 0 | I62: =VG!K89 -> 0 | J62: =VG!L89 -> 0 | K62: =VG!M89 -> 0 | L62: =VG!N89 -> 0 | M62: =VG!O89 -> 0 | N62: =IF(ISBLANK(VG!P89),"",VG!P89) ->  | O62: =VG!Q89 ->  | P62: =IF(ISBLANK(VG!P33),(YM!H62+YM!J62+YM!L62)/3,(YM!H62+YM!J62+YM!L62+YM!N62)/4) -> 0 | Q62: =IF(ISBLANK(VG!P33),(YM!I62+YM!K62+YM!M62)/3,(YM!I62+YM!K62+YM!M62+YM!O62)/4) -> 0 | R62: 0 | S62: 0 | T62: 0 | U62: 0
A63: =VG!A90 ->  | B63: =VG!B90 -> 0 | D63: =VG!E90 -> 0 | F63: =VG!G90 -> 0 | G63: =VG!H90 -> 0 | H63: =VG!J90 -> 0 | I63: =VG!K90 -> 0 | J63: =VG!L90 -> 0 | K63: =VG!M90 -> 0 | L63: =VG!N90 -> 0 | M63: =VG!O90 -> 0 | N63: =IF(ISBLANK(VG!P90),"",VG!P90) ->  | O63: =VG!Q90 ->  | P63: =IF(ISBLANK(VG!P33),(YM!H63+YM!J63+YM!L63)/3,(YM!H63+YM!J63+YM!L63+YM!N63)/4) -> 0 | Q63: =IF(ISBLANK(VG!P33),(YM!I63+YM!K63+YM!M63)/3,(YM!I63+YM!K63+YM!M63+YM!O63)/4) -> 0 | R63: 0 | S63: 0 | T63: 0 | U63: 0
A64: =VG!A91 ->  | B64: =VG!B91 -> 0 | D64: =VG!E91 -> 0 | F64: =VG!G91 -> 0 | G64: =VG!H91 -> 0 | H64: =VG!J91 -> 0 | I64: =VG!K91 -> 0 | J64: =VG!L91 -> 0 | K64: =VG!M91 -> 0 | L64: =VG!N91 -> 0 | M64: =VG!O91 -> 0 | N64: =IF(ISBLANK(VG!P91),"",VG!P91) ->  | O64: =VG!Q91 ->  | P64: =IF(ISBLANK(VG!P33),(YM!H64+YM!J64+YM!L64)/3,(YM!H64+YM!J64+YM!L64+YM!N64)/4) -> 0 | Q64: =IF(ISBLANK(VG!P33),(YM!I64+YM!K64+YM!M64)/3,(YM!I64+YM!K64+YM!M64+YM!O64)/4) -> 0 | R64: 0 | S64: 0 | T64: 0 | U64: 0
A65: =VG!A92 ->  | B65: =VG!B92 -> 0 | D65: =VG!E92 -> 0 | F65: =VG!G92 -> 0 | G65: =VG!H92 -> 0 | H65: =VG!J92 -> 0 | I65: =VG!K92 -> 0 | J65: =VG!L92 -> 0 | K65: =VG!M92 -> 0 | L65: =VG!N92 -> 0 | M65: =VG!O92 -> 0 | N65: =IF(ISBLANK(VG!P92),"",VG!P92) ->  | O65: =VG!Q92 ->  | P65: =IF(ISBLANK(VG!P33),(YM!H65+YM!J65+YM!L65)/3,(YM!H65+YM!J65+YM!L65+YM!N65)/4) -> 0 | Q65: =IF(ISBLANK(VG!P33),(YM!I65+YM!K65+YM!M65)/3,(YM!I65+YM!K65+YM!M65+YM!O65)/4) -> 0 | R65: 0 | S65: 0 | T65: 0 | U65: 0
A66: =VG!A93 ->  | B66: =VG!B93 -> 0 | D66: =VG!E93 -> 0 | F66: =VG!G93 -> 0 | G66: =VG!H93 -> 0 | H66: =VG!J93 -> 0 | I66: =VG!K93 -> 0 | J66: =VG!L93 -> 0 | K66: =VG!M93 -> 0 | L66: =VG!N93 -> 0 | M66: =VG!O93 -> 0 | N66: =IF(ISBLANK(VG!P93),"",VG!P93) ->  | O66: =VG!Q93 ->  | P66: =IF(ISBLANK(VG!P33),(YM!H66+YM!J66+YM!L66)/3,(YM!H66+YM!J66+YM!L66+YM!N66)/4) -> 0 | Q66: =IF(ISBLANK(VG!P33),(YM!I66+YM!K66+YM!M66)/3,(YM!I66+YM!K66+YM!M66+YM!O66)/4) -> 0 | R66: 0 | S66: 0 | T66: 0 | U66: 0
A67: =VG!A94 ->  | B67: =VG!B94 -> 0 | D67: =VG!E94 -> 0 | F67: =VG!G94 -> 0 | G67: =VG!H94 -> 0 | H67: =VG!J94 -> 0 | I67: =VG!K94 -> 0 | J67: =VG!L94 -> 0 | K67: =VG!M94 -> 0 | L67: =VG!N94 -> 0 | M67: =VG!O94 -> 0 | N67: =IF(ISBLANK(VG!P94),"",VG!P94) ->  | O67: =VG!Q94 ->  | P67: =IF(ISBLANK(VG!P33),(YM!H67+YM!J67+YM!L67)/3,(YM!H67+YM!J67+YM!L67+YM!N67)/4) -> 0 | Q67: =IF(ISBLANK(VG!P33),(YM!I67+YM!K67+YM!M67)/3,(YM!I67+YM!K67+YM!M67+YM!O67)/4) -> 0 | R67: 0 | S67: 0 | T67: 0 | U67: 0
A68: =VG!A95 ->  | B68: =VG!B95 -> 0 | D68: =VG!E95 -> 0 | F68: =VG!G95 -> 0 | G68: =VG!H95 -> 0 | H68: =VG!J95 -> 0 | I68: =VG!K95 -> 0 | J68: =VG!L95 -> 0 | K68: =VG!M95 -> 0 | L68: =VG!N95 -> 0 | M68: =VG!O95 -> 0 | N68: =IF(ISBLANK(VG!P95),"",VG!P95) ->  | O68: =VG!Q95 ->  | P68: =IF(ISBLANK(VG!P33),(YM!H68+YM!J68+YM!L68)/3,(YM!H68+YM!J68+YM!L68+YM!N68)/4) -> 0 | Q68: =IF(ISBLANK(VG!P33),(YM!I68+YM!K68+YM!M68)/3,(YM!I68+YM!K68+YM!M68+YM!O68)/4) -> 0 | R68: 0 | S68: 0 | T68: 0 | U68: 0
A69: =VG!A96 ->  | B69: =VG!B96 -> 0 | D69: =VG!E96 -> 0 | F69: =VG!G96 -> 0 | G69: =VG!H96 -> 0 | H69: =VG!J96 -> 0 | I69: =VG!K96 -> 0 | J69: =VG!L96 -> 0 | K69: =VG!M96 -> 0 | L69: =VG!N96 -> 0 | M69: =VG!O96 -> 0 | N69: =IF(ISBLANK(VG!P96),"",VG!P96) ->  | O69: =VG!Q96 ->  | P69: =IF(ISBLANK(VG!P33),(YM!H69+YM!J69+YM!L69)/3,(YM!H69+YM!J69+YM!L69+YM!N69)/4) -> 0 | Q69: =IF(ISBLANK(VG!P33),(YM!I69+YM!K69+YM!M69)/3,(YM!I69+YM!K69+YM!M69+YM!O69)/4) -> 0 | R69: 0 | S69: 0 | T69: 0 | U69: 0
A70: =VG!A97 ->  | B70: =VG!B97 -> 0 | D70: =VG!E97 -> 0 | F70: =VG!G97 -> 0 | G70: =VG!H97 -> 0 | H70: =VG!J97 -> 0 | I70: =VG!K97 -> 0 | J70: =VG!L97 -> 0 | K70: =VG!M97 -> 0 | L70: =VG!N97 -> 0 | M70: =VG!O97 -> 0 | N70: =IF(ISBLANK(VG!P97),"",VG!P97) ->  | O70: =VG!Q97 ->  | P70: =IF(ISBLANK(VG!P33),(YM!H70+YM!J70+YM!L70)/3,(YM!H70+YM!J70+YM!L70+YM!N70)/4) -> 0 | Q70: =IF(ISBLANK(VG!P33),(YM!I70+YM!K70+YM!M70)/3,(YM!I70+YM!K70+YM!M70+YM!O70)/4) -> 0 | R70: 0 | S70: 0 | T70: 0 | U70: 0
A71: =VG!A98 ->  | B71: =VG!B98 -> 0 | D71: =VG!E98 -> 0 | F71: =VG!G98 -> 0 | G71: =VG!H98 -> 0 | H71: =VG!J98 -> 0 | I71: =VG!K98 -> 0 | J71: =VG!L98 -> 0 | K71: =VG!M98 -> 0 | L71: =VG!N98 -> 0 | M71: =VG!O98 -> 0 | N71: =IF(ISBLANK(VG!P98),"",VG!P98) ->  | O71: =VG!Q98 ->  | P71: =IF(ISBLANK(VG!P33),(YM!H71+YM!J71+YM!L71)/3,(YM!H71+YM!J71+YM!L71+YM!N71)/4) -> 0 | Q71: =IF(ISBLANK(VG!P33),(YM!I71+YM!K71+YM!M71)/3,(YM!I71+YM!K71+YM!M71+YM!O71)/4) -> 0 | R71: 0 | S71: 0 | T71: 0 | U71: 0
A72: =VG!A99 ->  | B72: =VG!B99 -> 0 | D72: =VG!E99 -> 0 | F72: =VG!G99 -> 0 | G72: =VG!H99 -> 0 | H72: =VG!J99 -> 0 | I72: =VG!K99 -> 0 | J72: =VG!L99 -> 0 | K72: =VG!M99 -> 0 | L72: =VG!N99 -> 0 | M72: =VG!O99 -> 0 | N72: =IF(ISBLANK(VG!P99),"",VG!P99) ->  | O72: =VG!Q99 ->  | P72: =IF(ISBLANK(VG!P33),(YM!H72+YM!J72+YM!L72)/3,(YM!H72+YM!J72+YM!L72+YM!N72)/4) -> 0 | Q72: =IF(ISBLANK(VG!P33),(YM!I72+YM!K72+YM!M72)/3,(YM!I72+YM!K72+YM!M72+YM!O72)/4) -> 0 | R72: 0 | S72: 0 | T72: 0 | U72: 0
A73: =VG!A100 ->  | B73: =VG!B100 -> 0 | D73: =VG!E100 -> 0 | F73: =VG!G100 -> 0 | G73: =VG!H100 -> 0 | H73: =VG!J100 -> 0 | I73: =VG!K100 -> 0 | J73: =VG!L100 -> 0 | K73: =VG!M100 -> 0 | L73: =VG!N100 -> 0 | M73: =VG!O100 -> 0 | N73: =IF(ISBLANK(VG!P100),"",VG!P100) ->  | O73: =VG!Q100 ->  | P73: =IF(ISBLANK(VG!P33),(YM!H73+YM!J73+YM!L73)/3,(YM!H73+YM!J73+YM!L73+YM!N73)/4) -> 0 | Q73: =IF(ISBLANK(VG!P33),(YM!I73+YM!K73+YM!M73)/3,(YM!I73+YM!K73+YM!M73+YM!O73)/4) -> 0 | R73: =H73+J73+L73 -> 0 | S73: =SUM(H73,J73,L73,N73) -> 0 | T73: =SUM(I73,K73,M73) -> 0 | U73: =SUM(I73,K73,M73,O73) -> 0
A74: =VG!A101 ->  | B74: =VG!B101 -> 0 | D74: =VG!E101 -> 0 | F74: =VG!G101 -> 0 | G74: =VG!H101 -> 0 | H74: =VG!J101 -> 0 | I74: =VG!K101 -> 0 | J74: =VG!L101 -> 0 | K74: =VG!M101 -> 0 | L74: =VG!N101 -> 0 | M74: =VG!O101 -> 0 | N74: =IF(ISBLANK(VG!P101),"",VG!P101) ->  | O74: =VG!Q101 ->  | P74: =IF(ISBLANK(VG!P33),(YM!H74+YM!J74+YM!L74)/3,(YM!H74+YM!J74+YM!L74+YM!N74)/4) -> 0 | Q74: =IF(ISBLANK(VG!P33),(YM!I74+YM!K74+YM!M74)/3,(YM!I74+YM!K74+YM!M74+YM!O74)/4) -> 0 | R74: 0 | S74: 0 | T74: 0 | U74: 0
A75: =VG!A102 ->  | B75: =VG!B102 -> 0 | D75: =VG!E102 -> 0 | F75: =VG!G102 -> 0 | G75: =VG!H102 -> 0 | H75: =VG!J102 -> 0 | I75: =VG!K102 -> 0 | J75: =VG!L102 -> 0 | K75: =VG!M102 -> 0 | L75: =VG!N102 -> 0 | M75: =VG!O102 -> 0 | N75: =IF(ISBLANK(VG!P102),"",VG!P102) ->  | O75: =VG!Q102 ->  | P75: =IF(ISBLANK(VG!P33),(YM!H75+YM!J75+YM!L75)/3,(YM!H75+YM!J75+YM!L75+YM!N75)/4) -> 0 | Q75: =IF(ISBLANK(VG!P33),(YM!I75+YM!K75+YM!M75)/3,(YM!I75+YM!K75+YM!M75+YM!O75)/4) -> 0 | R75: 0 | S75: 0 | T75: 0 | U75: 0
A76: =VG!A103 ->  | B76: =VG!B103 -> 0 | D76: =VG!E103 -> 0 | F76: =VG!G103 -> 0 | G76: =VG!H103 -> 0 | H76: =VG!J103 -> 0 | I76: =VG!K103 -> 0 | J76: =VG!L103 -> 0 | K76: =VG!M103 -> 0 | L76: =VG!N103 -> 0 | M76: =VG!O103 -> 0 | N76: =IF(ISBLANK(VG!P103),"",VG!P103) ->  | O76: =VG!Q103 ->  | P76: =IF(ISBLANK(VG!P33),(YM!H76+YM!J76+YM!L76)/3,(YM!H76+YM!J76+YM!L76+YM!N76)/4) -> 0 | Q76: =IF(ISBLANK(VG!P33),(YM!I76+YM!K76+YM!M76)/3,(YM!I76+YM!K76+YM!M76+YM!O76)/4) -> 0 | R76: 0 | S76: 0 | T76: 0 | U76: 0
A77: =VG!A104 ->  | B77: =VG!B104 -> 0 | D77: =VG!E104 -> 0 | F77: =VG!G104 -> 0 | G77: =VG!H104 -> 0 | H77: =VG!J104 -> 0 | I77: =VG!K104 -> 0 | J77: =VG!L104 -> 0 | K77: =VG!M104 -> 0 | L77: =VG!N104 -> 0 | M77: =VG!O104 -> 0 | N77: =IF(ISBLANK(VG!P104),"",VG!P104) ->  | O77: =VG!Q104 ->  | P77: =IF(ISBLANK(VG!P33),(YM!H77+YM!J77+YM!L77)/3,(YM!H77+YM!J77+YM!L77+YM!N77)/4) -> 0 | Q77: =IF(ISBLANK(VG!P33),(YM!I77+YM!K77+YM!M77)/3,(YM!I77+YM!K77+YM!M77+YM!O77)/4) -> 0 | R77: 0 | S77: 0 | T77: 0 | U77: 0
A78: =VG!A105 ->  | B78: =VG!B105 -> 0 | D78: =VG!E105 -> 0 | F78: =VG!G105 -> 0 | G78: =VG!H105 -> 0 | H78: =VG!J105 -> 0 | I78: =VG!K105 -> 0 | J78: =VG!L105 -> 0 | K78: =VG!M105 -> 0 | L78: =VG!N105 -> 0 | M78: =VG!O105 -> 0 | N78: =IF(ISBLANK(VG!P105),"",VG!P105) ->  | O78: =VG!Q105 ->  | P78: =IF(ISBLANK(VG!P33),(YM!H78+YM!J78+YM!L78)/3,(YM!H78+YM!J78+YM!L78+YM!N78)/4) -> 0 | Q78: =IF(ISBLANK(VG!P33),(YM!I78+YM!K78+YM!M78)/3,(YM!I78+YM!K78+YM!M78+YM!O78)/4) -> 0 | R78: 0 | S78: 0 | T78: 0 | U78: 0
A79: =VG!A106 ->  | B79: =VG!B106 -> 0 | D79: =VG!E106 -> 0 | F79: =VG!G106 -> 0 | G79: =VG!H106 -> 0 | H79: =VG!J106 -> 0 | I79: =VG!K106 -> 0 | J79: =VG!L106 -> 0 | K79: =VG!M106 -> 0 | L79: =VG!N106 -> 0 | M79: =VG!O106 -> 0 | N79: =IF(ISBLANK(VG!P106),"",VG!P106) ->  | O79: =VG!Q106 ->  | P79: =IF(ISBLANK(VG!P33),(YM!H79+YM!J79+YM!L79)/3,(YM!H79+YM!J79+YM!L79+YM!N79)/4) -> 0 | Q79: =IF(ISBLANK(VG!P33),(YM!I79+YM!K79+YM!M79)/3,(YM!I79+YM!K79+YM!M79+YM!O79)/4) -> 0 | R79: 0 | S79: 0 | T79: 0 | U79: 0
A80: =VG!A107 ->  | B80: =VG!B107 -> 0 | D80: =VG!E107 -> 0 | F80: =VG!G107 -> 0 | G80: =VG!H107 -> 0 | H80: =VG!J107 -> 0 | I80: =VG!K107 -> 0 | J80: =VG!L107 -> 0 | K80: =VG!M107 -> 0 | L80: =VG!N107 -> 0 | M80: =VG!O107 -> 0 | N80: =IF(ISBLANK(VG!P107),"",VG!P107) ->  | O80: =VG!Q107 ->  | P80: =IF(ISBLANK(VG!P33),(YM!H80+YM!J80+YM!L80)/3,(YM!H80+YM!J80+YM!L80+YM!N80)/4) -> 0 | Q80: =IF(ISBLANK(VG!P33),(YM!I80+YM!K80+YM!M80)/3,(YM!I80+YM!K80+YM!M80+YM!O80)/4) -> 0 | R80: 0 | S80: 0 | T80: 0 | U80: 0
A81: =VG!A108 ->  | B81: =VG!B108 -> 0 | D81: =VG!E108 -> 0 | F81: =VG!G108 -> 0 | G81: =VG!H108 -> 0 | H81: =VG!J108 -> 0 | I81: =VG!K108 -> 0 | J81: =VG!L108 -> 0 | K81: =VG!M108 -> 0 | L81: =VG!N108 -> 0 | M81: =VG!O108 -> 0 | N81: =IF(ISBLANK(VG!P108),"",VG!P108) ->  | O81: =VG!Q108 ->  | P81: =IF(ISBLANK(VG!P33),(YM!H81+YM!J81+YM!L81)/3,(YM!H81+YM!J81+YM!L81+YM!N81)/4) -> 0 | Q81: =IF(ISBLANK(VG!P33),(YM!I81+YM!K81+YM!M81)/3,(YM!I81+YM!K81+YM!M81+YM!O81)/4) -> 0 | R81: 0 | S81: 0 | T81: 0 | U81: 0
A82: =VG!A109 ->  | B82: =VG!B109 -> 0 | D82: =VG!E109 -> 0 | F82: =VG!G109 -> 0 | G82: =VG!H109 -> 0 | H82: =VG!J109 -> 0 | I82: =VG!K109 -> 0 | J82: =VG!L109 -> 0 | K82: =VG!M109 -> 0 | L82: =VG!N109 -> 0 | M82: =VG!O109 -> 0 | N82: =IF(ISBLANK(VG!P109),"",VG!P109) ->  | O82: =VG!Q109 ->  | P82: =IF(ISBLANK(VG!P33),(YM!H82+YM!J82+YM!L82)/3,(YM!H82+YM!J82+YM!L82+YM!N82)/4) -> 0 | Q82: =IF(ISBLANK(VG!P33),(YM!I82+YM!K82+YM!M82)/3,(YM!I82+YM!K82+YM!M82+YM!O82)/4) -> 0 | R82: 0 | S82: 0 | T82: 0 | U82: 0
A83: =VG!A110 ->  | B83: =VG!B110 -> 0 | D83: =VG!E110 -> 0 | F83: =VG!G110 -> 0 | G83: =VG!H110 -> 0 | H83: =VG!J110 -> 0 | I83: =VG!K110 -> 0 | J83: =VG!L110 -> 0 | K83: =VG!M110 -> 0 | L83: =VG!N110 -> 0 | M83: =VG!O110 -> 0 | N83: =IF(ISBLANK(VG!P110),"",VG!P110) ->  | O83: =VG!Q110 ->  | P83: =IF(ISBLANK(VG!P33),(YM!H83+YM!J83+YM!L83)/3,(YM!H83+YM!J83+YM!L83+YM!N83)/4) -> 0 | Q83: =IF(ISBLANK(VG!P33),(YM!I83+YM!K83+YM!M83)/3,(YM!I83+YM!K83+YM!M83+YM!O83)/4) -> 0 | R83: 0 | S83: 0 | T83: 0 | U83: 0
A84: =VG!A111 ->  | B84: =VG!B111 -> 0 | D84: =VG!E111 -> 0 | F84: =VG!G111 -> 0 | G84: =VG!H111 -> 0 | H84: =VG!J111 -> 0 | I84: =VG!K111 -> 0 | J84: =VG!L111 -> 0 | K84: =VG!M111 -> 0 | L84: =VG!N111 -> 0 | M84: =VG!O111 -> 0 | N84: =IF(ISBLANK(VG!P111),"",VG!P111) ->  | O84: =VG!Q111 ->  | P84: =IF(ISBLANK(VG!P33),(YM!H84+YM!J84+YM!L84)/3,(YM!H84+YM!J84+YM!L84+YM!N84)/4) -> 0 | Q84: =IF(ISBLANK(VG!P33),(YM!I84+YM!K84+YM!M84)/3,(YM!I84+YM!K84+YM!M84+YM!O84)/4) -> 0 | R84: 0 | S84: 0 | T84: 0 | U84: 0
A85: =VG!A112 ->  | B85: =VG!B112 -> 0 | D85: =VG!E112 -> 0 | F85: =VG!G112 -> 0 | G85: =VG!H112 -> 0 | H85: =VG!J112 -> 0 | I85: =VG!K112 -> 0 | J85: =VG!L112 -> 0 | K85: =VG!M112 -> 0 | L85: =VG!N112 -> 0 | M85: =VG!O112 -> 0 | N85: =IF(ISBLANK(VG!P112),"",VG!P112) ->  | O85: =VG!Q112 ->  | P85: =IF(ISBLANK(VG!P33),(YM!H85+YM!J85+YM!L85)/3,(YM!H85+YM!J85+YM!L85+YM!N85)/4) -> 0 | Q85: =IF(ISBLANK(VG!P33),(YM!I85+YM!K85+YM!M85)/3,(YM!I85+YM!K85+YM!M85+YM!O85)/4) -> 0 | R85: 0 | S85: 0 | T85: 0 | U85: 0
A86: =VG!A113 ->  | B86: =VG!B113 -> 0 | D86: =VG!E113 -> 0 | F86: =VG!G113 -> 0 | G86: =VG!H113 -> 0 | H86: =VG!J113 -> 0 | I86: =VG!K113 -> 0 | J86: =VG!L113 -> 0 | K86: =VG!M113 -> 0 | L86: =VG!N113 -> 0 | M86: =VG!O113 -> 0 | N86: =IF(ISBLANK(VG!P113),"",VG!P113) ->  | O86: =VG!Q113 ->  | P86: =IF(ISBLANK(VG!P33),(YM!H86+YM!J86+YM!L86)/3,(YM!H86+YM!J86+YM!L86+YM!N86)/4) -> 0 | Q86: =IF(ISBLANK(VG!P33),(YM!I86+YM!K86+YM!M86)/3,(YM!I86+YM!K86+YM!M86+YM!O86)/4) -> 0 | R86: 0 | S86: 0 | T86: 0 | U86: 0
A87: =VG!A114 ->  | B87: =VG!B114 -> 0 | D87: =VG!E114 -> 0 | F87: =VG!G114 -> 0 | G87: =VG!H114 -> 0 | H87: =VG!J114 -> 0 | I87: =VG!K114 -> 0 | J87: =VG!L114 -> 0 | K87: =VG!M114 -> 0 | L87: =VG!N114 -> 0 | M87: =VG!O114 -> 0 | N87: =IF(ISBLANK(VG!P114),"",VG!P114) ->  | O87: =VG!Q114 ->  | P87: =IF(ISBLANK(VG!P33),(YM!H87+YM!J87+YM!L87)/3,(YM!H87+YM!J87+YM!L87+YM!N87)/4) -> 0 | Q87: =IF(ISBLANK(VG!P33),(YM!I87+YM!K87+YM!M87)/3,(YM!I87+YM!K87+YM!M87+YM!O87)/4) -> 0 | R87: 0 | S87: 0 | T87: 0 | U87: 0
A88: =VG!A115 ->  | B88: =VG!B115 -> 0 | D88: =VG!E115 -> 0 | F88: =VG!G115 -> 0 | G88: =VG!H115 -> 0 | H88: =VG!J115 -> 0 | I88: =VG!K115 -> 0 | J88: =VG!L115 -> 0 | K88: =VG!M115 -> 0 | L88: =VG!N115 -> 0 | M88: =VG!O115 -> 0 | N88: =IF(ISBLANK(VG!P115),"",VG!P115) ->  | O88: =VG!Q115 ->  | P88: =IF(ISBLANK(VG!P33),(YM!H88+YM!J88+YM!L88)/3,(YM!H88+YM!J88+YM!L88+YM!N88)/4) -> 0 | Q88: =IF(ISBLANK(VG!P33),(YM!I88+YM!K88+YM!M88)/3,(YM!I88+YM!K88+YM!M88+YM!O88)/4) -> 0 | R88: 0 | S88: 0 | T88: 0 | U88: 0
A89: =VG!A116 ->  | B89: =VG!B116 -> 0 | D89: =VG!E116 -> 0 | F89: =VG!G116 -> 0 | G89: =VG!H116 -> 0 | H89: =VG!J116 -> 0 | I89: =VG!K116 -> 0 | J89: =VG!L116 -> 0 | K89: =VG!M116 -> 0 | L89: =VG!N116 -> 0 | M89: =VG!O116 -> 0 | N89: =IF(ISBLANK(VG!P116),"",VG!P116) ->  | O89: =VG!Q116 ->  | P89: =IF(ISBLANK(VG!P33),(YM!H89+YM!J89+YM!L89)/3,(YM!H89+YM!J89+YM!L89+YM!N89)/4) -> 0 | Q89: =IF(ISBLANK(VG!P33),(YM!I89+YM!K89+YM!M89)/3,(YM!I89+YM!K89+YM!M89+YM!O89)/4) -> 0 | R89: 0 | S89: 0 | T89: 0 | U89: 0
A90: =VG!A117 ->  | B90: =VG!B117 -> 0 | D90: =VG!E117 -> 0 | F90: =VG!G117 -> 0 | G90: =VG!H117 -> 0 | H90: =VG!J117 -> 0 | I90: =VG!K117 -> 0 | J90: =VG!L117 -> 0 | K90: =VG!M117 -> 0 | L90: =VG!N117 -> 0 | M90: =VG!O117 -> 0 | N90: =IF(ISBLANK(VG!P117),"",VG!P117) ->  | O90: =VG!Q117 ->  | P90: =IF(ISBLANK(VG!P33),(YM!H90+YM!J90+YM!L90)/3,(YM!H90+YM!J90+YM!L90+YM!N90)/4) -> 0 | Q90: =IF(ISBLANK(VG!P33),(YM!I90+YM!K90+YM!M90)/3,(YM!I90+YM!K90+YM!M90+YM!O90)/4) -> 0 | R90: 0 | S90: 0 | T90: 0 | U90: 0
A91: =VG!A118 ->  | B91: =VG!B118 -> 0 | D91: =VG!E118 -> 0 | F91: =VG!G118 -> 0 | G91: =VG!H118 -> 0 | H91: =VG!J118 -> 0 | I91: =VG!K118 -> 0 | J91: =VG!L118 -> 0 | K91: =VG!M118 -> 0 | L91: =VG!N118 -> 0 | M91: =VG!O118 -> 0 | N91: =IF(ISBLANK(VG!P118),"",VG!P118) ->  | O91: =VG!Q118 ->  | P91: =IF(ISBLANK(VG!P33),(YM!H91+YM!J91+YM!L91)/3,(YM!H91+YM!J91+YM!L91+YM!N91)/4) -> 0 | Q91: =IF(ISBLANK(VG!P33),(YM!I91+YM!K91+YM!M91)/3,(YM!I91+YM!K91+YM!M91+YM!O91)/4) -> 0 | R91: 0 | S91: 0 | T91: 0 | U91: 0
A92: =VG!A119 ->  | B92: =VG!B119 -> 0 | D92: =VG!E119 -> 0 | F92: =VG!G119 -> 0 | G92: =VG!H119 -> 0 | H92: =VG!J119 -> 0 | I92: =VG!K119 -> 0 | J92: =VG!L119 -> 0 | K92: =VG!M119 -> 0 | L92: =VG!N119 -> 0 | M92: =VG!O119 -> 0 | N92: =IF(ISBLANK(VG!P119),"",VG!P119) ->  | O92: =VG!Q119 ->  | P92: =IF(ISBLANK(VG!P33),(YM!H92+YM!J92+YM!L92)/3,(YM!H92+YM!J92+YM!L92+YM!N92)/4) -> 0 | Q92: =IF(ISBLANK(VG!P33),(YM!I92+YM!K92+YM!M92)/3,(YM!I92+YM!K92+YM!M92+YM!O92)/4) -> 0 | R92: 0 | S92: 0 | T92: 0 | U92: 0
A93: =VG!A120 ->  | B93: =VG!B120 -> 0 | D93: =VG!E120 -> 0 | F93: =VG!G120 -> 0 | G93: =VG!H120 -> 0 | H93: =VG!J120 -> 0 | I93: =VG!K120 -> 0 | J93: =VG!L120 -> 0 | K93: =VG!M120 -> 0 | L93: =VG!N120 -> 0 | M93: =VG!O120 -> 0 | N93: =IF(ISBLANK(VG!P120),"",VG!P120) ->  | O93: =VG!Q120 ->  | P93: =IF(ISBLANK(VG!P33),(YM!H93+YM!J93+YM!L93)/3,(YM!H93+YM!J93+YM!L93+YM!N93)/4) -> 0 | Q93: =IF(ISBLANK(VG!P33),(YM!I93+YM!K93+YM!M93)/3,(YM!I93+YM!K93+YM!M93+YM!O93)/4) -> 0 | R93: 0 | S93: 0 | T93: 0 | U93: 0
A94: =VG!A121 ->  | B94: =VG!B121 -> 0 | D94: =VG!E121 -> 0 | F94: =VG!G121 -> 0 | G94: =VG!H121 -> 0 | H94: =VG!J121 -> 0 | I94: =VG!K121 -> 0 | J94: =VG!L121 -> 0 | K94: =VG!M121 -> 0 | L94: =VG!N121 -> 0 | M94: =VG!O121 -> 0 | N94: =IF(ISBLANK(VG!P121),"",VG!P121) ->  | O94: =VG!Q121 ->  | P94: =IF(ISBLANK(VG!P33),(YM!H94+YM!J94+YM!L94)/3,(YM!H94+YM!J94+YM!L94+YM!N94)/4) -> 0 | Q94: =IF(ISBLANK(VG!P33),(YM!I94+YM!K94+YM!M94)/3,(YM!I94+YM!K94+YM!M94+YM!O94)/4) -> 0 | R94: 0 | S94: 0 | T94: 0 | U94: 0
A95: =VG!A122 ->  | B95: =VG!B122 -> 0 | D95: =VG!E122 -> 0 | F95: =VG!G122 -> 0 | G95: =VG!H122 -> 0 | H95: =VG!J122 -> 0 | I95: =VG!K122 -> 0 | J95: =VG!L122 -> 0 | K95: =VG!M122 -> 0 | L95: =VG!N122 -> 0 | M95: =VG!O122 -> 0 | N95: =IF(ISBLANK(VG!P122),"",VG!P122) ->  | O95: =VG!Q122 ->  | P95: =IF(ISBLANK(VG!P33),(YM!H95+YM!J95+YM!L95)/3,(YM!H95+YM!J95+YM!L95+YM!N95)/4) -> 0 | Q95: =IF(ISBLANK(VG!P33),(YM!I95+YM!K95+YM!M95)/3,(YM!I95+YM!K95+YM!M95+YM!O95)/4) -> 0 | R95: 0 | S95: 0 | T95: 0 | U95: 0
A96: =VG!A123 ->  | B96: =VG!B123 -> 0 | D96: =VG!E123 -> 0 | F96: =VG!G123 -> 0 | G96: =VG!H123 -> 0 | H96: =VG!J123 -> 0 | I96: =VG!K123 -> 0 | J96: =VG!L123 -> 0 | K96: =VG!M123 -> 0 | L96: =VG!N123 -> 0 | M96: =VG!O123 -> 0 | N96: =IF(ISBLANK(VG!P123),"",VG!P123) ->  | O96: =VG!Q123 ->  | P96: =IF(ISBLANK(VG!P33),(YM!H96+YM!J96+YM!L96)/3,(YM!H96+YM!J96+YM!L96+YM!N96)/4) -> 0 | Q96: =IF(ISBLANK(VG!P33),(YM!I96+YM!K96+YM!M96)/3,(YM!I96+YM!K96+YM!M96+YM!O96)/4) -> 0 | R96: 0 | S96: 0 | T96: 0 | U96: 0
A97: =VG!A124 ->  | B97: =VG!B124 -> 0 | D97: =VG!E124 -> 0 | F97: =VG!G124 -> 0 | G97: =VG!H124 -> 0 | H97: =VG!J124 -> 0 | I97: =VG!K124 -> 0 | J97: =VG!L124 -> 0 | K97: =VG!M124 -> 0 | L97: =VG!N124 -> 0 | M97: =VG!O124 -> 0 | N97: =IF(ISBLANK(VG!P124),"",VG!P124) ->  | O97: =VG!Q124 ->  | P97: =IF(ISBLANK(VG!P33),(YM!H97+YM!J97+YM!L97)/3,(YM!H97+YM!J97+YM!L97+YM!N97)/4) -> 0 | Q97: =IF(ISBLANK(VG!P33),(YM!I97+YM!K97+YM!M97)/3,(YM!I97+YM!K97+YM!M97+YM!O97)/4) -> 0 | R97: 0 | S97: 0 | T97: 0 | U97: 0
A98: =VG!A125 ->  | B98: =VG!B125 -> 0 | D98: =VG!E125 -> 0 | F98: =VG!G125 -> 0 | G98: =VG!H125 -> 0 | H98: =VG!J125 -> 0 | I98: =VG!K125 -> 0 | J98: =VG!L125 -> 0 | K98: =VG!M125 -> 0 | L98: =VG!N125 -> 0 | M98: =VG!O125 -> 0 | N98: =IF(ISBLANK(VG!P125),"",VG!P125) ->  | O98: =VG!Q125 ->  | P98: =IF(ISBLANK(VG!P33),(YM!H98+YM!J98+YM!L98)/3,(YM!H98+YM!J98+YM!L98+YM!N98)/4) -> 0 | Q98: =IF(ISBLANK(VG!P33),(YM!I98+YM!K98+YM!M98)/3,(YM!I98+YM!K98+YM!M98+YM!O98)/4) -> 0 | R98: 0 | S98: 0 | T98: 0 | U98: 0
A99: =VG!A126 ->  | B99: =VG!B126 -> 0 | D99: =VG!E126 -> 0 | F99: =VG!G126 -> 0 | G99: =VG!H126 -> 0 | H99: =VG!J126 -> 0 | I99: =VG!K126 -> 0 | J99: =VG!L126 -> 0 | K99: =VG!M126 -> 0 | L99: =VG!N126 -> 0 | M99: =VG!O126 -> 0 | N99: =IF(ISBLANK(VG!P126),"",VG!P126) ->  | O99: =VG!Q126 ->  | P99: =IF(ISBLANK(VG!P33),(YM!H99+YM!J99+YM!L99)/3,(YM!H99+YM!J99+YM!L99+YM!N99)/4) -> 0 | Q99: =IF(ISBLANK(VG!P33),(YM!I99+YM!K99+YM!M99)/3,(YM!I99+YM!K99+YM!M99+YM!O99)/4) -> 0 | R99: 0 | S99: 0 | T99: 0 | U99: 0
A100: =VG!A127 ->  | B100: =VG!B127 -> 0 | D100: =VG!E127 -> 0 | F100: =VG!G127 -> 0 | G100: =VG!H127 -> 0 | H100: =VG!J127 -> 0 | I100: =VG!K127 -> 0 | J100: =VG!L127 -> 0 | K100: =VG!M127 -> 0 | L100: =VG!N127 -> 0 | M100: =VG!O127 -> 0 | N100: =IF(ISBLANK(VG!P127),"",VG!P127) ->  | O100: =VG!Q127 ->  | P100: =IF(ISBLANK(VG!P33),(YM!H100+YM!J100+YM!L100)/3,(YM!H100+YM!J100+YM!L100+YM!N100)/4) -> 0 | Q100: =IF(ISBLANK(VG!P33),(YM!I100+YM!K100+YM!M100)/3,(YM!I100+YM!K100+YM!M100+YM!O100)/4) -> 0 | R100: 0 | S100: 0 | T100: 0 | U100: 0
A101: =VG!A128 ->  | B101: =VG!B128 -> 0 | D101: =VG!E128 -> 0 | F101: =VG!G128 -> 0 | G101: =VG!H128 -> 0 | H101: =VG!J128 -> 0 | I101: =VG!K128 -> 0 | J101: =VG!L128 -> 0 | K101: =VG!M128 -> 0 | L101: =VG!N128 -> 0 | M101: =VG!O128 -> 0 | N101: =IF(ISBLANK(VG!P128),"",VG!P128) ->  | O101: =VG!Q128 ->  | P101: =IF(ISBLANK(VG!P33),(YM!H101+YM!J101+YM!L101)/3,(YM!H101+YM!J101+YM!L101+YM!N101)/4) -> 0 | Q101: =IF(ISBLANK(VG!P33),(YM!I101+YM!K101+YM!M101)/3,(YM!I101+YM!K101+YM!M101+YM!O101)/4) -> 0 | R101: 0 | S101: 0 | T101: 0 | U101: 0
A102: =VG!A129 ->  | B102: =VG!B129 -> 0 | D102: =VG!E129 -> 0 | F102: =VG!G129 -> 0 | G102: =VG!H129 -> 0 | H102: =VG!J129 -> 0 | I102: =VG!K129 -> 0 | J102: =VG!L129 -> 0 | K102: =VG!M129 -> 0 | L102: =VG!N129 -> 0 | M102: =VG!O129 -> 0 | N102: =IF(ISBLANK(VG!P129),"",VG!P129) ->  | O102: =VG!Q129 ->  | P102: =IF(ISBLANK(VG!P33),(YM!H102+YM!J102+YM!L102)/3,(YM!H102+YM!J102+YM!L102+YM!N102)/4) -> 0 | Q102: =IF(ISBLANK(VG!P33),(YM!I102+YM!K102+YM!M102)/3,(YM!I102+YM!K102+YM!M102+YM!O102)/4) -> 0 | R102: 0 | S102: 0 | T102: 0 | U102: 0
A103: =VG!A130 ->  | B103: =VG!B130 -> 0 | D103: =VG!E130 -> 0 | F103: =VG!G130 -> 0 | G103: =VG!H130 -> 0 | H103: =VG!J130 -> 0 | I103: =VG!K130 -> 0 | J103: =VG!L130 -> 0 | K103: =VG!M130 -> 0 | L103: =VG!N130 -> 0 | M103: =VG!O130 -> 0 | N103: =IF(ISBLANK(VG!P130),"",VG!P130) ->  | O103: =VG!Q130 ->  | P103: =IF(ISBLANK(VG!P33),(YM!H103+YM!J103+YM!L103)/3,(YM!H103+YM!J103+YM!L103+YM!N103)/4) -> 0 | Q103: =IF(ISBLANK(VG!P33),(YM!I103+YM!K103+YM!M103)/3,(YM!I103+YM!K103+YM!M103+YM!O103)/4) -> 0 | R103: 0 | S103: 0 | T103: 0 | U103: 0
A104: =VG!A131 ->  | B104: =VG!B131 -> 0 | D104: =VG!E131 -> 0 | F104: =VG!G131 -> 0 | G104: =VG!H131 -> 0 | H104: =VG!J131 -> 0 | I104: =VG!K131 -> 0 | J104: =VG!L131 -> 0 | K104: =VG!M131 -> 0 | L104: =VG!N131 -> 0 | M104: =VG!O131 -> 0 | N104: =IF(ISBLANK(VG!P131),"",VG!P131) ->  | O104: =VG!Q131 ->  | P104: =IF(ISBLANK(VG!P33),(YM!H104+YM!J104+YM!L104)/3,(YM!H104+YM!J104+YM!L104+YM!N104)/4) -> 0 | Q104: =IF(ISBLANK(VG!P33),(YM!I104+YM!K104+YM!M104)/3,(YM!I104+YM!K104+YM!M104+YM!O104)/4) -> 0 | R104: 0 | S104: 0 | T104: 0 | U104: 0
A105: =VG!A132 ->  | B105: =VG!B132 -> 0 | D105: =VG!E132 -> 0 | F105: =VG!G132 -> 0 | G105: =VG!H132 -> 0 | H105: =VG!J132 -> 0 | I105: =VG!K132 -> 0 | J105: =VG!L132 -> 0 | K105: =VG!M132 -> 0 | L105: =VG!N132 -> 0 | M105: =VG!O132 -> 0 | N105: =IF(ISBLANK(VG!P132),"",VG!P132) ->  | O105: =VG!Q132 ->  | P105: =IF(ISBLANK(VG!P33),(YM!H105+YM!J105+YM!L105)/3,(YM!H105+YM!J105+YM!L105+YM!N105)/4) -> 0 | Q105: =IF(ISBLANK(VG!P33),(YM!I105+YM!K105+YM!M105)/3,(YM!I105+YM!K105+YM!M105+YM!O105)/4) -> 0 | R105: 0 | S105: 0 | T105: 0 | U105: 0
A106: =VG!A133 ->  | B106: =VG!B133 -> 0 | D106: =VG!E133 -> 0 | F106: =VG!G133 -> 0 | G106: =VG!H133 -> 0 | H106: =VG!J133 -> 0 | I106: =VG!K133 -> 0 | J106: =VG!L133 -> 0 | K106: =VG!M133 -> 0 | L106: =VG!N133 -> 0 | M106: =VG!O133 -> 0 | N106: =IF(ISBLANK(VG!P133),"",VG!P133) ->  | O106: =VG!Q133 ->  | P106: =IF(ISBLANK(VG!P33),(YM!H106+YM!J106+YM!L106)/3,(YM!H106+YM!J106+YM!L106+YM!N106)/4) -> 0 | Q106: =IF(ISBLANK(VG!P33),(YM!I106+YM!K106+YM!M106)/3,(YM!I106+YM!K106+YM!M106+YM!O106)/4) -> 0 | R106: 0 | S106: 0 | T106: 0 | U106: 0
A107: =VG!A134 ->  | B107: =VG!B134 -> 0 | D107: =VG!E134 -> 0 | F107: =VG!G134 -> 0 | G107: =VG!H134 -> 0 | H107: =VG!J134 -> 0 | I107: =VG!K134 -> 0 | J107: =VG!L134 -> 0 | K107: =VG!M134 -> 0 | L107: =VG!N134 -> 0 | M107: =VG!O134 -> 0 | N107: =IF(ISBLANK(VG!P134),"",VG!P134) ->  | O107: =VG!Q134 ->  | P107: =IF(ISBLANK(VG!P33),(YM!H107+YM!J107+YM!L107)/3,(YM!H107+YM!J107+YM!L107+YM!N107)/4) -> 0 | Q107: =IF(ISBLANK(VG!P33),(YM!I107+YM!K107+YM!M107)/3,(YM!I107+YM!K107+YM!M107+YM!O107)/4) -> 0 | R107: 0 | S107: 0 | T107: 0 | U107: 0
A108: Kişiler / Firmalarca Bildirilen Yaklaşık Maliyet Fiyatı Toplamı (KDV HARİÇ) | H108: TOPLAM | I108: =SUM(I8:I107) -> 11430 | J108: TOPLAM | K108: =SUM(K8:K107) -> 13010 | L108: TOPLAM | M108: =SUM(M8:M107) -> 12840 | N108: TOPLAM | O108: =SUM(O8:O107) -> 0 | P108: TOPLAM | Q108: =SUM(Q8:Q107) -> 12426.66667
A109: İdaremizce ihtiyaç duyulan ve satın alınması düşünülen yukarıda cinsi, özellikleri ve miktarları yazılı malların / hizmetlerin 4734 Sayılı Kamu İhale Kanununun 9. maddesi gereğince Yaklaşık Maliyetinin tesbitine esas olmak üzere ilgili Kişi, Kurum ve Firmalardan her türlü fiyat araştırması yapılmıştır. araştırma sonuçları yukarıdaki tabloda gösterilmiştir. Yukarıda açıklandığı üzere ihaleye çıkılması düşünülen Malların / Hizmetlerin fiyat araştırması neticesinde 4734 Sayılı Kamu İhale Kanununun 9. maddesi gereğinice Yaklaşık Maliyetinin KDV HARİÇ yukarıda belirtildiği gibi takdir ve tespit edilerek iş bu hesap cetveli tarafımızca imza altına alınmıştır.
A110: YAKLAŞIK MALİYET TESPİTİ YAPAN GÖREVLİLER
B112: =PAT!B115 -> 0 | H112: =PAT!H115 -> 0 | N112: =PAT!N115 -> 0
B113: =PAT!B116 -> Müdür Yardımcsısı | H113: =PAT!H116 -> Öğretmen | N113: =PAT!N116 -> Öğretmen

Sheet PAT
A1: PİYASA FİYAT ARAŞTIRMA TUTANAĞI
A2: İdarenin Adı | F2: =VG!D9 -> Erdem Bayazıt İmam Hatip Ortaokulu
A3: Yapılan Alımın Adı, Niteliği | F3: =CONCATENATE(VG!D17,VG!H17,VG!D16,VG!H16) -> Okul İhtiyacı için Büro Mefruşat Alımları Alımı
A4: Alım için Görevlendirilenlere ilişkin Onay Belgesinin Tarih ve Sayısı | F4: =CONCATENATE(VG!D26,B!C3,VG!F26) -> 44460 / 2021-1
A5: Satın Alınacak Mal veya Malzemenin | H5: Kişiler/Firmalar ve Fiyat Teklifleri (KDV HARİÇ)
H6: =VG!R33 -> GÖKTÜRK MEFRUŞAT | J6: =VG!T33 -> YILDIZLAR MANİFATURA | L6: =VG!V33 -> DENGE TEKSTİL | N6: =IF(ISBLANK(VG!X33),"",VG!X33) -> 
A7: SIRA | B7: Cinsi | D7: Özelliği | F7: Miktarı | G7: Ölçüsü | H7: Birim Fiyat | I7: Toplam Fiyat | J7: Birim Fiyat | K7: Toplam Fiyat | L7: Birim Fiyat | M7: Toplam Fiyat | N7: Birim Fiyat | O7: Toplam Fiyat
A8: =VG!A35 -> 1 | B8: =VG!B35 -> Perde | D8: =VG!E35 -> Fon | F8: =VG!G35 -> 120 | G8: =VG!H35 -> Metrekare | H8: =VG!R35 -> 70 | I8: =VG!S35 -> 8400 | J8: =VG!T35 -> 70 | K8: =VG!U35 -> 8400 | L8: =VG!V35 -> 70 | M8: =VG!W35 -> 8400 | N8: =IF(ISBLANK(VG!X35),"",VG!X35) ->  | O8: =VG!Y35 -> 
A9: =VG!A36 -> 2 | B9: =VG!B36 -> Perde | D9: =VG!E36 -> Zebra | F9: =VG!G36 -> 30 | G9: =VG!H36 -> Metrekare | H9: =VG!R36 -> 50 | I9: =VG!S36 -> 1500 | J9: =VG!T36 -> 80 | K9: =VG!U36 -> 2400 | L9: =VG!V36 -> 80 | M9: =VG!W36 -> 2400 | N9: =IF(ISBLANK(VG!X36),"",VG!X36) ->  | O9: =VG!Y36 -> 
A10: =VG!A37 -> 3 | B10: =VG!B37 -> Perde | D10: =VG!E37 -> Karartma | F10: =VG!G37 -> 34 | G10: =VG!H37 -> Metrekare | H10: =VG!R37 -> 45 | I10: =VG!S37 -> 1530 | J10: =VG!T37 -> 65 | K10: =VG!U37 -> 2210 | L10: =VG!V37 -> 60 | M10: =VG!W37 -> 2040 | N10: =IF(ISBLANK(VG!X37),"",VG!X37) ->  | O10: =VG!Y37 -> 
A11: =VG!A38 ->  | B11: =VG!B38 -> 0 | D11: =VG!E38 -> 0 | F11: =VG!G38 -> 0 | G11: =VG!H38 -> 0 | H11: =VG!R38 -> 0 | I11: =VG!S38 -> 0 | J11: =VG!T38 -> 0 | K11: =VG!U38 -> 0 | L11: =VG!V38 -> 0 | M11: =VG!W38 -> 0 | N11: =IF(ISBLANK(VG!X38),"",VG!X38) ->  | O11: =VG!Y38 -> 
A12: =VG!A39 ->  | B12: =VG!B39 -> 0 | D12: =VG!E39 -> 0 | F12: =VG!G39 -> 0 | G12: =VG!H39 -> 0 | H12: =VG!R39 -> 0 | I12: =VG!S39 -> 0 | J12: =VG!T39 -> 0 | K12: =VG!U39 -> 0 | L12: =VG!V39 -> 0 | M12: =VG!W39 -> 0 | N12: =IF(ISBLANK(VG!X39),"",VG!X39) ->  | O12: =VG!Y39 -> 
A13: =VG!A40 ->  | B13: =VG!B40 -> 0 | D13: =VG!E40 -> 0 | F13: =VG!G40 -> 0 | G13: =VG!H40 -> 0 | H13: =VG!R40 -> 0 | I13: =VG!S40 -> 0 | J13: =VG!T40 -> 0 | K13: =VG!U40 -> 0 | L13: =VG!V40 -> 0 | M13: =VG!W40 -> 0 | N13: =IF(ISBLANK(VG!X40),"",VG!X40) ->  | O13: =VG!Y40 -> 
A14: =VG!A41 ->  | B14: =VG!B41 -> 0 | D14: =VG!E41 -> 0 | F14: =VG!G41 -> 0 | G14: =VG!H41 -> 0 | H14: =VG!R41 -> 0 | I14: =VG!S41 -> 0 | J14: =VG!T41 -> 0 | K14: =VG!U41 -> 0 | L14: =VG!V41 -> 0 | M14: =VG!W41 -> 0 | N14: =IF(ISBLANK(VG!X41),"",VG!X41) ->  | O14: =VG!Y41 -> 
A15: =VG!A42 ->  | B15: =VG!B42 -> 0 | D15: =VG!E42 -> 0 | F15: =VG!G42 -> 0 | G15: =VG!H42 -> 0 | H15: =VG!R42 -> 0 | I15: =VG!S42 -> 0 | J15: =VG!T42 -> 0 | K15: =VG!U42 -> 0 | L15: =VG!V42 -> 0 | M15: =VG!W42 -> 0 | N15: =IF(ISBLANK(VG!X42),"",VG!X42) ->  | O15: =VG!Y42 -> 
A16: =VG!A43 ->  | B16: =VG!B43 -> 0 | D16: =VG!E43 -> 0 | F16: =VG!G43 -> 0 | G16: =VG!H43 -> 0 | H16: =VG!R43 -> 0 | I16: =VG!S43 -> 0 | J16: =VG!T43 -> 0 | K16: =VG!U43 -> 0 | L16: =VG!V43 -> 0 | M16: =VG!W43 -> 0 | N16: =IF(ISBLANK(VG!X43),"",VG!X43) ->  | O16: =VG!Y43 -> 
A17: =VG!A44 ->  | B17: =VG!B44 -> 0 | D17: =VG!E44 -> 0 | F17: =VG!G44 -> 0 | G17: =VG!H44 -> 0 | H17: =VG!R44 -> 0 | I17: =VG!S44 -> 0 | J17: =VG!T44 -> 0 | K17: =VG!U44 -> 0 | L17: =VG!V44 -> 0 | M17: =VG!W44 -> 0 | N17: =IF(ISBLANK(VG!X44),"",VG!X44) ->  | O17: =VG!Y44 -> 
A18: =VG!A45 ->  | B18: =VG!B45 -> 0 | D18: =VG!E45 -> 0 | F18: =VG!G45 -> 0 | G18: =VG!H45 -> 0 | H18: =VG!R45 -> 0 | I18: =VG!S45 -> 0 | J18: =VG!T45 -> 0 | K18: =VG!U45 -> 0 | L18: =VG!V45 -> 0 | M18: =VG!W45 -> 0 | N18: =IF(ISBLANK(VG!X45),"",VG!X45) ->  | O18: =VG!Y45 -> 
A19: =VG!A46 ->  | B19: =VG!B46 -> 0 | D19: =VG!E46 -> 0 | F19: =VG!G46 -> 0 | G19: =VG!H46 -> 0 | H19: =VG!R46 -> 0 | I19: =VG!S46 -> 0 | J19: =VG!T46 -> 0 | K19: =VG!U46 -> 0 | L19: =VG!V46 -> 0 | M19: =VG!W46 -> 0 | N19: =IF(ISBLANK(VG!X46),"",VG!X46) ->  | O19: =VG!Y46 -> 
A20: =VG!A47 ->  | B20: =VG!B47 -> 0 | D20: =VG!E47 -> 0 | F20: =VG!G47 -> 0 | G20: =VG!H47 -> 0 | H20: =VG!R47 -> 0 | I20: =VG!S47 -> 0 | J20: =VG!T47 -> 0 | K20: =VG!U47 -> 0 | L20: =VG!V47 -> 0 | M20: =VG!W47 -> 0 | N20: =IF(ISBLANK(VG!X47),"",VG!X47) ->  | O20: =VG!Y47 -> 
A21: =VG!A48 ->  | B21: =VG!B48 -> 0 | D21: =VG!E48 -> 0 | F21: =VG!G48 -> 0 | G21: =VG!H48 -> 0 | H21: =VG!R48 -> 0 | I21: =VG!S48 -> 0 | J21: =VG!T48 -> 0 | K21: =VG!U48 -> 0 | L21: =VG!V48 -> 0 | M21: =VG!W48 -> 0 | N21: =IF(ISBLANK(VG!X48),"",VG!X48) ->  | O21: =VG!Y48 -> 
A22: =VG!A49 ->  | B22: =VG!B49 -> 0 | D22: =VG!E49 -> 0 | F22: =VG!G49 -> 0 | G22: =VG!H49 -> 0 | H22: =VG!R49 -> 0 | I22: =VG!S49 -> 0 | J22: =VG!T49 -> 0 | K22: =VG!U49 -> 0 | L22: =VG!V49 -> 0 | M22: =VG!W49 -> 0 | N22: =IF(ISBLANK(VG!X49),"",VG!X49) ->  | O22: =VG!Y49 -> 
A23: =VG!A50 ->  | B23: =VG!B50 -> 0 | D23: =VG!E50 -> 0 | F23: =VG!G50 -> 0 | G23: =VG!H50 -> 0 | H23: =VG!R50 -> 0 | I23: =VG!S50 -> 0 | J23: =VG!T50 -> 0 | K23: =VG!U50 -> 0 | L23: =VG!V50 -> 0 | M23: =VG!W50 -> 0 | N23: =IF(ISBLANK(VG!X50),"",VG!X50) ->  | O23: =VG!Y50 -> 
A24: =VG!A51 ->  | B24: =VG!B51 -> 0 | D24: =VG!E51 -> 0 | F24: =VG!G51 -> 0 | G24: =VG!H51 -> 0 | H24: =VG!R51 -> 0 | I24: =VG!S51 -> 0 | J24: =VG!T51 -> 0 | K24: =VG!U51 -> 0 | L24: =VG!V51 -> 0 | M24: =VG!W51 -> 0 | N24: =IF(ISBLANK(VG!X51),"",VG!X51) ->  | O24: =VG!Y51 -> 
A25: =VG!A52 ->  | B25: =VG!B52 -> 0 | D25: =VG!E52 -> 0 | F25: =VG!G52 -> 0 | G25: =VG!H52 -> 0 | H25: =VG!R52 -> 0 | I25: =VG!S52 -> 0 | J25: =VG!T52 -> 0 | K25: =VG!U52 -> 0 | L25: =VG!V52 -> 0 | M25: =VG!W52 -> 0 | N25: =IF(ISBLANK(VG!X52),"",VG!X52) ->  | O25: =VG!Y52 -> 
A26: =VG!A53 ->  | B26: =VG!B53 -> 0 | D26: =VG!E53 -> 0 | F26: =VG!G53 -> 0 | G26: =VG!H53 -> 0 | H26: =VG!R53 -> 0 | I26: =VG!S53 -> 0 | J26: =VG!T53 -> 0 | K26: =VG!U53 -> 0 | L26: =VG!V53 -> 0 | M26: =VG!W53 -> 0 | N26: =IF(ISBLANK(VG!X53),"",VG!X53) ->  | O26: =VG!Y53 -> 
A27: =VG!A54 ->  | B27: =VG!B54 -> 0 | D27: =VG!E54 -> 0 | F27: =VG!G54 -> 0 | G27: =VG!H54 -> 0 | H27: =VG!R54 -> 0 | I27: =VG!S54 -> 0 | J27: =VG!T54 -> 0 | K27: =VG!U54 -> 0 | L27: =VG!V54 -> 0 | M27: =VG!W54 -> 0 | N27: =IF(ISBLANK(VG!X54),"",VG!X54) ->  | O27: =VG!Y54 -> 
A28: =VG!A55 ->  | B28: =VG!B55 -> 0 | D28: =VG!E55 -> 0 | F28: =VG!G55 -> 0 | G28: =VG!H55 -> 0 | H28: =VG!R55 -> 0 | I28: =VG!S55 -> 0 | J28: =VG!T55 -> 0 | K28: =VG!U55 -> 0 | L28: =VG!V55 -> 0 | M28: =VG!W55 -> 0 | N28: =IF(ISBLANK(VG!X55),"",VG!X55) ->  | O28: =VG!Y55 -> 
A29: =VG!A56 ->  | B29: =VG!B56 -> 0 | D29: =VG!E56 -> 0 | F29: =VG!G56 -> 0 | G29: =VG!H56 -> 0 | H29: =VG!R56 -> 0 | I29: =VG!S56 -> 0 | J29: =VG!T56 -> 0 | K29: =VG!U56 -> 0 | L29: =VG!V56 -> 0 | M29: =VG!W56 -> 0 | N29: =IF(ISBLANK(VG!X56),"",VG!X56) ->  | O29: =VG!Y56 -> 
A30: =VG!A57 ->  | B30: =VG!B57 -> 0 | D30: =VG!E57 -> 0 | F30: =VG!G57 -> 0 | G30: =VG!H57 -> 0 | H30: =VG!R57 -> 0 | I30: =VG!S57 -> 0 | J30: =VG!T57 -> 0 | K30: =VG!U57 -> 0 | L30: =VG!V57 -> 0 | M30: =VG!W57 -> 0 | N30: =IF(ISBLANK(VG!X57),"",VG!X57) ->  | O30: =VG!Y57 -> 
A31: =VG!A58 ->  | B31: =VG!B58 -> 0 | D31: =VG!E58 -> 0 | F31: =VG!G58 -> 0 | G31: =VG!H58 -> 0 | H31: =VG!R58 -> 0 | I31: =VG!S58 -> 0 | J31: =VG!T58 -> 0 | K31: =VG!U58 -> 0 | L31: =VG!V58 -> 0 | M31: =VG!W58 -> 0 | N31: =IF(ISBLANK(VG!X58),"",VG!X58) ->  | O31: =VG!Y58 -> 
A32: =VG!A59 ->  | B32: =VG!B59 -> 0 | D32: =VG!E59 -> 0 | F32: =VG!G59 -> 0 | G32: =VG!H59 -> 0 | H32: =VG!R59 -> 0 | I32: =VG!S59 -> 0 | J32: =VG!T59 -> 0 | K32: =VG!U59 -> 0 | L32: =VG!V59 -> 0 | M32: =VG!W59 -> 0 | N32: =IF(ISBLANK(VG!X59),"",VG!X59) ->  | O32: =VG!Y59 -> 
A33: =VG!A60 ->  | B33: =VG!B60 -> 0 | D33: =VG!E60 -> 0 | F33: =VG!G60 -> 0 | G33: =VG!H60 -> 0 | H33: =VG!R60 -> 0 | I33: =VG!S60 -> 0 | J33: =VG!T60 -> 0 | K33: =VG!U60 -> 0 | L33: =VG!V60 -> 0 | M33: =VG!W60 -> 0 | N33: =IF(ISBLANK(VG!X60),"",VG!X60) ->  | O33: =VG!Y60 -> 
A34: =VG!A61 ->  | B34: =VG!B61 -> 0 | D34: =VG!E61 -> 0 | F34: =VG!G61 -> 0 | G34: =VG!H61 -> 0 | H34: =VG!R61 -> 0 | I34: =VG!S61 -> 0 | J34: =VG!T61 -> 0 | K34: =VG!U61 -> 0 | L34: =VG!V61 -> 0 | M34: =VG!W61 -> 0 | N34: =IF(ISBLANK(VG!X61),"",VG!X61) ->  | O34: =VG!Y61 -> 
A35: =VG!A62 ->  | B35: =VG!B62 -> 0 | D35: =VG!E62 -> 0 | F35: =VG!G62 -> 0 | G35: =VG!H62 -> 0 | H35: =VG!R62 -> 0 | I35: =VG!S62 -> 0 | J35: =VG!T62 -> 0 | K35: =VG!U62 -> 0 | L35: =VG!V62 -> 0 | M35: =VG!W62 -> 0 | N35: =IF(ISBLANK(VG!X62),"",VG!X62) ->  | O35: =VG!Y62 -> 
A36: =VG!A63 ->  | B36: =VG!B63 -> 0 | D36: =VG!E63 -> 0 | F36: =VG!G63 -> 0 | G36: =VG!H63 -> 0 | H36: =VG!R63 -> 0 | I36: =VG!S63 -> 0 | J36: =VG!T63 -> 0 | K36: =VG!U63 -> 0 | L36: =VG!V63 -> 0 | M36: =VG!W63 -> 0 | N36: =IF(ISBLANK(VG!X63),"",VG!X63) ->  | O36: =VG!Y63 -> 
A37: =VG!A64 ->  | B37: =VG!B64 -> 0 | D37: =VG!E64 -> 0 | F37: =VG!G64 -> 0 | G37: =VG!H64 -> 0 | H37: =VG!R64 -> 0 | I37: =VG!S64 -> 0 | J37: =VG!T64 -> 0 | K37: =VG!U64 -> 0 | L37: =VG!V64 -> 0 | M37: =VG!W64 -> 0 | N37: =IF(ISBLANK(VG!X64),"",VG!X64) ->  | O37: =VG!Y64 -> 
A38: =VG!A65 ->  | B38: =VG!B65 -> 0 | D38: =VG!E65 -> 0 | F38: =VG!G65 -> 0 | G38: =VG!H65 -> 0 | H38: =VG!R65 -> 0 | I38: =VG!S65 -> 0 | J38: =VG!T65 -> 0 | K38: =VG!U65 -> 0 | L38: =VG!V65 -> 0 | M38: =VG!W65 -> 0 | N38: =IF(ISBLANK(VG!X65),"",VG!X65) ->  | O38: =VG!Y65 -> 
A39: =VG!A66 ->  | B39: =VG!B66 -> 0 | D39: =VG!E66 -> 0 | F39: =VG!G66 -> 0 | G39: =VG!H66 -> 0 | H39: =VG!R66 -> 0 | I39: =VG!S66 -> 0 | J39: =VG!T66 -> 0 | K39: =VG!U66 -> 0 | L39: =VG!V66 -> 0 | M39: =VG!W66 -> 0 | N39: =IF(ISBLANK(VG!X66),"",VG!X66) ->  | O39: =VG!Y66 -> 
A40: =VG!A67 ->  | B40: =VG!B67 -> 0 | D40: =VG!E67 -> 0 | F40: =VG!G67 -> 0 | G40: =VG!H67 -> 0 | H40: =VG!R67 -> 0 | I40: =VG!S67 -> 0 | J40: =VG!T67 -> 0 | K40: =VG!U67 -> 0 | L40: =VG!V67 -> 0 | M40: =VG!W67 -> 0 | N40: =IF(ISBLANK(VG!X67),"",VG!X67) ->  | O40: =VG!Y67 -> 
A41: =VG!A68 ->  | B41: =VG!B68 -> 0 | D41: =VG!E68 -> 0 | F41: =VG!G68 -> 0 | G41: =VG!H68 -> 0 | H41: =VG!R68 -> 0 | I41: =VG!S68 -> 0 | J41: =VG!T68 -> 0 | K41: =VG!U68 -> 0 | L41: =VG!V68 -> 0 | M41: =VG!W68 -> 0 | N41: =IF(ISBLANK(VG!X68),"",VG!X68) ->  | O41: =VG!Y68 -> 
A42: =VG!A69 ->  | B42: =VG!B69 -> 0 | D42: =VG!E69 -> 0 | F42: =VG!G69 -> 0 | G42: =VG!H69 -> 0 | H42: =VG!R69 -> 0 | I42: =VG!S69 -> 0 | J42: =VG!T69 -> 0 | K42: =VG!U69 -> 0 | L42: =VG!V69 -> 0 | M42: =VG!W69 -> 0 | N42: =IF(ISBLANK(VG!X69),"",VG!X69) ->  | O42: =VG!Y69 -> 
A43: =VG!A70 ->  | B43: =VG!B70 -> 0 | D43: =VG!E70 -> 0 | F43: =VG!G70 -> 0 | G43: =VG!H70 -> 0 | H43: =VG!R70 -> 0 | I43: =VG!S70 -> 0 | J43: =VG!T70 -> 0 | K43: =VG!U70 -> 0 | L43: =VG!V70 -> 0 | M43: =VG!W70 -> 0 | N43: =IF(ISBLANK(VG!X70),"",VG!X70) ->  | O43: =VG!Y70 -> 
A44: =VG!A71 ->  | B44: =VG!B71 -> 0 | D44: =VG!E71 -> 0 | F44: =VG!G71 -> 0 | G44: =VG!H71 -> 0 | H44: =VG!R71 -> 0 | I44: =VG!S71 -> 0 | J44: =VG!T71 -> 0 | K44: =VG!U71 -> 0 | L44: =VG!V71 -> 0 | M44: =VG!W71 -> 0 | N44: =IF(ISBLANK(VG!X71),"",VG!X71) ->  | O44: =VG!Y71 -> 
A45: =VG!A72 ->  | B45: =VG!B72 -> 0 | D45: =VG!E72 -> 0 | F45: =VG!G72 -> 0 | G45: =VG!H72 -> 0 | H45: =VG!R72 -> 0 | I45: =VG!S72 -> 0 | J45: =VG!T72 -> 0 | K45: =VG!U72 -> 0 | L45: =VG!V72 -> 0 | M45: =VG!W72 -> 0 | N45: =IF(ISBLANK(VG!X72),"",VG!X72) ->  | O45: =VG!Y72 -> 
A46: =VG!A73 ->  | B46: =VG!B73 -> 0 | D46: =VG!E73 -> 0 | F46: =VG!G73 -> 0 | G46: =VG!H73 -> 0 | H46: =VG!R73 -> 0 | I46: =VG!S73 -> 0 | J46: =VG!T73 -> 0 | K46: =VG!U73 -> 0 | L46: =VG!V73 -> 0 | M46: =VG!W73 -> 0 | N46: =IF(ISBLANK(VG!X73),"",VG!X73) ->  | O46: =VG!Y73 -> 
A47: =VG!A74 ->  | B47: =VG!B74 -> 0 | D47: =VG!E74 -> 0 | F47: =VG!G74 -> 0 | G47: =VG!H74 -> 0 | H47: =VG!R74 -> 0 | I47: =VG!S74 -> 0 | J47: =VG!T74 -> 0 | K47: =VG!U74 -> 0 | L47: =VG!V74 -> 0 | M47: =VG!W74 -> 0 | N47: =IF(ISBLANK(VG!X74),"",VG!X74) ->  | O47: =VG!Y74 -> 
A48: =VG!A75 ->  | B48: =VG!B75 -> 0 | D48: =VG!E75 -> 0 | F48: =VG!G75 -> 0 | G48: =VG!H75 -> 0 | H48: =VG!R75 -> 0 | I48: =VG!S75 -> 0 | J48: =VG!T75 -> 0 | K48: =VG!U75 -> 0 | L48: =VG!V75 -> 0 | M48: =VG!W75 -> 0 | N48: =IF(ISBLANK(VG!X75),"",VG!X75) ->  | O48: =VG!Y75 -> 
A49: =VG!A76 ->  | B49: =VG!B76 -> 0 | D49: =VG!E76 -> 0 | F49: =VG!G76 -> 0 | G49: =VG!H76 -> 0 | H49: =VG!R76 -> 0 | I49: =VG!S76 -> 0 | J49: =VG!T76 -> 0 | K49: =VG!U76 -> 0 | L49: =VG!V76 -> 0 | M49: =VG!W76 -> 0 | N49: =IF(ISBLANK(VG!X76),"",VG!X76) ->  | O49: =VG!Y76 -> 
A50: =VG!A77 ->  | B50: =VG!B77 -> 0 | D50: =VG!E77 -> 0 | F50: =VG!G77 -> 0 | G50: =VG!H77 -> 0 | H50: =VG!R77 -> 0 | I50: =VG!S77 -> 0 | J50: =VG!T77 -> 0 | K50: =VG!U77 -> 0 | L50: =VG!V77 -> 0 | M50: =VG!W77 -> 0 | N50: =IF(ISBLANK(VG!X77),"",VG!X77) ->  | O50: =VG!Y77 -> 
A51: =VG!A78 ->  | B51: =VG!B78 -> 0 | D51: =VG!E78 -> 0 | F51: =VG!G78 -> 0 | G51: =VG!H78 -> 0 | H51: =VG!R78 -> 0 | I51: =VG!S78 -> 0 | J51: =VG!T78 -> 0 | K51: =VG!U78 -> 0 | L51: =VG!V78 -> 0 | M51: =VG!W78 -> 0 | N51: =IF(ISBLANK(VG!X78),"",VG!X78) ->  | O51: =VG!Y78 -> 
A52: =VG!A79 ->  | B52: =VG!B79 -> 0 | D52: =VG!E79 -> 0 | F52: =VG!G79 -> 0 | G52: =VG!H79 -> 0 | H52: =VG!R79 -> 0 | I52: =VG!S79 -> 0 | J52: =VG!T79 -> 0 | K52: =VG!U79 -> 0 | L52: =VG!V79 -> 0 | M52: =VG!W79 -> 0 | N52: =IF(ISBLANK(VG!X79),"",VG!X79) ->  | O52: =VG!Y79 -> 
A53: =VG!A80 ->  | B53: =VG!B80 -> 0 | D53: =VG!E80 -> 0 | F53: =VG!G80 -> 0 | G53: =VG!H80 -> 0 | H53: =VG!R80 -> 0 | I53: =VG!S80 -> 0 | J53: =VG!T80 -> 0 | K53: =VG!U80 -> 0 | L53: =VG!V80 -> 0 | M53: =VG!W80 -> 0 | N53: =IF(ISBLANK(VG!X80),"",VG!X80) ->  | O53: =VG!Y80 -> 
A54: =VG!A81 ->  | B54: =VG!B81 -> 0 | D54: =VG!E81 -> 0 | F54: =VG!G81 -> 0 | G54: =VG!H81 -> 0 | H54: =VG!R81 -> 0 | I54: =VG!S81 -> 0 | J54: =VG!T81 -> 0 | K54: =VG!U81 -> 0 | L54: =VG!V81 -> 0 | M54: =VG!W81 -> 0 | N54: =IF(ISBLANK(VG!X81),"",VG!X81) ->  | O54: =VG!Y81 -> 
A55: =VG!A82 ->  | B55: =VG!B82 -> 0 | D55: =VG!E82 -> 0 | F55: =VG!G82 -> 0 | G55: =VG!H82 -> 0 | H55: =VG!R82 -> 0 | I55: =VG!S82 -> 0 | J55: =VG!T82 -> 0 | K55: =VG!U82 -> 0 | L55: =VG!V82 -> 0 | M55: =VG!W82 -> 0 | N55: =IF(ISBLANK(VG!X82),"",VG!X82) ->  | O55: =VG!Y82 -> 
A56: =VG!A83 ->  | B56: =VG!B83 -> 0 | D56: =VG!E83 -> 0 | F56: =VG!G83 -> 0 | G56: =VG!H83 -> 0 | H56: =VG!R83 -> 0 | I56: =VG!S83 -> 0 | J56: =VG!T83 -> 0 | K56: =VG!U83 -> 0 | L56: =VG!V83 -> 0 | M56: =VG!W83 -> 0 | N56: =IF(ISBLANK(VG!X83),"",VG!X83) ->  | O56: =VG!Y83 -> 
A57: =VG!A84 ->  | B57: =VG!B84 -> 0 | D57: =VG!E84 -> 0 | F57: =VG!G84 -> 0 | G57: =VG!H84 -> 0 | H57: =VG!R84 -> 0 | I57: =VG!S84 -> 0 | J57: =VG!T84 -> 0 | K57: =VG!U84 -> 0 | L57: =VG!V84 -> 0 | M57: =VG!W84 -> 0 | N57: =IF(ISBLANK(VG!X84),"",VG!X84) ->  | O57: =VG!Y84 -> 
A58: =VG!A85 ->  | B58: =VG!B85 -> 0 | D58: =VG!E85 -> 0 | F58: =VG!G85 -> 0 | G58: =VG!H85 -> 0 | H58: =VG!R85 -> 0 | I58: =VG!S85 -> 0 | J58: =VG!T85 -> 0 | K58: =VG!U85 -> 0 | L58: =VG!V85 -> 0 | M58: =VG!W85 -> 0 | N58: =IF(ISBLANK(VG!X85),"",VG!X85) ->  | O58: =VG!Y85 -> 
A59: =VG!A86 ->  | B59: =VG!B86 -> 0 | D59: =VG!E86 -> 0 | F59: =VG!G86 -> 0 | G59: =VG!H86 -> 0 | H59: =VG!R86 -> 0 | I59: =VG!S86 -> 0 | J59: =VG!T86 -> 0 | K59: =VG!U86 -> 0 | L59: =VG!V86 -> 0 | M59: =VG!W86 -> 0 | N59: =IF(ISBLANK(VG!X86),"",VG!X86) ->  | O59: =VG!Y86 -> 
A60: =VG!A87 ->  | B60: =VG!B87 -> 0 | D60: =VG!E87 -> 0 | F60: =VG!G87 -> 0 | G60: =VG!H87 -> 0 | H60: =VG!R87 -> 0 | I60: =VG!S87 -> 0 | J60: =VG!T87 -> 0 | K60: =VG!U87 -> 0 | L60: =VG!V87 -> 0 | M60: =VG!W87 -> 0 | N60: =IF(ISBLANK(VG!X87),"",VG!X87) ->  | O60: =VG!Y87 -> 
A61: =VG!A88 ->  | B61: =VG!B88 -> 0 | D61: =VG!E88 -> 0 | F61: =VG!G88 -> 0 | G61: =VG!H88 -> 0 | H61: =VG!R88 -> 0 | I61: =VG!S88 -> 0 | J61: =VG!T88 -> 0 | K61: =VG!U88 -> 0 | L61: =VG!V88 -> 0 | M61: =VG!W88 -> 0 | N61: =IF(ISBLANK(VG!X88),"",VG!X88) ->  | O61: =VG!Y88 -> 
A62: =VG!A89 ->  | B62: =VG!B89 -> 0 | D62: =VG!E89 -> 0 | F62: =VG!G89 -> 0 | G62: =VG!H89 -> 0 | H62: =VG!R89 -> 0 | I62: =VG!S89 -> 0 | J62: =VG!T89 -> 0 | K62: =VG!U89 -> 0 | L62: =VG!V89 -> 0 | M62: =VG!W89 -> 0 | N62: =IF(ISBLANK(VG!X89),"",VG!X89) ->  | O62: =VG!Y89 -> 
A63: =VG!A90 ->  | B63: =VG!B90 -> 0 | D63: =VG!E90 -> 0 | F63: =VG!G90 -> 0 | G63: =VG!H90 -> 0 | H63: =VG!R90 -> 0 | I63: =VG!S90 -> 0 | J63: =VG!T90 -> 0 | K63: =VG!U90 -> 0 | L63: =VG!V90 -> 0 | M63: =VG!W90 -> 0 | N63: =IF(ISBLANK(VG!X90),"",VG!X90) ->  | O63: =VG!Y90 -> 
A64: =VG!A91 ->  | B64: =VG!B91 -> 0 | D64: =VG!E91 -> 0 | F64: =VG!G91 -> 0 | G64: =VG!H91 -> 0 | H64: =VG!R91 -> 0 | I64: =VG!S91 -> 0 | J64: =VG!T91 -> 0 | K64: =VG!U91 -> 0 | L64: =VG!V91 -> 0 | M64: =VG!W91 -> 0 | N64: =IF(ISBLANK(VG!X91),"",VG!X91) ->  | O64: =VG!Y91 -> 
A65: =VG!A92 ->  | B65: =VG!B92 -> 0 | D65: =VG!E92 -> 0 | F65: =VG!G92 -> 0 | G65: =VG!H92 -> 0 | H65: =VG!R92 -> 0 | I65: =VG!S92 -> 0 | J65: =VG!T92 -> 0 | K65: =VG!U92 -> 0 | L65: =VG!V92 -> 0 | M65: =VG!W92 -> 0 | N65: =IF(ISBLANK(VG!X92),"",VG!X92) ->  | O65: =VG!Y92 -> 
A66: =VG!A93 ->  | B66: =VG!B93 -> 0 | D66: =VG!E93 -> 0 | F66: =VG!G93 -> 0 | G66: =VG!H93 -> 0 | H66: =VG!R93 -> 0 | I66: =VG!S93 -> 0 | J66: =VG!T93 -> 0 | K66: =VG!U93 -> 0 | L66: =VG!V93 -> 0 | M66: =VG!W93 -> 0 | N66: =IF(ISBLANK(VG!X93),"",VG!X93) ->  | O66: =VG!Y93 -> 
A67: =VG!A94 ->  | B67: =VG!B94 -> 0 | D67: =VG!E94 -> 0 | F67: =VG!G94 -> 0 | G67: =VG!H94 -> 0 | H67: =VG!R94 -> 0 | I67: =VG!S94 -> 0 | J67: =VG!T94 -> 0 | K67: =VG!U94 -> 0 | L67: =VG!V94 -> 0 | M67: =VG!W94 -> 0 | N67: =IF(ISBLANK(VG!X94),"",VG!X94) ->  | O67: =VG!Y94 -> 
A68: =VG!A95 ->  | B68: =VG!B95 -> 0 | D68: =VG!E95 -> 0 | F68: =VG!G95 -> 0 | G68: =VG!H95 -> 0 | H68: =VG!R95 -> 0 | I68: =VG!S95 -> 0 | J68: =VG!T95 -> 0 | K68: =VG!U95 -> 0 | L68: =VG!V95 -> 0 | M68: =VG!W95 -> 0 | N68: =IF(ISBLANK(VG!X95),"",VG!X95) ->  | O68: =VG!Y95 -> 
A69: =VG!A96 ->  | B69: =VG!B96 -> 0 | D69: =VG!E96 -> 0 | F69: =VG!G96 -> 0 | G69: =VG!H96 -> 0 | H69: =VG!R96 -> 0 | I69: =VG!S96 -> 0 | J69: =VG!T96 -> 0 | K69: =VG!U96 -> 0 | L69: =VG!V96 -> 0 | M69: =VG!W96 -> 0 | N69: =IF(ISBLANK(VG!X96),"",VG!X96) ->  | O69: =VG!Y96 -> 
A70: =VG!A97 ->  | B70: =VG!B97 -> 0 | D70: =VG!E97 -> 0 | F70: =VG!G97 -> 0 | G70: =VG!H97 -> 0 | H70: =VG!R97 -> 0 | I70: =VG!S97 -> 0 | J70: =VG!T97 -> 0 | K70: =VG!U97 -> 0 | L70: =VG!V97 -> 0 | M70: =VG!W97 -> 0 | N70: =IF(ISBLANK(VG!X97),"",VG!X97) ->  | O70: =VG!Y97 -> 
A71: =VG!A98 ->  | B71: =VG!B98 -> 0 | D71: =VG!E98 -> 0 | F71: =VG!G98 -> 0 | G71: =VG!H98 -> 0 | H71: =VG!R98 -> 0 | I71: =VG!S98 -> 0 | J71: =VG!T98 -> 0 | K71: =VG!U98 -> 0 | L71: =VG!V98 -> 0 | M71: =VG!W98 -> 0 | N71: =IF(ISBLANK(VG!X98),"",VG!X98) ->  | O71: =VG!Y98 -> 
A72: =VG!A99 ->  | B72: =VG!B99 -> 0 | D72: =VG!E99 -> 0 | F72: =VG!G99 -> 0 | G72: =VG!H99 -> 0 | H72: =VG!R99 -> 0 | I72: =VG!S99 -> 0 | J72: =VG!T99 -> 0 | K72: =VG!U99 -> 0 | L72: =VG!V99 -> 0 | M72: =VG!W99 -> 0 | N72: =IF(ISBLANK(VG!X99),"",VG!X99) ->  | O72: =VG!Y99 -> 
A73: =VG!A100 ->  | B73: =VG!B100 -> 0 | D73: =VG!E100 -> 0 | F73: =VG!G100 -> 0 | G73: =VG!H100 -> 0 | H73: =VG!R100 -> 0 | I73: =VG!S100 -> 0 | J73: =VG!T100 -> 0 | K73: =VG!U100 -> 0 | L73: =VG!V100 -> 0 | M73: =VG!W100 -> 0 | N73: =IF(ISBLANK(VG!X100),"",VG!X100) ->  | O73: =VG!Y100 -> 
A74: =VG!A101 ->  | B74: =VG!B101 -> 0 | D74: =VG!E101 -> 0 | F74: =VG!G101 -> 0 | G74: =VG!H101 -> 0 | H74: =VG!R101 -> 0 | I74: =VG!S101 -> 0 | J74: =VG!T101 -> 0 | K74: =VG!U101 -> 0 | L74: =VG!V101 -> 0 | M74: =VG!W101 -> 0 | N74: =IF(ISBLANK(VG!X101),"",VG!X101) ->  | O74: =VG!Y101 -> 
A75: =VG!A102 ->  | B75: =VG!B102 -> 0 | D75: =VG!E102 -> 0 | F75: =VG!G102 -> 0 | G75: =VG!H102 -> 0 | H75: =VG!R102 -> 0 | I75: =VG!S102 -> 0 | J75: =VG!T102 -> 0 | K75: =VG!U102 -> 0 | L75: =VG!V102 -> 0 | M75: =VG!W102 -> 0 | N75: =IF(ISBLANK(VG!X102),"",VG!X102) ->  | O75: =VG!Y102 -> 
A76: =VG!A103 ->  | B76: =VG!B103 -> 0 | D76: =VG!E103 -> 0 | F76: =VG!G103 -> 0 | G76: =VG!H103 -> 0 | H76: =VG!R103 -> 0 | I76: =VG!S103 -> 0 | J76: =VG!T103 -> 0 | K76: =VG!U103 -> 0 | L76: =VG!V103 -> 0 | M76: =VG!W103 -> 0 | N76: =IF(ISBLANK(VG!X103),"",VG!X103) ->  | O76: =VG!Y103 -> 
A77: =VG!A104 ->  | B77: =VG!B104 -> 0 | D77: =VG!E104 -> 0 | F77: =VG!G104 -> 0 | G77: =VG!H104 -> 0 | H77: =VG!R104 -> 0 | I77: =VG!S104 -> 0 | J77: =VG!T104 -> 0 | K77: =VG!U104 -> 0 | L77: =VG!V104 -> 0 | M77: =VG!W104 -> 0 | N77: =IF(ISBLANK(VG!X104),"",VG!X104) ->  | O77: =VG!Y104 -> 
A78: =VG!A105 ->  | B78: =VG!B105 -> 0 | D78: =VG!E105 -> 0 | F78: =VG!G105 -> 0 | G78: =VG!H105 -> 0 | H78: =VG!R105 -> 0 | I78: =VG!S105 -> 0 | J78: =VG!T105 -> 0 | K78: =VG!U105 -> 0 | L78: =VG!V105 -> 0 | M78: =VG!W105 -> 0 | N78: =IF(ISBLANK(VG!X105),"",VG!X105) ->  | O78: =VG!Y105 -> 
A79: =VG!A106 ->  | B79: =VG!B106 -> 0 | D79: =VG!E106 -> 0 | F79: =VG!G106 -> 0 | G79: =VG!H106 -> 0 | H79: =VG!R106 -> 0 | I79: =VG!S106 -> 0 | J79: =VG!T106 -> 0 | K79: =VG!U106 -> 0 | L79: =VG!V106 -> 0 | M79: =VG!W106 -> 0 | N79: =IF(ISBLANK(VG!X106),"",VG!X106) ->  | O79: =VG!Y106 -> 
A80: =VG!A107 ->  | B80: =VG!B107 -> 0 | D80: =VG!E107 -> 0 | F80: =VG!G107 -> 0 | G80: =VG!H107 -> 0 | H80: =VG!R107 -> 0 | I80: =VG!S107 -> 0 | J80: =VG!T107 -> 0 | K80: =VG!U107 -> 0 | L80: =VG!V107 -> 0 | M80: =VG!W107 -> 0 | N80: =IF(ISBLANK(VG!X107),"",VG!X107) ->  | O80: =VG!Y107 -> 
A81: =VG!A108 ->  | B81: =VG!B108 -> 0 | D81: =VG!E108 -> 0 | F81: =VG!G108 -> 0 | G81: =VG!H108 -> 0 | H81: =VG!R108 -> 0 | I81: =VG!S108 -> 0 | J81: =VG!T108 -> 0 | K81: =VG!U108 -> 0 | L81: =VG!V108 -> 0 | M81: =VG!W108 -> 0 | N81: =IF(ISBLANK(VG!X108),"",VG!X108) ->  | O81: =VG!Y108 -> 
A82: =VG!A109 ->  | B82: =VG!B109 -> 0 | D82: =VG!E109 -> 0 | F82: =VG!G109 -> 0 | G82: =VG!H109 -> 0 | H82: =VG!R109 -> 0 | I82: =VG!S109 -> 0 | J82: =VG!T109 -> 0 | K82: =VG!U109 -> 0 | L82: =VG!V109 -> 0 | M82: =VG!W109 -> 0 | N82: =IF(ISBLANK(VG!X109),"",VG!X109) ->  | O82: =VG!Y109 -> 
A83: =VG!A110 ->  | B83: =VG!B110 -> 0 | D83: =VG!E110 -> 0 | F83: =VG!G110 -> 0 | G83: =VG!H110 -> 0 | H83: =VG!R110 -> 0 | I83: =VG!S110 -> 0 | J83: =VG!T110 -> 0 | K83: =VG!U110 -> 0 | L83: =VG!V110 -> 0 | M83: =VG!W110 -> 0 | N83: =IF(ISBLANK(VG!X110),"",VG!X110) ->  | O83: =VG!Y110 -> 
A84: =VG!A111 ->  | B84: =VG!B111 -> 0 | D84: =VG!E111 -> 0 | F84: =VG!G111 -> 0 | G84: =VG!H111 -> 0 | H84: =VG!R111 -> 0 | I84: =VG!S111 -> 0 | J84: =VG!T111 -> 0 | K84: =VG!U111 -> 0 | L84: =VG!V111 -> 0 | M84: =VG!W111 -> 0 | N84: =IF(ISBLANK(VG!X111),"",VG!X111) ->  | O84: =VG!Y111 -> 
A85: =VG!A112 ->  | B85: =VG!B112 -> 0 | D85: =VG!E112 -> 0 | F85: =VG!G112 -> 0 | G85: =VG!H112 -> 0 | H85: =VG!R112 -> 0 | I85: =VG!S112 -> 0 | J85: =VG!T112 -> 0 | K85: =VG!U112 -> 0 | L85: =VG!V112 -> 0 | M85: =VG!W112 -> 0 | N85: =IF(ISBLANK(VG!X112),"",VG!X112) ->  | O85: =VG!Y112 -> 
A86: =VG!A113 ->  | B86: =VG!B113 -> 0 | D86: =VG!E113 -> 0 | F86: =VG!G113 -> 0 | G86: =VG!H113 -> 0 | H86: =VG!R113 -> 0 | I86: =VG!S113 -> 0 | J86: =VG!T113 -> 0 | K86: =VG!U113 -> 0 | L86: =VG!V113 -> 0 | M86: =VG!W113 -> 0 | N86: =IF(ISBLANK(VG!X113),"",VG!X113) ->  | O86: =VG!Y113 -> 
A87: =VG!A114 ->  | B87: =VG!B114 -> 0 | D87: =VG!E114 -> 0 | F87: =VG!G114 -> 0 | G87: =VG!H114 -> 0 | H87: =VG!R114 -> 0 | I87: =VG!S114 -> 0 | J87: =VG!T114 -> 0 | K87: =VG!U114 -> 0 | L87: =VG!V114 -> 0 | M87: =VG!W114 -> 0 | N87: =IF(ISBLANK(VG!X114),"",VG!X114) ->  | O87: =VG!Y114 -> 
A88: =VG!A115 ->  | B88: =VG!B115 -> 0 | D88: =VG!E115 -> 0 | F88: =VG!G115 -> 0 | G88: =VG!H115 -> 0 | H88: =VG!R115 -> 0 | I88: =VG!S115 -> 0 | J88: =VG!T115 -> 0 | K88: =VG!U115 -> 0 | L88: =VG!V115 -> 0 | M88: =VG!W115 -> 0 | N88: =IF(ISBLANK(VG!X115),"",VG!X115) ->  | O88: =VG!Y115 -> 
A89: =VG!A116 ->  | B89: =VG!B116 -> 0 | D89: =VG!E116 -> 0 | F89: =VG!G116 -> 0 | G89: =VG!H116 -> 0 | H89: =VG!R116 -> 0 | I89: =VG!S116 -> 0 | J89: =VG!T116 -> 0 | K89: =VG!U116 -> 0 | L89: =VG!V116 -> 0 | M89: =VG!W116 -> 0 | N89: =IF(ISBLANK(VG!X116),"",VG!X116) ->  | O89: =VG!Y116 -> 
A90: =VG!A117 ->  | B90: =VG!B117 -> 0 | D90: =VG!E117 -> 0 | F90: =VG!G117 -> 0 | G90: =VG!H117 -> 0 | H90: =VG!R117 -> 0 | I90: =VG!S117 -> 0 | J90: =VG!T117 -> 0 | K90: =VG!U117 -> 0 | L90: =VG!V117 -> 0 | M90: =VG!W117 -> 0 | N90: =IF(ISBLANK(VG!X117),"",VG!X117) ->  | O90: =VG!Y117 -> 
A91: =VG!A118 ->  | B91: =VG!B118 -> 0 | D91: =VG!E118 -> 0 | F91: =VG!G118 -> 0 | G91: =VG!H118 -> 0 | H91: =VG!R118 -> 0 | I91: =VG!S118 -> 0 | J91: =VG!T118 -> 0 | K91: =VG!U118 -> 0 | L91: =VG!V118 -> 0 | M91: =VG!W118 -> 0 | N91: =IF(ISBLANK(VG!X118),"",VG!X118) ->  | O91: =VG!Y118 -> 
A92: =VG!A119 ->  | B92: =VG!B119 -> 0 | D92: =VG!E119 -> 0 | F92: =VG!G119 -> 0 | G92: =VG!H119 -> 0 | H92: =VG!R119 -> 0 | I92: =VG!S119 -> 0 | J92: =VG!T119 -> 0 | K92: =VG!U119 -> 0 | L92: =VG!V119 -> 0 | M92: =VG!W119 -> 0 | N92: =IF(ISBLANK(VG!X119),"",VG!X119) ->  | O92: =VG!Y119 -> 
A93: =VG!A120 ->  | B93: =VG!B120 -> 0 | D93: =VG!E120 -> 0 | F93: =VG!G120 -> 0 | G93: =VG!H120 -> 0 | H93: =VG!R120 -> 0 | I93: =VG!S120 -> 0 | J93: =VG!T120 -> 0 | K93: =VG!U120 -> 0 | L93: =VG!V120 -> 0 | M93: =VG!W120 -> 0 | N93: =IF(ISBLANK(VG!X120),"",VG!X120) ->  | O93: =VG!Y120 -> 
A94: =VG!A121 ->  | B94: =VG!B121 -> 0 | D94: =VG!E121 -> 0 | F94: =VG!G121 -> 0 | G94: =VG!H121 -> 0 | H94: =VG!R121 -> 0 | I94: =VG!S121 -> 0 | J94: =VG!T121 -> 0 | K94: =VG!U121 -> 0 | L94: =VG!V121 -> 0 | M94: =VG!W121 -> 0 | N94: =IF(ISBLANK(VG!X121),"",VG!X121) ->  | O94: =VG!Y121 -> 
A95: =VG!A122 ->  | B95: =VG!B122 -> 0 | D95: =VG!E122 -> 0 | F95: =VG!G122 -> 0 | G95: =VG!H122 -> 0 | H95: =VG!R122 -> 0 | I95: =VG!S122 -> 0 | J95: =VG!T122 -> 0 | K95: =VG!U122 -> 0 | L95: =VG!V122 -> 0 | M95: =VG!W122 -> 0 | N95: =IF(ISBLANK(VG!X122),"",VG!X122) ->  | O95: =VG!Y122 -> 
A96: =VG!A123 ->  | B96: =VG!B123 -> 0 | D96: =VG!E123 -> 0 | F96: =VG!G123 -> 0 | G96: =VG!H123 -> 0 | H96: =VG!R123 -> 0 | I96: =VG!S123 -> 0 | J96: =VG!T123 -> 0 | K96: =VG!U123 -> 0 | L96: =VG!V123 -> 0 | M96: =VG!W123 -> 0 | N96: =IF(ISBLANK(VG!X123),"",VG!X123) ->  | O96: =VG!Y123 -> 
A97: =VG!A124 ->  | B97: =VG!B124 -> 0 | D97: =VG!E124 -> 0 | F97: =VG!G124 -> 0 | G97: =VG!H124 -> 0 | H97: =VG!R124 -> 0 | I97: =VG!S124 -> 0 | J97: =VG!T124 -> 0 | K97: =VG!U124 -> 0 | L97: =VG!V124 -> 0 | M97: =VG!W124 -> 0 | N97: =IF(ISBLANK(VG!X124),"",VG!X124) ->  | O97: =VG!Y124 -> 
A98: =VG!A125 ->  | B98: =VG!B125 -> 0 | D98: =VG!E125 -> 0 | F98: =VG!G125 -> 0 | G98: =VG!H125 -> 0 | H98: =VG!R125 -> 0 | I98: =VG!S125 -> 0 | J98: =VG!T125 -> 0 | K98: =VG!U125 -> 0 | L98: =VG!V125 -> 0 | M98: =VG!W125 -> 0 | N98: =IF(ISBLANK(VG!X125),"",VG!X125) ->  | O98: =VG!Y125 -> 
A99: =VG!A126 ->  | B99: =VG!B126 -> 0 | D99: =VG!E126 -> 0 | F99: =VG!G126 -> 0 | G99: =VG!H126 -> 0 | H99: =VG!R126 -> 0 | I99: =VG!S126 -> 0 | J99: =VG!T126 -> 0 | K99: =VG!U126 -> 0 | L99: =VG!V126 -> 0 | M99: =VG!W126 -> 0 | N99: =IF(ISBLANK(VG!X126),"",VG!X126) ->  | O99: =VG!Y126 -> 
A100: =VG!A127 ->  | B100: =VG!B127 -> 0 | D100: =VG!E127 -> 0 | F100: =VG!G127 -> 0 | G100: =VG!H127 -> 0 | H100: =VG!R127 -> 0 | I100: =VG!S127 -> 0 | J100: =VG!T127 -> 0 | K100: =VG!U127 -> 0 | L100: =VG!V127 -> 0 | M100: =VG!W127 -> 0 | N100: =IF(ISBLANK(VG!X127),"",VG!X127) ->  | O100: =VG!Y127 -> 
A101: =VG!A128 ->  | B101: =VG!B128 -> 0 | D101: =VG!E128 -> 0 | F101: =VG!G128 -> 0 | G101: =VG!H128 -> 0 | H101: =VG!R128 -> 0 | I101: =VG!S128 -> 0 | J101: =VG!T128 -> 0 | K101: =VG!U128 -> 0 | L101: =VG!V128 -> 0 | M101: =VG!W128 -> 0 | N101: =IF(ISBLANK(VG!X128),"",VG!X128) ->  | O101: =VG!Y128 -> 
A102: =VG!A129 ->  | B102: =VG!B129 -> 0 | D102: =VG!E129 -> 0 | F102: =VG!G129 -> 0 | G102: =VG!H129 -> 0 | H102: =VG!R129 -> 0 | I102: =VG!S129 -> 0 | J102: =VG!T129 -> 0 | K102: =VG!U129 -> 0 | L102: =VG!V129 -> 0 | M102: =VG!W129 -> 0 | N102: =IF(ISBLANK(VG!X129),"",VG!X129) ->  | O102: =VG!Y129 -> 
A103: =VG!A130 ->  | B103: =VG!B130 -> 0 | D103: =VG!E130 -> 0 | F103: =VG!G130 -> 0 | G103: =VG!H130 -> 0 | H103: =VG!R130 -> 0 | I103: =VG!S130 -> 0 | J103: =VG!T130 -> 0 | K103: =VG!U130 -> 0 | L103: =VG!V130 -> 0 | M103: =VG!W130 -> 0 | N103: =IF(ISBLANK(VG!X130),"",VG!X130) ->  | O103: =VG!Y130 -> 
A104: =VG!A131 ->  | B104: =VG!B131 -> 0 | D104: =VG!E131 -> 0 | F104: =VG!G131 -> 0 | G104: =VG!H131 -> 0 | H104: =VG!R131 -> 0 | I104: =VG!S131 -> 0 | J104: =VG!T131 -> 0 | K104: =VG!U131 -> 0 | L104: =VG!V131 -> 0 | M104: =VG!W131 -> 0 | N104: =IF(ISBLANK(VG!X131),"",VG!X131) ->  | O104: =VG!Y131 -> 
A105: =VG!A132 ->  | B105: =VG!B132 -> 0 | D105: =VG!E132 -> 0 | F105: =VG!G132 -> 0 | G105: =VG!H132 -> 0 | H105: =VG!R132 -> 0 | I105: =VG!S132 -> 0 | J105: =VG!T132 -> 0 | K105: =VG!U132 -> 0 | L105: =VG!V132 -> 0 | M105: =VG!W132 -> 0 | N105: =IF(ISBLANK(VG!X132),"",VG!X132) ->  | O105: =VG!Y132 -> 
A106: =VG!A133 ->  | B106: =VG!B133 -> 0 | D106: =VG!E133 -> 0 | F106: =VG!G133 -> 0 | G106: =VG!H133 -> 0 | H106: =VG!R133 -> 0 | I106: =VG!S133 -> 0 | J106: =VG!T133 -> 0 | K106: =VG!U133 -> 0 | L106: =VG!V133 -> 0 | M106: =VG!W133 -> 0 | N106: =IF(ISBLANK(VG!X133),"",VG!X133) ->  | O106: =VG!Y133 -> 
A107: =VG!A134 ->  | B107: =VG!B134 -> 0 | D107: =VG!E134 -> 0 | F107: =VG!G134 -> 0 | G107: =VG!H134 -> 0 | H107: =VG!R134 -> 0 | I107: =VG!S134 -> 0 | J107: =VG!T134 -> 0 | K107: =VG!U134 -> 0 | L107: =VG!V134 -> 0 | M107: =VG!W134 -> 0 | N107: =IF(ISBLANK(VG!X134),"",VG!X134) ->  | O107: =VG!Y134 -> 
A108: Kişinin Firmanın Teklifleri Toplamı (KDV HARİÇ) | H108: TEKLİF TOPLAMI | I108: =SUM(I8:I107) -> 11430 | J108: TEKLİF TOPLAMI | K108: =SUM(K8:K107) -> 13010 | L108: TEKLİF TOPLAMI | M108: =SUM(M8:M107) -> 12840 | N108: TEKLİF TOPLAMI | O108: =SUM(O8:O107) -> 0 | Q108: =MIN(I108,K108,M108,O108) -> 0 | R108: =MIN(I108,K108,M108) -> 11430
A109: Satın Alınacak Malın/Hizmetin | F109: TEKLİFİ UYGUN GÖRÜLEN KİŞİ / FİRMA
F110: ADI | J110: ADRESİ | N110: TOPLAM TEKLİF
A111: Tümünün bu Kişi/Firmadan Alımı Uygun Görülmüştir. | F111: =VG!L15 -> 0 | J111: =CONCATENATE(VG!L17,B!C3,VG!L18) -> / | N111: =IF(O108=0,R108,Q108) -> 11430
A112: 4734 Sayılı Kamu İhale Kanununun 22. maddesi uyarınca Doğrudan Temin usulüyle yapılacak alımlara ilişkin yapılan piyasa araştırmasında Firmalarca / Kişilerce teklif edilen fiyatlar tarafımızca değerlendirilerek yukarıda adı ve adresi belirtilen Kişi / Firmadan alım yapılması uygun görülmüştür.
A113: PİYASA FİYAT ARAŞTIRMASI GÖREVLİLERİ
B115: =VG!J8 -> 0 | H115: =VG!J7 -> 0 | N115: =VG!J6 -> 0
B116: =VG!M8 -> Müdür Yardımcsısı | H116: =VG!M7 -> Öğretmen | N116: =VG!M6 -> Öğretmen

Sheet ONAY
A4: ONAY BELGESİ
A5: Doğrudan Temin Yapan İdarenin Adı | D5: =VG!D9 -> Erdem Bayazıt İmam Hatip Ortaokulu
A6: Belge Tarihi ve Sayısı | D6: =CONCATENATE(VG!D26,B!C3,VG!F26) -> 44460 / 2021-1
A7: =CONCATENATE(B!A2,B!B2,B!A1,B!C1) -> OSMANİYE ERDEM BAYAZIT İMAM HATİP ORTAOKULU MÜDÜRLÜĞÜNE
A9: İşin Tanımı | D9: =CONCATENATE(VG!D16,VG!H16) -> Büro Mefruşat Alımları Alımı
A10: İşin Niteliği | D10: =CONCATENATE(VG!D17,VG!H17) -> Okul İhtiyacı için
A11: İşin Miktarı | D11: =CONCATENATE(B!F1,B!H1) -> 3 Kalem
A13: Yaklaşık Maliyet (KDV HARİÇ) | D13: =YM!Q108 -> 12426.66667
A14: Kullanılabilir Ödenek Tutarı (KDV DAHİL) | D14: Ödenek Müsaittir
A15: Yatırım Projesi Numarası (Varsa)
A16: Bütçe Tertibi | D16: =VG!D18 -> Okul Bütçesinden
A17: Avans Verilecekse Miktarı | D17: Avans Verilmeyecektir
A18: İhale Usulu | D18: 4734 Sayılı Kanunun 22/D Maddesi
A19: İlan Şekli ve Adeti | D19: İlan Yapılmayacak
A20: İhale Dökümanı Satış Bedeli | D20: Yoktur.
A21: Fiyat Farkı Ödenecekse Dayanağı BKK | D21: Ödenmeyecek
A22: Şartname Düzenlenip Düzenlenmeyeceği | D22: =VG!D19 -> Hayır
A23: Şartname Düzenlenip Düzenlenmeyeceği | D23: =VG!D20 -> Hayır
A24: Doğrudan Temin Yoluyla Mal / Hizmet satın alınacaksa piyasa fiyat araştırması yapmak üzere görevlendirilecek kişiler | D24: Adı Soyadı | F24: Unvanı
D25: =VG!J6 -> 0 | F25: =VG!M6 -> Öğretmen
D26: =VG!J7 -> 0 | F26: =VG!M7 -> Öğretmen
D27: =VG!J8 -> 0 | F27: =VG!M8 -> Müdür Yardımcsısı
A28: DİĞER AÇIKLAMALAR
A29: =YM!F3 -> Okul İhtiyacı için Büro Mefruşat Alımları Alımı
A32: ONAY
A33: Yukarıda Belirtilen Mal / Hizmet Satın alınması için ilgililerin görevlendirilmeleri hususunu Onaylarınıza arz ve teklif ederim. | D33: UYGUNDUR
A38: =VG!D26 -> 44460 | D38: =VG!D26 -> 44460
A39: =VG!D13 -> 0 | D39: =VG!D11 -> 0
A40: =VG!D14 -> Müdür Yardımcsısı | D40: =VG!D12 -> Okul Müdürü

Sheet MKT
A1: =VG!A5 -> T.C.
A2: =VG!A6 -> OSMANİYE VALİLİĞİ
A3: =VG!A7 -> Erdem Bayazıt İmam Hatip Ortaokulu Müdürlüğü
A6: MUAYENE VE KABUL TUTANAĞI
A9: MUAYENE VE KABULÜ YAPILAN MALIN
A10: SIRA | B10: ADI | D10: ÖZELLİĞİ | E10: MİKTARI | F10: BİRİMİ
A11: =VG!A35 -> 1 | B11: =VG!B35 -> Perde | D11: =VG!E35 -> Fon | E11: =VG!G35 -> 120 | F11: =VG!H35 -> Metrekare
A12: =VG!A36 -> 2 | B12: =VG!B36 -> Perde | D12: =VG!E36 -> Zebra | E12: =VG!G36 -> 30 | F12: =VG!H36 -> Metrekare
A13: =VG!A37 -> 3 | B13: =VG!B37 -> Perde | D13: =VG!E37 -> Karartma | E13: =VG!G37 -> 34 | F13: =VG!H37 -> Metrekare
A14: =VG!A38 ->  | B14: =VG!B38 -> 0 | D14: =VG!E38 -> 0 | E14: =VG!G38 -> 0 | F14: =VG!H38 -> 0
A15: =VG!A39 ->  | B15: =VG!B39 -> 0 | D15: =VG!E39 -> 0 | E15: =VG!G39 -> 0 | F15: =VG!H39 -> 0
A16: =VG!A40 ->  | B16: =VG!B40 -> 0 | D16: =VG!E40 -> 0 | E16: =VG!G40 -> 0 | F16: =VG!H40 -> 0
A17: =VG!A41 ->  | B17: =VG!B41 -> 0 | D17: =VG!E41 -> 0 | E17: =VG!G41 -> 0 | F17: =VG!H41 -> 0
A18: =VG!A42 ->  | B18: =VG!B42 -> 0 | D18: =VG!E42 -> 0 | E18: =VG!G42 -> 0 | F18: =VG!H42 -> 0
A19: =VG!A43 ->  | B19: =VG!B43 -> 0 | D19: =VG!E43 -> 0 | E19: =VG!G43 -> 0 | F19: =VG!H43 -> 0
A20: =VG!A44 ->  | B20: =VG!B44 -> 0 | D20: =VG!E44 -> 0 | E20: =VG!G44 -> 0 | F20: =VG!H44 -> 0
A21: =VG!A45 ->  | B21: =VG!B45 -> 0 | D21: =VG!E45 -> 0 | E21: =VG!G45 -> 0 | F21: =VG!H45 -> 0
A22: =VG!A46 ->  | B22: =VG!B46 -> 0 | D22: =VG!E46 -> 0 | E22: =VG!G46 -> 0 | F22: =VG!H46 -> 0
A23: =VG!A47 ->  | B23: =VG!B47 -> 0 | D23: =VG!E47 -> 0 | E23: =VG!G47 -> 0 | F23: =VG!H47 -> 0
A24: =VG!A48 ->  | B24: =VG!B48 -> 0 | D24: =VG!E48 -> 0 | E24: =VG!G48 -> 0 | F24: =VG!H48 -> 0
A25: =VG!A49 ->  | B25: =VG!B49 -> 0 | D25: =VG!E49 -> 0 | E25: =VG!G49 -> 0 | F25: =VG!H49 -> 0
A26: =VG!A50 ->  | B26: =VG!B50 -> 0 | D26: =VG!E50 -> 0 | E26: =VG!G50 -> 0 | F26: =VG!H50 -> 0
A27: =VG!A51 ->  | B27: =VG!B51 -> 0 | D27: =VG!E51 -> 0 | E27: =VG!G51 -> 0 | F27: =VG!H51 -> 0
A28: =VG!A52 ->  | B28: =VG!B52 -> 0 | D28: =VG!E52 -> 0 | E28: =VG!G52 -> 0 | F28: =VG!H52 -> 0
A29: =VG!A53 ->  | B29: =VG!B53 -> 0 | D29: =VG!E53 -> 0 | E29: =VG!G53 -> 0 | F29: =VG!H53 -> 0
A30: =VG!A54 ->  | B30: =VG!B54 -> 0 | D30: =VG!E54 -> 0 | E30: =VG!G54 -> 0 | F30: =VG!H54 -> 0
A31: =VG!A55 ->  | B31: =VG!B55 -> 0 | D31: =VG!E55 -> 0 | E31: =VG!G55 -> 0 | F31: =VG!H55 -> 0
A32: =VG!A56 ->  | B32: =VG!B56 -> 0 | D32: =VG!E56 -> 0 | E32: =VG!G56 -> 0 | F32: =VG!H56 -> 0
A33: =VG!A57 ->  | B33: =VG!B57 -> 0 | D33: =VG!E57 -> 0 | E33: =VG!G57 -> 0 | F33: =VG!H57 -> 0
A34: =VG!A58 ->  | B34: =VG!B58 -> 0 | D34: =VG!E58 -> 0 | E34: =VG!G58 -> 0 | F34: =VG!H58 -> 0
A35: =VG!A59 ->  | B35: =VG!B59 -> 0 | D35: =VG!E59 -> 0 | E35: =VG!G59 -> 0 | F35: =VG!H59 -> 0
A36: =VG!A60 ->  | B36: =VG!B60 -> 0 | D36: =VG!E60 -> 0 | E36: =VG!G60 -> 0 | F36: =VG!H60 -> 0
A37: =VG!A61 ->  | B37: =VG!B61 -> 0 | D37: =VG!E61 -> 0 | E37: =VG!G61 -> 0 | F37: =VG!H61 -> 0
A38: =VG!A62 ->  | B38: =VG!B62 -> 0 | D38: =VG!E62 -> 0 | E38: =VG!G62 -> 0 | F38: =VG!H62 -> 0
A39: =VG!A63 ->  | B39: =VG!B63 -> 0 | D39: =VG!E63 -> 0 | E39: =VG!G63 -> 0 | F39: =VG!H63 -> 0
A40: =VG!A64 ->  | B40: =VG!B64 -> 0 | D40: =VG!E64 -> 0 | E40: =VG!G64 -> 0 | F40: =VG!H64 -> 0
A41: =VG!A65 ->  | B41: =VG!B65 -> 0 | D41: =VG!E65 -> 0 | E41: =VG!G65 -> 0 | F41: =VG!H65 -> 0
A42: =VG!A66 ->  | B42: =VG!B66 -> 0 | D42: =VG!E66 -> 0 | E42: =VG!G66 -> 0 | F42: =VG!H66 -> 0
A43: =VG!A67 ->  | B43: =VG!B67 -> 0 | D43: =VG!E67 -> 0 | E43: =VG!G67 -> 0 | F43: =VG!H67 -> 0
A44: =VG!A68 ->  | B44: =VG!B68 -> 0 | D44: =VG!E68 -> 0 | E44: =VG!G68 -> 0 | F44: =VG!H68 -> 0
A45: =VG!A69 ->  | B45: =VG!B69 -> 0 | D45: =VG!E69 -> 0 | E45: =VG!G69 -> 0 | F45: =VG!H69 -> 0
A46: =VG!A70 ->  | B46: =VG!B70 -> 0 | D46: =VG!E70 -> 0 | E46: =VG!G70 -> 0 | F46: =VG!H70 -> 0
A47: =VG!A71 ->  | B47: =VG!B71 -> 0 | D47: =VG!E71 -> 0 | E47: =VG!G71 -> 0 | F47: =VG!H71 -> 0
A48: =VG!A72 ->  | B48: =VG!B72 -> 0 | D48: =VG!E72 -> 0 | E48: =VG!G72 -> 0 | F48: =VG!H72 -> 0
A49: =VG!A73 ->  | B49: =VG!B73 -> 0 | D49: =VG!E73 -> 0 | E49: =VG!G73 -> 0 | F49: =VG!H73 -> 0
A50: =VG!A74 ->  | B50: =VG!B74 -> 0 | D50: =VG!E74 -> 0 | E50: =VG!G74 -> 0 | F50: =VG!H74 -> 0
A51: =VG!A75 ->  | B51: =VG!B75 -> 0 | D51: =VG!E75 -> 0 | E51: =VG!G75 -> 0 | F51: =VG!H75 -> 0
A52: =VG!A76 ->  | B52: =VG!B76 -> 0 | D52: =VG!E76 -> 0 | E52: =VG!G76 -> 0 | F52: =VG!H76 -> 0
A53: =VG!A77 ->  | B53: =VG!B77 -> 0 | D53: =VG!E77 -> 0 | E53: =VG!G77 -> 0 | F53: =VG!H77 -> 0
A54: =VG!A78 ->  | B54: =VG!B78 -> 0 | D54: =VG!E78 -> 0 | E54: =VG!G78 -> 0 | F54: =VG!H78 -> 0
A55: =VG!A79 ->  | B55: =VG!B79 -> 0 | D55: =VG!E79 -> 0 | E55: =VG!G79 -> 0 | F55: =VG!H79 -> 0
A56: =VG!A80 ->  | B56: =VG!B80 -> 0 | D56: =VG!E80 -> 0 | E56: =VG!G80 -> 0 | F56: =VG!H80 -> 0
A57: =VG!A81 ->  | B57: =VG!B81 -> 0 | D57: =VG!E81 -> 0 | E57: =VG!G81 -> 0 | F57: =VG!H81 -> 0
A58: =VG!A82 ->  | B58: =VG!B82 -> 0 | D58: =VG!E82 -> 0 | E58: =VG!G82 -> 0 | F58: =VG!H82 -> 0
A59: =VG!A83 ->  | B59: =VG!B83 -> 0 | D59: =VG!E83 -> 0 | E59: =VG!G83 -> 0 | F59: =VG!H83 -> 0
A60: =VG!A84 ->  | B60: =VG!B84 -> 0 | D60: =VG!E84 -> 0 | E60: =VG!G84 -> 0 | F60: =VG!H84 -> 0
A61: =VG!A85 ->  | B61: =VG!B85 -> 0 | D61: =VG!E85 -> 0 | E61: =VG!G85 -> 0 | F61: =VG!H85 -> 0
A62: =VG!A86 ->  | B62: =VG!B86 -> 0 | D62: =VG!E86 -> 0 | E62: =VG!G86 -> 0 | F62: =VG!H86 -> 0
A63: =VG!A87 ->  | B63: =VG!B87 -> 0 | D63: =VG!E87 -> 0 | E63: =VG!G87 -> 0 | F63: =VG!H87 -> 0
A64: =VG!A88 ->  | B64: =VG!B88 -> 0 | D64: =VG!E88 -> 0 | E64: =VG!G88 -> 0 | F64: =VG!H88 -> 0
A65: =VG!A89 ->  | B65: =VG!B89 -> 0 | D65: =VG!E89 -> 0 | E65: =VG!G89 -> 0 | F65: =VG!H89 -> 0
A66: =VG!A90 ->  | B66: =VG!B90 -> 0 | D66: =VG!E90 -> 0 | E66: =VG!G90 -> 0 | F66: =VG!H90 -> 0
A67: =VG!A91 ->  | B67: =VG!B91 -> 0 | D67: =VG!E91 -> 0 | E67: =VG!G91 -> 0 | F67: =VG!H91 -> 0
A68: =VG!A92 ->  | B68: =VG!B92 -> 0 | D68: =VG!E92 -> 0 | E68: =VG!G92 -> 0 | F68: =VG!H92 -> 0
A69: =VG!A93 ->  | B69: =VG!B93 -> 0 | D69: =VG!E93 -> 0 | E69: =VG!G93 -> 0 | F69: =VG!H93 -> 0
A70: =VG!A94 ->  | B70: =VG!B94 -> 0 | D70: =VG!E94 -> 0 | E70: =VG!G94 -> 0 | F70: =VG!H94 -> 0
A71: =VG!A95 ->  | B71: =VG!B95 -> 0 | D71: =VG!E95 -> 0 | E71: =VG!G95 -> 0 | F71: =VG!H95 -> 0
A72: =VG!A96 ->  | B72: =VG!B96 -> 0 | D72: =VG!E96 -> 0 | E72: =VG!G96 -> 0 | F72: =VG!H96 -> 0
A73: =VG!A97 ->  | B73: =VG!B97 -> 0 | D73: =VG!E97 -> 0 | E73: =VG!G97 -> 0 | F73: =VG!H97 -> 0
A74: =VG!A98 ->  | B74: =VG!B98 -> 0 | D74: =VG!E98 -> 0 | E74: =VG!G98 -> 0 | F74: =VG!H98 -> 0
A75: =VG!A99 ->  | B75: =VG!B99 -> 0 | D75: =VG!E99 -> 0 | E75: =VG!G99 -> 0 | F75: =VG!H99 -> 0
A76: =VG!A100 ->  | B76: =VG!B100 -> 0 | D76: =VG!E100 -> 0 | E76: =VG!G100 -> 0 | F76: =VG!H100 -> 0
A77: =VG!A101 ->  | B77: =VG!B101 -> 0 | D77: =VG!E101 -> 0 | E77: =VG!G101 -> 0 | F77: =VG!H101 -> 0
A78: =VG!A102 ->  | B78: =VG!B102 -> 0 | D78: =VG!E102 -> 0 | E78: =VG!G102 -> 0 | F78: =VG!H102 -> 0
A79: =VG!A103 ->  | B79: =VG!B103 -> 0 | D79: =VG!E103 -> 0 | E79: =VG!G103 -> 0 | F79: =VG!H103 -> 0
A80: =VG!A104 ->  | B80: =VG!B104 -> 0 | D80: =VG!E104 -> 0 | E80: =VG!G104 -> 0 | F80: =VG!H104 -> 0
A81: =VG!A105 ->  | B81: =VG!B105 -> 0 | D81: =VG!E105 -> 0 | E81: =VG!G105 -> 0 | F81: =VG!H105 -> 0
A82: =VG!A106 ->  | B82: =VG!B106 -> 0 | D82: =VG!E106 -> 0 | E82: =VG!G106 -> 0 | F82: =VG!H106 -> 0
A83: =VG!A107 ->  | B83: =VG!B107 -> 0 | D83: =VG!E107 -> 0 | E83: =VG!G107 -> 0 | F83: =VG!H107 -> 0
A84: =VG!A108 ->  | B84: =VG!B108 -> 0 | D84: =VG!E108 -> 0 | E84: =VG!G108 -> 0 | F84: =VG!H108 -> 0
A85: =VG!A109 ->  | B85: =VG!B109 -> 0 | D85: =VG!E109 -> 0 | E85: =VG!G109 -> 0 | F85: =VG!H109 -> 0
A86: =VG!A110 ->  | B86: =VG!B110 -> 0 | D86: =VG!E110 -> 0 | E86: =VG!G110 -> 0 | F86: =VG!H110 -> 0
A87: =VG!A111 ->  | B87: =VG!B111 -> 0 | D87: =VG!E111 -> 0 | E87: =VG!G111 -> 0 | F87: =VG!H111 -> 0
A88: =VG!A112 ->  | B88: =VG!B112 -> 0 | D88: =VG!E112 -> 0 | E88: =VG!G112 -> 0 | F88: =VG!H112 -> 0
A89: =VG!A113 ->  | B89: =VG!B113 -> 0 | D89: =VG!E113 -> 0 | E89: =VG!G113 -> 0 | F89: =VG!H113 -> 0
A90: =VG!A114 ->  | B90: =VG!B114 -> 0 | D90: =VG!E114 -> 0 | E90: =VG!G114 -> 0 | F90: =VG!H114 -> 0
A91: =VG!A115 ->  | B91: =VG!B115 -> 0 | D91: =VG!E115 -> 0 | E91: =VG!G115 -> 0 | F91: =VG!H115 -> 0
A92: =VG!A116 ->  | B92: =VG!B116 -> 0 | D92: =VG!E116 -> 0 | E92: =VG!G116 -> 0 | F92: =VG!H116 -> 0
A93: =VG!A117 ->  | B93: =VG!B117 -> 0 | D93: =VG!E117 -> 0 | E93: =VG!G117 -> 0 | F93: =VG!H117 -> 0
A94: =VG!A118 ->  | B94: =VG!B118 -> 0 | D94: =VG!E118 -> 0 | E94: =VG!G118 -> 0 | F94: =VG!H118 -> 0
A95: =VG!A119 ->  | B95: =VG!B119 -> 0 | D95: =VG!E119 -> 0 | E95: =VG!G119 -> 0 | F95: =VG!H119 -> 0
A96: =VG!A120 ->  | B96: =VG!B120 -> 0 | D96: =VG!E120 -> 0 | E96: =VG!G120 -> 0 | F96: =VG!H120 -> 0
A97: =VG!A121 ->  | B97: =VG!B121 -> 0 | D97: =VG!E121 -> 0 | E97: =VG!G121 -> 0 | F97: =VG!H121 -> 0
A98: =VG!A122 ->  | B98: =VG!B122 -> 0 | D98: =VG!E122 -> 0 | E98: =VG!G122 -> 0 | F98: =VG!H122 -> 0
A99: =VG!A123 ->  | B99: =VG!B123 -> 0 | D99: =VG!E123 -> 0 | E99: =VG!G123 -> 0 | F99: =VG!H123 -> 0
A100: =VG!A124 ->  | B100: =VG!B124 -> 0 | D100: =VG!E124 -> 0 | E100: =VG!G124 -> 0 | F100: =VG!H124 -> 0
A101: =VG!A125 ->  | B101: =VG!B125 -> 0 | D101: =VG!E125 -> 0 | E101: =VG!G125 -> 0 | F101: =VG!H125 -> 0
A102: =VG!A126 ->  | B102: =VG!B126 -> 0 | D102: =VG!E126 -> 0 | E102: =VG!G126 -> 0 | F102: =VG!H126 -> 0
A103: =VG!A127 ->  | B103: =VG!B127 -> 0 | D103: =VG!E127 -> 0 | E103: =VG!G127 -> 0 | F103: =VG!H127 -> 0
A104: =VG!A128 ->  | B104: =VG!B128 -> 0 | D104: =VG!E128 -> 0 | E104: =VG!G128 -> 0 | F104: =VG!H128 -> 0
A105: =VG!A129 ->  | B105: =VG!B129 -> 0 | D105: =VG!E129 -> 0 | E105: =VG!G129 -> 0 | F105: =VG!H129 -> 0
A106: =VG!A130 ->  | B106: =VG!B130 -> 0 | D106: =VG!E130 -> 0 | E106: =VG!G130 -> 0 | F106: =VG!H130 -> 0
A107: =VG!A131 ->  | B107: =VG!B131 -> 0 | D107: =VG!E131 -> 0 | E107: =VG!G131 -> 0 | F107: =VG!H131 -> 0
A108: =VG!A132 ->  | B108: =VG!B132 -> 0 | D108: =VG!E132 -> 0 | E108: =VG!G132 -> 0 | F108: =VG!H132 -> 0
A109: =VG!A133 ->  | B109: =VG!B133 -> 0 | D109: =VG!E133 -> 0 | E109: =VG!G133 -> 0 | F109: =VG!H133 -> 0
A110: =VG!A134 ->  | B110: =VG!B134 -> 0 | D110: =VG!E134 -> 0 | E110: =VG!G134 -> 0 | F110: =VG!H134 -> 0
D112: FİYAT TOPLAMI : | F112: =PAT!N111 -> 11430
D113: KDV TOPLAMI : | F113: =F112*VG!I35/100 -> 914.4
D114: TOPLAM TUTAR : | F114: =F112+F113 -> 12344.4
A117: YÜKLENİCİ FİRMA / KİŞİ | C117: =VG!L15 -> 0
A118: YÜKLENİCİ VKN | C118: =VG!L16 -> 0
A121: =CONCATENATE(B!A10,ONAY!D11,B!A11) -> Yukarıda Adı ve miktarları yazılı 3 Kalem Malın / Malzemenin ihale evraklarında yazılı nitelikleri muayene edilmiş olup komisyonumuzca tespit edilen niteliklere uygundur.
A123: =VG!D30 -> 2021-09-25
A125: =VG!J13 -> 0 | C125: =VG!J12 -> 0 | E125: =VG!J11 -> 0
A126: =VG!O13 -> 0 | C126: =VG!O12 -> Komisyon Üyesi | E126: =VG!O11 -> Komisyon Üyesi
A130: UYGUNDUR
A132: =VG!D11 -> 0
A133: =VG!D12 -> Okul Müdürü

Sheet PROFORMA
A1: PROFORMA FATURA
A5: FİYAT VERİLEN
A6: Kurum / Kişi / Firma Adı
A7: TC Kimlik / Vergi Kimlik No
A8: Kurum / Kişi / Firma Telefon | C8: (0328) 825 83 35
A9: Kurum / Kişi / Firma Faks | C9: (0328) 825 83 38
A10: Kurum / Kişi / Firma Adres
A11: Teklif Edilen Fiyatın Geçerlilik Tarihi
A16: SIRA | B16: ADI | C16: ÖZELLİĞİ | D16: MİKTARI | E16: BİRİMİ | F16: BİRİM FİYATI | G16: TOPLAM TUTAR
A17: =VG!A35 -> 1 | B17: =VG!B35 -> Perde | C17: =VG!E35 -> Fon | D17: =VG!G35 -> 120 | E17: =VG!H35 -> Metrekare
A18: =VG!A36 -> 2 | B18: =VG!B36 -> Perde | C18: =VG!E36 -> Zebra | D18: =VG!G36 -> 30 | E18: =VG!H36 -> Metrekare
A19: =VG!A37 -> 3 | B19: =VG!B37 -> Perde | C19: =VG!E37 -> Karartma | D19: =VG!G37 -> 34 | E19: =VG!H37 -> Metrekare
A20: =VG!A38 ->  | B20: =VG!B38 -> 0 | C20: =VG!E38 -> 0 | D20: =VG!G38 -> 0 | E20: =VG!H38 -> 0
A21: =VG!A39 ->  | B21: =VG!B39 -> 0 | C21: =VG!E39 -> 0 | D21: =VG!G39 -> 0 | E21: =VG!H39 -> 0
A22: =VG!A40 ->  | B22: =VG!B40 -> 0 | C22: =VG!E40 -> 0 | D22: =VG!G40 -> 0 | E22: =VG!H40 -> 0
A23: =VG!A41 ->  | B23: =VG!B41 -> 0 | C23: =VG!E41 -> 0 | D23: =VG!G41 -> 0 | E23: =VG!H41 -> 0
A24: =VG!A42 ->  | B24: =VG!B42 -> 0 | C24: =VG!E42 -> 0 | D24: =VG!G42 -> 0 | E24: =VG!H42 -> 0
A25: =VG!A43 ->  | B25: =VG!B43 -> 0 | C25: =VG!E43 -> 0 | D25: =VG!G43 -> 0 | E25: =VG!H43 -> 0
A26: =VG!A44 ->  | B26: =VG!B44 -> 0 | C26: =VG!E44 -> 0 | D26: =VG!G44 -> 0 | E26: =VG!H44 -> 0
A27: =VG!A45 ->  | B27: =VG!B45 -> 0 | C27: =VG!E45 -> 0 | D27: =VG!G45 -> 0 | E27: =VG!H45 -> 0
A28: =VG!A46 ->  | B28: =VG!B46 -> 0 | C28: =VG!E46 -> 0 | D28: =VG!G46 -> 0 | E28: =VG!H46 -> 0
A29: =VG!A47 ->  | B29: =VG!B47 -> 0 | C29: =VG!E47 -> 0 | D29: =VG!G47 -> 0 | E29: =VG!H47 -> 0
A30: =VG!A48 ->  | B30: =VG!B48 -> 0 | C30: =VG!E48 -> 0 | D30: =VG!G48 -> 0 | E30: =VG!H48 -> 0
A31: =VG!A49 ->  | B31: =VG!B49 -> 0 | C31: =VG!E49 -> 0 | D31: =VG!G49 -> 0 | E31: =VG!H49 -> 0
A32: =VG!A50 ->  | B32: =VG!B50 -> 0 | C32: =VG!E50 -> 0 | D32: =VG!G50 -> 0 | E32: =VG!H50 -> 0
A33: =VG!A51 ->  | B33: =VG!B51 -> 0 | C33: =VG!E51 -> 0 | D33: =VG!G51 -> 0 | E33: =VG!H51 -> 0
A34: =VG!A52 ->  | B34: =VG!B52 -> 0 | C34: =VG!E52 -> 0 | D34: =VG!G52 -> 0 | E34: =VG!H52 -> 0
A35: =VG!A53 ->  | B35: =VG!B53 -> 0 | C35: =VG!E53 -> 0 | D35: =VG!G53 -> 0 | E35: =VG!H53 -> 0
A36: =VG!A54 ->  | B36: =VG!B54 -> 0 | C36: =VG!E54 -> 0 | D36: =VG!G54 -> 0 | E36: =VG!H54 -> 0
A37: =VG!A55 ->  | B37: =VG!B55 -> 0 | C37: =VG!E55 -> 0 | D37: =VG!G55 -> 0 | E37: =VG!H55 -> 0
A38: =VG!A56 ->  | B38: =VG!B56 -> 0 | C38: =VG!E56 -> 0 | D38: =VG!G56 -> 0 | E38: =VG!H56 -> 0
A39: =VG!A57 ->  | B39: =VG!B57 -> 0 | C39: =VG!E57 -> 0 | D39: =VG!G57 -> 0 | E39: =VG!H57 -> 0
A40: =VG!A58 ->  | B40: =VG!B58 -> 0 | C40: =VG!E58 -> 0 | D40: =VG!G58 -> 0 | E40: =VG!H58 -> 0
A41: =VG!A59 ->  | B41: =VG!B59 -> 0 | C41: =VG!E59 -> 0 | D41: =VG!G59 -> 0 | E41: =VG!H59 -> 0
A42: =VG!A60 ->  | B42: =VG!B60 -> 0 | C42: =VG!E60 -> 0 | D42: =VG!G60 -> 0 | E42: =VG!H60 -> 0
A43: =VG!A61 ->  | B43: =VG!B61 -> 0 | C43: =VG!E61 -> 0 | D43: =VG!G61 -> 0 | E43: =VG!H61 -> 0
A44: =VG!A62 ->  | B44: =VG!B62 -> 0 | C44: =VG!E62 -> 0 | D44: =VG!G62 -> 0 | E44: =VG!H62 -> 0
A45: =VG!A63 ->  | B45: =VG!B63 -> 0 | C45: =VG!E63 -> 0 | D45: =VG!G63 -> 0 | E45: =VG!H63 -> 0
A46: =VG!A64 ->  | B46: =VG!B64 -> 0 | C46: =VG!E64 -> 0 | D46: =VG!G64 -> 0 | E46: =VG!H64 -> 0
A47: =VG!A65 ->  | B47: =VG!B65 -> 0 | C47: =VG!E65 -> 0 | D47: =VG!G65 -> 0 | E47: =VG!H65 -> 0
A48: =VG!A66 ->  | B48: =VG!B66 -> 0 | C48: =VG!E66 -> 0 | D48: =VG!G66 -> 0 | E48: =VG!H66 -> 0
A49: =VG!A67 ->  | B49: =VG!B67 -> 0 | C49: =VG!E67 -> 0 | D49: =VG!G67 -> 0 | E49: =VG!H67 -> 0
A50: =VG!A68 ->  | B50: =VG!B68 -> 0 | C50: =VG!E68 -> 0 | D50: =VG!G68 -> 0 | E50: =VG!H68 -> 0
A51: =VG!A69 ->  | B51: =VG!B69 -> 0 | C51: =VG!E69 -> 0 | D51: =VG!G69 -> 0 | E51: =VG!H69 -> 0
A52: =VG!A70 ->  | B52: =VG!B70 -> 0 | C52: =VG!E70 -> 0 | D52: =VG!G70 -> 0 | E52: =VG!H70 -> 0
A53: =VG!A71 ->  | B53: =VG!B71 -> 0 | C53: =VG!E71 -> 0 | D53: =VG!G71 -> 0 | E53: =VG!H71 -> 0
A54: =VG!A72 ->  | B54: =VG!B72 -> 0 | C54: =VG!E72 -> 0 | D54: =VG!G72 -> 0 | E54: =VG!H72 -> 0
A55: =VG!A73 ->  | B55: =VG!B73 -> 0 | C55: =VG!E73 -> 0 | D55: =VG!G73 -> 0 | E55: =VG!H73 -> 0
A56: =VG!A74 ->  | B56: =VG!B74 -> 0 | C56: =VG!E74 -> 0 | D56: =VG!G74 -> 0 | E56: =VG!H74 -> 0
A57: =VG!A75 ->  | B57: =VG!B75 -> 0 | C57: =VG!E75 -> 0 | D57: =VG!G75 -> 0 | E57: =VG!H75 -> 0
A58: =VG!A76 ->  | B58: =VG!B76 -> 0 | C58: =VG!E76 -> 0 | D58: =VG!G76 -> 0 | E58: =VG!H76 -> 0
A59: =VG!A77 ->  | B59: =VG!B77 -> 0 | C59: =VG!E77 -> 0 | D59: =VG!G77 -> 0 | E59: =VG!H77 -> 0
A60: =VG!A78 ->  | B60: =VG!B78 -> 0 | C60: =VG!E78 -> 0 | D60: =VG!G78 -> 0 | E60: =VG!H78 -> 0
A61: =VG!A79 ->  | B61: =VG!B79 -> 0 | C61: =VG!E79 -> 0 | D61: =VG!G79 -> 0 | E61: =VG!H79 -> 0
A62: =VG!A80 ->  | B62: =VG!B80 -> 0 | C62: =VG!E80 -> 0 | D62: =VG!G80 -> 0 | E62: =VG!H80 -> 0
A63: =VG!A81 ->  | B63: =VG!B81 -> 0 | C63: =VG!E81 -> 0 | D63: =VG!G81 -> 0 | E63: =VG!H81 -> 0
A64: =VG!A82 ->  | B64: =VG!B82 -> 0 | C64: =VG!E82 -> 0 | D64: =VG!G82 -> 0 | E64: =VG!H82 -> 0
A65: =VG!A83 ->  | B65: =VG!B83 -> 0 | C65: =VG!E83 -> 0 | D65: =VG!G83 -> 0 | E65: =VG!H83 -> 0
A66: =VG!A84 ->  | B66: =VG!B84 -> 0 | C66: =VG!E84 -> 0 | D66: =VG!G84 -> 0 | E66: =VG!H84 -> 0
A67: =VG!A85 ->  | B67: =VG!B85 -> 0 | C67: =VG!E85 -> 0 | D67: =VG!G85 -> 0 | E67: =VG!H85 -> 0
A68: =VG!A86 ->  | B68: =VG!B86 -> 0 | C68: =VG!E86 -> 0 | D68: =VG!G86 -> 0 | E68: =VG!H86 -> 0
A69: =VG!A87 ->  | B69: =VG!B87 -> 0 | C69: =VG!E87 -> 0 | D69: =VG!G87 -> 0 | E69: =VG!H87 -> 0
A70: =VG!A88 ->  | B70: =VG!B88 -> 0 | C70: =VG!E88 -> 0 | D70: =VG!G88 -> 0 | E70: =VG!H88 -> 0
A71: =VG!A89 ->  | B71: =VG!B89 -> 0 | C71: =VG!E89 -> 0 | D71: =VG!G89 -> 0 | E71: =VG!H89 -> 0
A72: =VG!A90 ->  | B72: =VG!B90 -> 0 | C72: =VG!E90 -> 0 | D72: =VG!G90 -> 0 | E72: =VG!H90 -> 0
A73: =VG!A91 ->  | B73: =VG!B91 -> 0 | C73: =VG!E91 -> 0 | D73: =VG!G91 -> 0 | E73: =VG!H91 -> 0
A74: =VG!A92 ->  | B74: =VG!B92 -> 0 | C74: =VG!E92 -> 0 | D74: =VG!G92 -> 0 | E74: =VG!H92 -> 0
A75: =VG!A93 ->  | B75: =VG!B93 -> 0 | C75: =VG!E93 -> 0 | D75: =VG!G93 -> 0 | E75: =VG!H93 -> 0
A76: =VG!A94 ->  | B76: =VG!B94 -> 0 | C76: =VG!E94 -> 0 | D76: =VG!G94 -> 0 | E76: =VG!H94 -> 0
A77: =VG!A95 ->  | B77: =VG!B95 -> 0 | C77: =VG!E95 -> 0 | D77: =VG!G95 -> 0 | E77: =VG!H95 -> 0
A78: =VG!A96 ->  | B78: =VG!B96 -> 0 | C78: =VG!E96 -> 0 | D78: =VG!G96 -> 0 | E78: =VG!H96 -> 0
A79: =VG!A97 ->  | B79: =VG!B97 -> 0 | C79: =VG!E97 -> 0 | D79: =VG!G97 -> 0 | E79: =VG!H97 -> 0
A80: =VG!A98 ->  | B80: =VG!B98 -> 0 | C80: =VG!E98 -> 0 | D80: =VG!G98 -> 0 | E80: =VG!H98 -> 0
A81: =VG!A99 ->  | B81: =VG!B99 -> 0 | C81: =VG!E99 -> 0 | D81: =VG!G99 -> 0 | E81: =VG!H99 -> 0
A82: =VG!A100 ->  | B82: =VG!B100 -> 0 | C82: =VG!E100 -> 0 | D82: =VG!G100 -> 0 | E82: =VG!H100 -> 0
A83: =VG!A101 ->  | B83: =VG!B101 -> 0 | C83: =VG!E101 -> 0 | D83: =VG!G101 -> 0 | E83: =VG!H101 -> 0
A84: =VG!A102 ->  | B84: =VG!B102 -> 0 | C84: =VG!E102 -> 0 | D84: =VG!G102 -> 0 | E84: =VG!H102 -> 0
A85: =VG!A103 ->  | B85: =VG!B103 -> 0 | C85: =VG!E103 -> 0 | D85: =VG!G103 -> 0 | E85: =VG!H103 -> 0
A86: =VG!A104 ->  | B86: =VG!B104 -> 0 | C86: =VG!E104 -> 0 | D86: =VG!G104 -> 0 | E86: =VG!H104 -> 0
A87: =VG!A105 ->  | B87: =VG!B105 -> 0 | C87: =VG!E105 -> 0 | D87: =VG!G105 -> 0 | E87: =VG!H105 -> 0
A88: =VG!A106 ->  | B88: =VG!B106 -> 0 | C88: =VG!E106 -> 0 | D88: =VG!G106 -> 0 | E88: =VG!H106 -> 0
A89: =VG!A107 ->  | B89: =VG!B107 -> 0 | C89: =VG!E107 -> 0 | D89: =VG!G107 -> 0 | E89: =VG!H107 -> 0
A90: =VG!A108 ->  | B90: =VG!B108 -> 0 | C90: =VG!E108 -> 0 | D90: =VG!G108 -> 0 | E90: =VG!H108 -> 0
A91: =VG!A109 ->  | B91: =VG!B109 -> 0 | C91: =VG!E109 -> 0 | D91: =VG!G109 -> 0 | E91: =VG!H109 -> 0
A92: =VG!A110 ->  | B92: =VG!B110 -> 0 | C92: =VG!E110 -> 0 | D92: =VG!G110 -> 0 | E92: =VG!H110 -> 0
A93: =VG!A111 ->  | B93: =VG!B111 -> 0 | C93: =VG!E111 -> 0 | D93: =VG!G111 -> 0 | E93: =VG!H111 -> 0
A94: =VG!A112 ->  | B94: =VG!B112 -> 0 | C94: =VG!E112 -> 0 | D94: =VG!G112 -> 0 | E94: =VG!H112 -> 0
A95: =VG!A113 ->  | B95: =VG!B113 -> 0 | C95: =VG!E113 -> 0 | D95: =VG!G113 -> 0 | E95: =VG!H113 -> 0
A96: =VG!A114 ->  | B96: =VG!B114 -> 0 | C96: =VG!E114 -> 0 | D96: =VG!G114 -> 0 | E96: =VG!H114 -> 0
A97: =VG!A115 ->  | B97: =VG!B115 -> 0 | C97: =VG!E115 -> 0 | D97: =VG!G115 -> 0 | E97: =VG!H115 -> 0
A98: =VG!A116 ->  | B98: =VG!B116 -> 0 | C98: =VG!E116 -> 0 | D98: =VG!G116 -> 0 | E98: =VG!H116 -> 0
A99: =VG!A117 ->  | B99: =VG!B117 -> 0 | C99: =VG!E117 -> 0 | D99: =VG!G117 -> 0 | E99: =VG!H117 -> 0
A100: =VG!A118 ->  | B100: =VG!B118 -> 0 | C100: =VG!E118 -> 0 | D100: =VG!G118 -> 0 | E100: =VG!H118 -> 0
A101: =VG!A119 ->  | B101: =VG!B119 -> 0 | C101: =VG!E119 -> 0 | D101: =VG!G119 -> 0 | E101: =VG!H119 -> 0
A102: =VG!A120 ->  | B102: =VG!B120 -> 0 | C102: =VG!E120 -> 0 | D102: =VG!G120 -> 0 | E102: =VG!H120 -> 0
A103: =VG!A121 ->  | B103: =VG!B121 -> 0 | C103: =VG!E121 -> 0 | D103: =VG!G121 -> 0 | E103: =VG!H121 -> 0
A104: =VG!A122 ->  | B104: =VG!B122 -> 0 | C104: =VG!E122 -> 0 | D104: =VG!G122 -> 0 | E104: =VG!H122 -> 0
A105: =VG!A123 ->  | B105: =VG!B123 -> 0 | C105: =VG!E123 -> 0 | D105: =VG!G123 -> 0 | E105: =VG!H123 -> 0
A106: =VG!A124 ->  | B106: =VG!B124 -> 0 | C106: =VG!E124 -> 0 | D106: =VG!G124 -> 0 | E106: =VG!H124 -> 0
A107: =VG!A125 ->  | B107: =VG!B125 -> 0 | C107: =VG!E125 -> 0 | D107: =VG!G125 -> 0 | E107: =VG!H125 -> 0
A108: =VG!A126 ->  | B108: =VG!B126 -> 0 | C108: =VG!E126 -> 0 | D108: =VG!G126 -> 0 | E108: =VG!H126 -> 0
A109: =VG!A127 ->  | B109: =VG!B127 -> 0 | C109: =VG!E127 -> 0 | D109: =VG!G127 -> 0 | E109: =VG!H127 -> 0
A110: =VG!A128 ->  | B110: =VG!B128 -> 0 | C110: =VG!E128 -> 0 | D110: =VG!G128 -> 0 | E110: =VG!H128 -> 0
A111: =VG!A129 ->  | B111: =VG!B129 -> 0 | C111: =VG!E129 -> 0 | D111: =VG!G129 -> 0 | E111: =VG!H129 -> 0
A112: =VG!A130 ->  | B112: =VG!B130 -> 0 | C112: =VG!E130 -> 0 | D112: =VG!G130 -> 0 | E112: =VG!H130 -> 0
A113: =VG!A131 ->  | B113: =VG!B131 -> 0 | C113: =VG!E131 -> 0 | D113: =VG!G131 -> 0 | E113: =VG!H131 -> 0
A114: =VG!A132 ->  | B114: =VG!B132 -> 0 | C114: =VG!E132 -> 0 | D114: =VG!G132 -> 0 | E114: =VG!H132 -> 0
A115: =VG!A133 ->  | B115: =VG!B133 -> 0 | C115: =VG!E133 -> 0 | D115: =VG!G133 -> 0 | E115: =VG!H133 -> 0
A116: =VG!A134 ->  | B116: =VG!B134 -> 0 | C116: =VG!E134 -> 0 | D116: =VG!G134 -> 0 | E116: =VG!H134 -> 0
E117: TOPLAM TURAR
E118: KDV MİKTARI
E119: GENEL TOPLAM
A120: TEKLİF TOPLAMI YAZIYLA (KDV DAHİL)
A122: Yukarda Adı, özelliği ve miktarı yazılı Malın / Malzemenin belirtilen tarih itibariyle satış fiyatı belirttiğimiz gibi olup istenilmesi halinde temin edilebilecektir.
D124: PROFORMA FATURA DÜZENLEYEN FİRMA/KİŞİ
D125: İmza / Kaşe/Adres
